{"text_format":"1","workbook":"xlsx","n_sheets":12,"sheets":["留意事項","基本情報","IPoE申込情報","付加サービス情報","OCNメールアカウント情報","OCNサブドメイン情報","お客さまDNS設定情報","IPアドレス割当申請書","list","変換","OCNメニュー","改版履歴"],"not_rendered":{"charts":0,"images":5,"macros":1,"external_links":0,"defined_names":399,"comments":1,"pivot_tables":0},"unopened":[],"bounds":{"document_bytes":16777216,"sheet_cells":100000,"rows_first":2000,"rows_last":500,"rows_between":2000,"halvings":0,"cell_chars":16384,"cell_head_chars":4096},"cells_cut":0,"cells_raw":0,"read":"whole","date_system":"1900"}

{"sheet":"留意事項","index":0,"n_rows":165,"n_cols":33,"rows_kept":165,"cut":false,"hidden":false,"merged":[[92,0,92,33],[102,19,103,33],[104,1,104,16],[106,19,106,33],[115,0,115,33],[121,0,121,33],[158,20,158,33],[159,20,159,33],[161,15,161,19],[145,1,145,33],[147,1,147,33],[148,1,148,33],[150,1,150,33],[151,0,152,0],[151,1,153,33],[78,0,78,33],[82,0,82,33],[85,0,85,33],[88,0,88,33],[91,0,91,33],[73,27,73,28],[73,29,73,31],[73,32,73,33],[74,27,74,28],[74,29,74,31],[74,32,74,33],[71,27,71,28],[71,29,71,31],[71,32,71,33],[72,27,72,28],[72,29,72,31],[72,32,72,33],[69,27,69,28],[69,29,69,31],[69,32,69,33],[70,27,70,28],[70,29,70,31],[70,32,70,33],[67,27,67,28],[67,29,67,31],[67,32,67,33],[68,27,68,28],[68,29,68,31],[68,32,68,33],[63,27,64,28],[63,29,64,31],[63,32,64,33],[65,15,65,26],[65,27,66,28],[65,29,66,31],[65,32,66,33],[58,15,58,26],[58,27,60,28],[58,29,60,31],[58,32,60,33],[60,15,60,26],[61,27,62,28],[61,29,62,31],[61,32,62,33],[55,15,55,26],[55,27,56,28],[55,29,56,31],[55,32,56,33],[56,15,56,26],[57,15,57,26],[57,27,57,28],[57,29,57,31],[57,32,57,33],[52,27,52,28],[52,29,52,31],[52,32,52,33],[53,15,53,26],[53,27,54,28],[53,29,54,31],[53,32,54,33],[54,15,54,26],[49,15,49,26],[49,27,50,28],[49,29,50,31],[49,32,50,33],[51,27,51,28],[51,29,51,31],[51,32,51,33],[43,15,43,26],[44,27,45,28],[44,29,45,31],[44,32,45,33],[46,27,48,28],[46,29,48,31],[46,32,48,33],[38,15,38,26],[39,15,39,26],[40,15,40,26],[42,15,42,26],[39,32,41,33],[39,29,41,31],[39,27,41,28],[42,27,43,28],[42,29,43,31],[42,32,43,33],[31,27,31,28],[31,29,31,31],[31,32,31,33],[36,15,36,26],[37,15,37,26],[32,15,32,26],[32,27,35,28],[32,29,35,31],[32,32,35,33],[33,15,33,26],[34,15,34,26],[35,15,35,26],[36,32,38,33],[36,29,38,31],[36,27,38,28],[28,27,28,28],[28,29,28,31],[28,32,28,33],[29,15,29,26],[30,15,30,26],[26,27,26,28],[26,29,26,31],[26,32,26,33],[27,27,27,28],[27,29,27,31],[27,32,27,33],[29,32,30,33],[29,29,30,31],[29,27,30,28],[23,0,23,12],[23,13,23,15],[23,16,23,18],[23,19,23,25],[23,26,23,32],[19,0,22,12],[19,13,20,15],[19,16,19,18],[19,19,19,25],[19,26,19,32],[20,16,20,18],[20,19,20,25],[20,26,20,32],[21,13,22,15],[21,16,21,18],[18,0,18,12],[18,13,18,15],[18,16,18,18],[18,19,18,25],[18,26,18,32],[21,19,21,25],[21,26,21,32],[22,16,22,18],[22,19,22,25],[22,26,22,32],[13,28,13,32],[14,6,14,12],[14,13,14,17],[14,18,14,22],[14,23,14,27],[14,28,14,32],[12,0,15,5],[12,6,12,12],[12,13,12,17],[12,18,12,22],[12,23,12,27],[12,28,12,32],[13,6,13,12],[13,13,13,17],[13,18,13,22],[13,23,13,27],[15,6,15,12],[15,13,15,17],[15,18,15,22],[15,23,15,27],[15,28,15,32],[1,0,1,33],[2,0,2,33],[4,0,5,33],[7,0,7,32],[10,0,11,12],[10,13,10,32],[11,13,11,17],[11,18,11,22],[11,23,11,27],[11,28,11,32]]}
[]
["第6種オープンコンピュータ通信網サービス IP8/IP16/IP32/IP64　契約申込書（新規）"]
["申し込みにあたって、必ずお読みください"]
["契約申込書（新規）を記入する前に以下の内容を確認のうえ、申し込みをお願いします。"]
["OCNサービスは（以下、「本サービス」）は当社の定める「IP通信網サービス契約約款」に基づき提供させて頂いております。\n本サービスの申込みにつきましては「IP通信網サービス契約約款」、各種利用規約、及び「重要事項に関する説明」「個人情報取り扱い」の内容を事前にお読みいただき、承諾された上で、お申込みください。契約約款は弊社各支店、営業窓口及びホームページで公開しておりますが、詳細な内容につきましては弊社販売担当者等にご確認ください。「個人情報取り扱い」の内容に関してはホームページ（https://www.ntt.com/about-us/hp/privacy.html）にて公開しております。　　\n本サービスの申込書はOCN第6種 固定IP8及び、IP16・IP32・IP64の契約申込書となります。サービスの詳細につきましてはOCNサービスのホームページ（http://www.ntt.com/business/services/network/internet-connect/ocn-business.html）で必ずご確認下さい。"]
[]
[]
["お客さまがNTT東西会社へお申込みされたアクセスラインとOCN契約タイプが不一致な場合、以下の表のようにお客さまで一部設定変更が必要になります。「(1)OCN契約タイプとアクセスラインの相性による通信可否一覧」で△表記がある場合が対象となりますので、該当する場合「(2)認証IDのドメイン部分の変更」の内容に従って設定変更をお願いいたします。"]
["(1)OCN契約タイプとアクセスラインの相性による通信可否一覧　"]
[]
[null,null,null,null,null,null,null,null,null,null,null,null,null,"弊社にお申込みいただいたOCN契約タイプ"]
[null,null,null,null,null,null,null,null,null,null,null,null,null,"Ｂフレッツ",null,null,null,null,"フレッツ光プレミアム",null,null,null,null,"フレッツ光ネクスト",null,null,null,null,"フレッツ 光ライト"]
["お客さまがお申込みされた\n東西会社のアクセスライン",null,null,null,null,null,"Ｂフレッツ",null,null,null,null,null,null,"○",null,null,null,null,"○",null,null,null,null,"△",null,null,null,null,"△"]
[null,null,null,null,null,null,"フレッツ光プレミアム",null,null,null,null,null,null,"○",null,null,null,null,"○",null,null,null,null,"△",null,null,null,null,"△"]
[null,null,null,null,null,null,"フレッツ光ネクスト",null,null,null,null,null,null,"○",null,null,null,null,"○",null,null,null,null,"○",null,null,null,null,"○"]
[null,null,null,null,null,null,"フレッツ 光ライト",null,null,null,null,null,null,"○",null,null,null,null,"○",null,null,null,null,"○",null,null,null,null,"○"]
[null,null,null,null,null,null,"（○通信可/△お客様で設定変更が必要）"]
["(2)認証IDのドメイン部分の変更"]
["OCN契約タイプとアクセスライン契約\nタイプ不一致の場合の対応",null,null,null,null,null,null,null,null,null,null,null,null,"タイプ",null,null,"IP種別",null,null,"【変更前】\n認証IDの@以下の\n部分",null,null,null,null,null,null,"【変更後】\n認証IDの@以下の\n部分"]
["OCN契約タイプがフレッツ光ネクスト/フレッツ光ライトだが、\nアクセスラインがBフレッツ/フレッツ光プレミアムだった場合",null,null,null,null,null,null,null,null,null,null,null,null,"ファミリー",null,null,"固定",null,null,"bizf.ocn.ne.jp",null,null,null,null,null,null,"fbnf.ocn.ne.jp"]
[null,null,null,null,null,null,null,null,null,null,null,null,null,null,null,null,"動的",null,null,"bizd.ocn.ne.jp",null,null,null,null,null,null,"dbnf.ocn.ne.jp"]
[null,null,null,null,null,null,null,null,null,null,null,null,null,"マンション",null,null,"固定",null,null,"bizf.ocn.ne.jp",null,null,null,null,null,null,"fbfm.ocn.ne.jp"]
[null,null,null,null,null,null,null,null,null,null,null,null,null,null,null,null,"動的",null,null,"bizd.ocn.ne.jp",null,null,null,null,null,null,"dbfm.ocn.ne.jp"]
["OCN契約タイプがフレッツ光ネクストだが、\nアクセスラインがBフレッツであった場合",null,null,null,null,null,null,null,null,null,null,null,null,"ビジネス",null,null,"固定",null,null,"bizf.ocn.ne.jp",null,null,null,null,null,null,"fbfh.ocn.ne.jp"]
[]
[null,"＜アクセスライン別対応表＞"]
[null,"サービスタイプ",null,null,null,null,null,null,null,null,null,null,null,null,null,null,null,null,null,null,null,null,null,null,null,null,null,"新設",null,"アクセス\nプラン変更",null,null,"移転"]
[null,"IP8",null,"OCN光【光一括提供型】",null,null,null,null,null,null,null,null,null,null,null,"ファミリー１００M／２００M／１G",null,null,null,null,null,null,null,null,null,null,null,"○",null,"○",null,null,"○"]
[null,null,null,null,null,null,null,null,null,null,null,null,null,null,null,"マンション１００M／２００M／１G",null,null,null,null,null,null,null,null,null,null,null,"○",null,"○",null,null,"○"]
[null,null,null,"OCNADSLアクセス",null,null,null,null,"「フレッツ」プラン",null,null,null,null,null,null,"１Ｍ／１．５Ｍ／８Ｍ／１２Ｍ／２４Ｍ／４０Ｍ／４７Ｍタイプ",null,null,null,null,null,null,null,null,null,null,null,"×",null,"×",null,null,"△"]
[null,null,null,null,null,null,null,null,null,null,null,null,null,null,null,"ビジネスタイプ"]
[null,null,null,"OCNISDNアクセス",null,null,null,null,"「フレッツ」プラン",null,null,null,null,null,null,null,null,null,null,null,null,null,null,null,null,null,null,"×",null,"×",null,null,"×"]
[null,null,null,"OCN光「フレッツ」",null,null,null,null,"「Ｂフレッツ」プラン",null,null,null,null,null,null,"ニューファミリー／ファミリー１００",null,null,null,null,null,null,null,null,null,null,null,"×",null,"×",null,null,"△"]
[null,null,null,null,null,null,null,null,null,null,null,null,null,null,null,"ベーシックタイプ"]
[null,null,null,null,null,null,null,null,null,null,null,null,null,null,null,"ビジネスタイプ"]
[null,null,null,null,null,null,null,null,null,null,null,null,null,null,null,"ビル・マンションタイプ"]
[null,null,null,null,null,null,null,null,"「フレッツ・光プレミアム」プラン",null,null,null,null,null,null,"ファミリータイプ",null,null,null,null,null,null,null,null,null,null,null,"×",null,"×",null,null,"△"]
[null,null,null,null,null,null,null,null,null,null,null,null,null,null,null,"マンションタイプ"]
[null,null,null,null,null,null,null,null,null,null,null,null,null,null,null,"エンタープライズタイプ"]
[null,null,null,null,null,null,null,null,"「フレッツ光ネクスト」プラン",null,null,null,null,null,null,"ファミリータイプ／ファミリー・スーパーハイスピードタイプ隼\nファミリーギガラインタイプ／ギガファミリー・スマートタイプ",null,null,null,null,null,null,null,null,null,null,null,"○",null,"○",null,null,"○"]
[null,null,null,null,null,null,null,null,null,null,null,null,null,null,null,"マンションタイプ／マンション・スーパーハイスピードタイプ隼\nマンションギガラインタイプ／ギガマンション・スマートタイプ"]
[null,null,null,null,null,null,null,null,null,null,null,null,null,null,null,"ビジネスタイプ／プライオ１／プライオ１０"]
[null,null,null,null,null,null,null,null,"「フレッツ・光ライト」プラン",null,null,null,null,null,null,"ファミリータイプ",null,null,null,null,null,null,null,null,null,null,null,"×",null,"×",null,null,"×"]
[null,null,null,null,null,null,null,null,null,null,null,null,null,null,null,"マンションタイプ"]
[null,null,null,"OCNADSLサービス（Ｆ）",null,null,null,null,null,null,null,null,null,null,null,"１．５Ｍ／８Ｍ／１２Ｍ／２４Ｍ／４０Ｍ／４７Ｍ",null,null,null,null,null,null,null,null,null,null,null,"×",null,"×",null,null,"×"]
[null,null,null,null,null,null,null,null,null,null,null,null,null,null,null,"ビジネス４０Ｍ／ビジネス４７Ｍ"]
[null,null,null,"OCN光サービス（Ｆ）",null,null,null,null,"「Ｂフレッツ」タイプ",null,null,null,null,null,null,"ファミリータイプ（ファミリ１００）",null,null,null,null,null,null,null,null,null,null,null,"×",null,"×",null,null,"×"]
[null,null,null,null,null,null,null,null,null,null,null,null,null,null,null,"ベーシックタイプ"]
[null,null,null,null,null,null,null,null,null,null,null,null,null,null,null,"ビジネスタイプ"]
[null,null,null,null,null,null,null,null,"「光ネクスト」タイプ",null,null,null,null,null,null,"ファミリータイプ／ファミリー・ハイスピードタイプ\n／ファミリー・スーパーハイスピードタイプ　隼※1 ",null,null,null,null,null,null,null,null,null,null,null,"○",null,"○",null,null,"○"]
[null,null,null,null,null,null,null,null,null,null,null,null,null,null,null,"ビジネスタイプ/プライオ１/プライオ１０"]
[null,"IP16",null,"OCN光【光一括提供型】",null,null,null,null,null,null,null,null,null,null,null,"ファミリー１００M／２００M／１G",null,null,null,null,null,null,null,null,null,null,null,"○",null,"○",null,null,"○"]
[null,null,null,null,null,null,null,null,null,null,null,null,null,null,null,"マンション１００M／２００M／１G",null,null,null,null,null,null,null,null,null,null,null,"○",null,"○",null,null,"○"]
[null,null,null,"OCNADSLアクセス",null,null,null,null,"「フレッツ」プラン",null,null,null,null,null,null,"１Ｍ／１．５Ｍ／８Ｍ／１２Ｍ／２４Ｍ／４０Ｍ／４７Ｍタイプ",null,null,null,null,null,null,null,null,null,null,null,"×",null,"×",null,null,"△"]
[null,null,null,null,null,null,null,null,null,null,null,null,null,null,null,"ビジネスタイプ"]
[null,null,null,"OCN光「フレッツ」",null,null,null,null,"「Ｂフレッツ」プラン",null,null,null,null,null,null,"ベーシックタイプ",null,null,null,null,null,null,null,null,null,null,null,"×",null,"×",null,null,"△"]
[null,null,null,null,null,null,null,null,null,null,null,null,null,null,null,"ビジネスタイプ"]
[null,null,null,null,null,null,null,null,"「フレッツ・光プレミアム」プラン",null,null,null,null,null,null,"エンタープライズタイプ",null,null,null,null,null,null,null,null,null,null,null,"×",null,"×",null,null,"△"]
[null,null,null,null,null,null,null,null,"「フレッツ光ネクスト」プラン",null,null,null,null,null,null,"ファミリータイプ／ファミリー・スーパーハイスピードタイプ　隼※1",null,null,null,null,null,null,null,null,null,null,null,"○",null,"○",null,null,"○"]
[null,null,null,null,null,null,null,null,null,null,null,null,null,null,null,"ビジネスタイプ／プライオ１／プライオ１０"]
[null,null,null,null,null,null,null,null,"「フレッツ・光ライト」プラン",null,null,null,null,null,null,"ファミリータイプ"]
[null,null,null,"OCNADSLサービス（Ｆ）",null,null,null,null,null,null,null,null,null,null,null,"１．５Ｍ／８Ｍ／１２Ｍ／２４Ｍ／４０Ｍ／４７Ｍ",null,null,null,null,null,null,null,null,null,null,null,"×",null,"×",null,null,"×"]
[null,null,null,null,null,null,null,null,null,null,null,null,null,null,null,"ビジネス４０Ｍ／ビジネス４７Ｍ"]
[null,null,null,"OCN光サービス（Ｆ）",null,null,null,null,"「Ｂフレッツ」タイプ",null,null,null,null,null,null,"ベーシックタイプ",null,null,null,null,null,null,null,null,null,null,null,"×",null,"×",null,null,"×"]
[null,null,null,null,null,null,null,null,null,null,null,null,null,null,null,"ビジネスタイプ"]
[null,null,null,null,null,null,null,null,"「光ネクスト」タイプ",null,null,null,null,null,null,"ファミリータイプ／ファミリー・ハイスピードタイプ\n／ファミリー・スーパーハイスピードタイプ　隼※1",null,null,null,null,null,null,null,null,null,null,null,"○",null,"○",null,null,"○"]
[null,null,null,null,null,null,null,null,null,null,null,null,null,null,null,"ビジネスタイプ/プライオ１/プライオ１０"]
[null,"IP32",null,"OCN光「フレッツ」",null,null,null,null,"「Ｂフレッツ」プラン",null,null,null,null,null,null,"ビジネスタイプ",null,null,null,null,null,null,null,null,null,null,null,"△",null,"△",null,null,"△"]
[null,null,null,null,null,null,null,null,"「フレッツ光ネクスト」プラン",null,null,null,null,null,null,"ビジネスタイプ/プライオ１０",null,null,null,null,null,null,null,null,null,null,null,"○",null,"○",null,null,"○"]
[null,null,null,"OCN光サービス（Ｆ）",null,null,null,null,"「Ｂフレッツ」タイプ",null,null,null,null,null,null,"ビジネスタイプ",null,null,null,null,null,null,null,null,null,null,null,"×",null,"×",null,null,"×"]
[null,null,null,null,null,null,null,null,"「光ネクスト」タイプ",null,null,null,null,null,null,"ビジネスタイプ/プライオ１０",null,null,null,null,null,null,null,null,null,null,null,"○",null,"○",null,null,"○"]
[null,"IP64",null,"OCN光「フレッツ」",null,null,null,null,"「Ｂフレッツ」プラン",null,null,null,null,null,null,"ビジネスタイプ",null,null,null,null,null,null,null,null,null,null,null,"△",null,"△",null,null,"△"]
[null,null,null,null,null,null,null,null,"「フレッツ光ネクスト」プラン",null,null,null,null,null,null,"ビジネスタイプ/プライオ１０",null,null,null,null,null,null,null,null,null,null,null,"○",null,"○",null,null,"○"]
[null,null,null,"OCN光サービス（Ｆ）",null,null,null,null,"「Ｂフレッツ」タイプ",null,null,null,null,null,null,"ビジネスタイプ",null,null,null,null,null,null,null,null,null,null,null,"×",null,"×",null,null,"×"]
[null,null,null,null,null,null,null,null,"「光ネクスト」タイプ",null,null,null,null,null,null,"ビジネスタイプ/プライオ１０",null,null,null,null,null,null,null,null,null,null,null,"○",null,"○",null,null,"○"]
["○＝提供可能　　　△＝アクセス回線をお客さまでご用意できる場合のみ提供可能　　　×＝提供不可"]
[]
["●OCN第6種 固定IP8／IP16／IP32／IP64の提供条件に関する留意事項（必ずご確認下さい）。"]
["・OCN　IP8／IP16／IP32／IP64のお申込は1タイプにつき1つのOCNサービス契約を申込みいただきます。なお、申込者は1のOCN契約につき1名（1組織）に限ります。"]
["・日本国内で住所、所在地等を確認できるお客様に限ります。"]
["・他のお客様のご迷惑になる行為は制限させていただきます。"]
["・最低ご利用期間は1ヶ月です。月額料金につきましては日割り計算を行います。"]
["・他OCNサービス（個人向けOCNサービス）、第6種「OCN IP１/forVPNプラン」等）から変更（切り替え）するお客さまは、"]
["　変更元サービス専用の廃止申込書にて廃止申込みいただきます。"]
["  本契約申込書にて廃止申し出を受け付けることはできませんのでご注意ください。"]
["・ご利用開始後にご利用場所住所・ご利用場所事業所名に変更が発生した場合は、お客さまにてNTT東日本/ＮＴＴ西日本へ移転申込み実施後、OCNへ変更申込み願います。（(F)タイプ、OCN光【光一括提供型】を除く）"]
[]
["●OCN契約タイプに関する留意事項（必ずご確認下さい）"]
["・本申込書はOCN第6種のフレッツ別契約型、フレッツ一括提供型〔（Ｆ）サービス〕、OCN光【光一括提供型】の契約申込書です。OCNの契約タイプにつきましては以下を参照ください。"]
["・OCNのプランとフレッツのタイプが異なる場合には、通信することができません。"]
["・お申込み頂くOCN光アクセス固定IP8/IP16/IP32/IP64プランは、必ず実際にご利用になるフレッツのタイプと同一のものをお申込み下さい。\n"]
["　※OCN契約タイプを申込まれる前には必ず、NTT東日本／NTT西日本から送付される「お申込内容のご案内」にて、お申込みされたご利用サービス名を必ずご確認の上、お申込み下さい。\n"]
["・認証ドメインの変更有無に関らず、ＮＴＴ東日本/西日本の変更工事完了とともに接続できない状態になる可能性があるため、ＮＴＴ東日本/西日本へのお申込み後に、OCNへ変更申込みを提出してください。"]
["　※ご利用開始後に、契約タイプの間で変更が発生する場合は、OCNへ接続するための認証ドメインが変更となります。"]
[]
[null,"【本申込書で対応するOCN契約タイプ】"]
[null,"＜フレッツ別契約型　＞",null,null,null,null,null,null,null,null,null,null,null,null,null,null,null,null,"＜フレッツ一括提供型〔（Ｆ）サービス〕＞"]
[null,"OCN契約タイプ",null,null,null,null,null,null,null,null,null,null,null,null,null,null,null,null,"OCN契約タイプ"]
[null,"OCN 光「フレッツ」IP8/IP16",null,null,null,null,null,null,null,null,null,null,null,null,null,null,null,null,"OCN光サービスIP8/IP16（F）「フレッツ 光ネクスト」タイプ"]
[null,"OCN 光「フレッツ」IPoE IP8/IP16",null,null,null,null,null,null,null,null,null,null,null,null,null,null,null,null,"OCN光サービスIP32/IP64（F）「フレッツ 光ネクスト」ビジネスタイプ"]
[null,"OCN 光「フレッツ」IPoE クロス IP8/IP16"]
[null,"OCN　光「フレッツ」　IP32/IP64　ビジネスタイプ"]
[]
[null,"＜OCN光【光一括提供型】＞"]
[null,"OCN契約タイプ"]
[null,"OCN 光 100M IP8/IP16"]
[null,"OCN 光 200M IP8/IP16"]
[null,"OCN 光 1G IP8/IP16"]
[null,"OCN 光 IPoE 100M IP8/IP16"]
[null,"OCN 光 IPoE 200M IP8/IP16"]
[null,"OCN 光 IPoE 1G IP8/IP16"]
[]
["●フレッツ一括提供型〔（Ｆ）サービス〕）に関する留意事項（必ずご確認下さい）"]
["・お客さまのご利用場所住所がフレッツサービスの提供エリアであることを、予めご確認の上、お申込み下さい。"]
["・NTT東日本・西日本が提供するフレッツ回線設置工事については、標準日程の設定はありません。\n　"]
["・光サービスの場合、ご利用開始までに必要な日数として、お申込みいただいた日付から１．５ヶ月が目安となりますが、収容設備の空き状況等によりご利用開始までに数ヶ月必要となる場合がありますのでご了承ください。"]
["・既設フレッツサービスを本サービスで継続してご利用いただくことはできません（設備充当不可）。"]
["・フレッツ一括提供型〔（F)サービス〕で、光のアクセスタイプ（フレッツ光ネクスト等）をお申込の場合"]
["　　「光サービス受付票」と「OCN 光サービス（F）用保守申込書」を合わせてお申込み下さい。"]
[]
["●付加サービスに関する留意事項（必ずご確認下さい）"]
["本回線に合わせて、以下の付加サービスをご利用のお客様は、該当の付加サービス申込書と合わせてお申込み下さい。また、その他の付加サービスにつきましてはOCNサービスのホームページ（http://www.ntt.com/business/services/network/internet-connect/ocn-business.html）でご確認下さい。"]
[]
["●レンタル機器について"]
["・","お客様による設定変更はできません。（IPoE対応ルータ01を除く）"]
[null,"その為、お客様のネットワーク環境の見直し等の理由により、設定変更が必要となった場合は変更申込みが必要となり、変更申込書および設定調書の提出が"]
[null,"必要です。なお、設定変更には変更工事費が必要となります。"]
["・","日本国内のみ利用が可能です。"]
["・","SLAの対象外です。"]
[null,"レンタル機器故障等の理由により、SLAが適用されるOCNサービスが利用できない状況が生じた場合も、ご利用料金の減額、返還はいたしません。"]
["・","弊社の都合により予告なく変更になる場合があります。"]
["・","レンタル機器設置工事日に、アクセスライン工事未完了等の理由により、機器設置工事が実施できず再工事が発生した場合には、再工事実施時間帯に応じた"]
[null,"工事料金を加算請求します。"]
["・","レンタル機器の工事をお客様設置にてお申込みの場合、レンタル機器到着後、ご利用開始日までに、通信ができることの確認を実施してください。"]
[null,"ご利用開始日以降にレンタル機器に異常があることが確認された場合、ご利用料金の返還、減額はいたしません。"]
[null,"また、お客様のご都合により、レンタル機器のお受け取りができなかった場合も、ご利用料金の返還、減額はいたしません。"]
[]
["●サブドメインに関する留意事項（必ずご確認下さい）"]
["・","OCNサブドメインは●●●-unet.ocn.ne.jpとなります。"]
["・","独自ドメインを、本サービス利用のドメインとしてお申込みいただくことはできません。"]
["・","サブドメインの申請につきましては文字数や利用できる文字に制限があります。"]
["・","他のお客さまと重複する場合がありますので、第１～第３希望までご記入下さい。"]
[]
["●独自ドメインに関する留意事項（必ずご確認下さい）"]
["・","日本語ドメイン等の国際化ドメイン名はご利用いただけませんので、あらかじめご了承ください。  "]
["・","マイアドレスプラス（個人向けOCNサービス）で取得された独自ドメイン（●●●.JP）やOCNサブドメイン（***.ocn.ne.jp）を、本サービスの利用ドメインとしてお申込みいただくことはできません。また、固定IP8のOCNサブドメイン（●●●-unet.ocn.ne.jp等）のご利用もできません。"]
["・","独自ドメインをお持ちでない場合、本サービスでご利用いただくことを前提として、OCNでドメイン代行申請を行うことができます。"]
[null,"代行申請可能なドメイン種別、及び代行申請の方針については、\nOCNホームページ（http://www.ntt.com/business/services/network/internet-connect/ocn-business.html）を必ずご確認下さい。"]
["・","OCN回線の新規ご契約と合わせて指定事業者変更をお申込みいただく場合は、書面でのお申込となりますので予めご了承下さい。\n以下のURLから申請書をダウンロードしメール・郵送にてお申込下さい。"]
["　　URL：https://www.ntt.com/business/services/network/internet-connect/ocn-business/ni/download.html"]
["・","指定事業者がOCN以外の場合、お客さまからOCNへ「ネームサーバ登録」「レジストリデータベース情報」の登録、変更を依頼されましても対応できませんことを了承願います。"]
["・","本契約を独自ドメインにて利用される場合、そのドメインでメール＆ウェブのDNS機能をお申込みいただくことはできません。お客様でDNSサーバをご用意いただくか、OCNサブドメイン利用としていただく必要があります（メール＆ウェブのDNS機能に本契約回線の接続に関する情報を管理、設定する機能がありません）。お客様でDNSサーバをご用意いただく場合は、お客さまＤＮＳ設定情報等の情報をご記入ください。お客さまでDNSサーバを用意いただけない場合は、ご利用ドメイン形態を「OCNサブドメインご利用」でお申込ください。　"]
[]
[]
["　"]
["＜代行申請に必要取得申請書＞"]
["ドメインの代行申請の場合は本申込書の該当の申請書に記入をお願いします。"]
[null,"ドメイン種別",null,null,null,null,null,null,null,"ドメイン属性",null,null,null,null,null,"例",null,null,null,null,"ドメイン代行に必要な書類"]
[null,"属性型JPドメイン",null,null,null,null,null,null,null,"GR.JPドメイン",null,null,null,null,null,"example.gr.jp",null,null,null,null,"・属性型ＪＰドメイン名代行登録申請書\n・GRドメイン登録申請書（JPRS郵送用）\n・印鑑証明書"]
[null,null,null,null,null,null,null,null,null,"NE.JPドメイン",null,null,null,null,null,"example.ne.jp",null,null,null,null,"・属性型ＪＰドメイン名代行登録申請書\n・NEドメイン登録申請書（JPRS郵送用）\n・印鑑証明書"]
[null,null,null,null,null,null,null,null,null,"GR.NEドメイン以外",null,null,null,null,null,"example.co.jp等",null,null,null,null,"・属性型ＪＰドメイン名代行登録申請書"]
[null,"汎用・都道府県型JPドメイン",null,null,null,null,null,null,null,"-",null,null,null,null,null,"example.jp\nexample.tokyo.jp等",null,null,null,null,"・汎用・都道府県型JPドメイン代行登録申請書"]
[null,"LG.JPドメイン",null,null,null,null,null,null,null,"-",null,null,null,null,null,"example.lg.jp",null,null,null,null,"弊社ではお申込みできません。"]
[null,"gTLDドメイン（.com/.net./org）",null,null,null,null,null,null,null,"-",null,null,null,null,null,"example.com",null,null,null,null,"・ｇTLD（.com/.net./org）ドメイン名代行登録申請書"]
["●IP32/IP64をお申込みされる場合は、別紙「ネットワーク構成図」もあわせて提出願います。"]

{"sheet":"基本情報","index":1,"n_rows":118,"n_cols":60,"rows_kept":118,"cut":false,"hidden":false,"merged":[[38,0,38,51],[39,0,39,12],[39,13,39,32],[40,0,40,12],[40,13,40,32],[41,0,41,12],[41,13,41,32],[39,33,39,51],[40,33,40,51],[41,33,41,51],[98,13,98,32],[98,33,98,51],[87,33,87,51],[89,13,89,32],[89,33,89,51],[90,13,90,32],[90,33,90,51],[100,0,100,12],[100,13,100,32],[100,33,100,51],[92,0,92,12],[92,13,92,51],[96,0,96,12],[96,13,96,32],[96,33,96,51],[97,0,97,12],[97,13,97,32],[97,33,97,51],[99,0,99,12],[99,13,99,32],[99,33,99,51],[93,0,93,12],[93,13,93,51],[88,13,88,32],[83,6,83,12],[84,6,84,12],[85,6,85,12],[86,6,86,12],[87,6,90,7],[87,8,87,12],[90,8,90,12],[89,8,89,12],[98,0,98,12],[88,8,88,12],[82,33,82,51],[83,13,83,32],[83,33,83,51],[84,13,84,40],[84,41,84,51],[85,13,85,32],[85,33,85,51],[86,13,86,32],[86,33,86,51],[82,13,82,32],[87,13,87,32],[77,8,77,12],[76,8,76,12],[78,0,78,51],[80,0,81,5],[81,6,81,12],[80,6,80,12],[80,13,80,32],[80,33,80,51],[81,13,81,32],[81,33,81,51],[69,0,77,5],[69,13,69,32],[69,33,69,51],[69,6,69,12],[70,6,70,12],[70,13,70,32],[70,33,70,51],[71,6,71,12],[82,0,90,5],[82,6,82,12],[71,13,71,40],[71,41,71,51],[72,6,72,12],[72,13,72,32],[77,33,77,51],[72,33,72,51],[73,6,73,12],[73,13,73,32],[73,33,73,51],[74,6,74,12],[74,13,74,32],[74,33,74,51],[75,6,75,12],[75,13,75,32],[75,33,75,51],[76,33,76,51],[76,6,77,7],[76,13,76,32],[77,13,77,32],[63,0,63,51],[64,0,64,12],[64,13,64,32],[64,33,64,51],[65,0,65,51],[67,0,67,12],[67,13,67,32],[67,33,67,51],[68,0,68,12],[68,13,68,32],[68,33,68,51],[66,0,66,51],[20,6,20,12],[19,6,19,12],[18,6,18,12],[18,0,21,5],[34,13,34,32],[34,33,34,51],[34,0,34,12],[18,13,18,32],[18,33,18,51],[19,13,19,40],[19,41,19,51],[20,13,20,32],[20,33,20,51],[21,13,21,32],[21,33,21,51],[33,0,33,12],[33,13,33,32],[33,33,33,51],[24,13,24,32],[24,33,24,51],[30,0,30,12],[28,0,28,51],[54,0,56,5],[54,6,54,12],[55,6,55,12],[56,6,56,12],[55,33,55,51],[47,33,47,51],[48,33,48,51],[49,41,49,51],[50,33,50,51],[47,0,53,5],[48,6,48,12],[49,6,49,12],[50,6,50,12],[51,6,51,12],[47,6,47,12],[53,6,53,12],[43,0,44,5],[43,6,43,12],[44,6,44,12],[61,13,61,32],[61,33,61,51],[50,13,50,32],[51,13,51,32],[52,13,52,32],[53,13,53,32],[54,13,54,32],[55,13,55,32],[56,13,56,32],[59,13,59,32],[59,33,59,51],[43,13,43,32],[43,33,43,51],[44,13,44,32],[44,33,44,51],[54,33,54,51],[51,33,51,51],[52,33,52,51],[53,33,53,51],[45,0,45,51],[52,6,52,12],[2,28,2,31],[2,32,2,39],[2,40,2,43],[2,44,2,51],[13,0,13,12],[13,13,13,32],[13,33,13,51],[12,0,12,51],[25,13,25,32],[25,33,25,51],[14,0,14,5],[14,6,14,51],[23,13,23,32],[15,0,15,12],[15,13,15,38],[16,0,16,12],[16,13,16,38],[22,0,22,51],[4,0,4,51],[10,0,10,12],[9,0,9,12],[17,0,17,5],[17,6,17,51],[21,6,21,12],[9,33,9,51],[9,13,9,32],[10,13,10,32],[10,33,10,51],[30,13,30,32],[37,0,37,12],[37,13,37,32],[37,33,37,51],[15,39,16,42],[16,43,16,51],[15,43,15,51],[26,13,26,32],[26,33,26,51],[30,33,30,51],[29,0,29,51],[31,33,31,51],[32,13,32,32],[32,33,32,51],[11,13,11,32],[11,33,11,51],[11,0,11,12],[23,33,23,51],[35,0,35,12],[35,13,35,32],[42,0,42,51],[105,6,105,12],[105,13,105,32],[105,33,105,51],[91,0,91,51],[32,0,32,12],[31,0,31,12],[31,13,31,32],[56,33,56,51],[57,0,57,51],[58,13,58,32],[58,33,58,51],[47,13,47,32],[48,13,48,32],[49,13,49,40],[105,0,111,5],[95,0,95,51],[60,13,60,32],[60,33,60,51],[62,13,62,32],[35,33,35,51],[36,0,36,51],[62,33,62,51],[101,0,101,12],[101,13,101,32],[101,33,101,51],[102,0,102,12],[102,13,102,32],[102,33,102,51],[108,6,108,12],[108,13,108,32],[113,0,117,5],[113,6,113,12],[113,13,113,32],[113,33,113,51],[114,6,114,12],[114,13,114,32],[114,33,114,51],[115,6,115,12],[115,13,115,32],[115,33,115,51],[116,6,116,12],[116,13,116,32],[116,33,116,51],[117,6,117,12],[117,13,117,32],[117,33,117,51],[109,6,109,12],[109,13,109,32],[106,6,106,12],[106,13,106,32],[106,33,106,51],[107,6,107,12],[107,13,107,32],[107,33,107,51],[109,33,109,51],[108,33,108,51],[79,0,79,51],[104,0,104,51],[112,0,112,51],[5,1,6,51],[7,1,7,51],[23,0,26,5],[23,6,23,12],[24,6,24,12],[25,6,25,12],[26,6,26,12],[46,0,46,51],[58,0,62,5],[58,6,58,12],[59,6,59,12],[60,6,60,12],[61,6,61,12],[62,6,62,12],[88,33,88,51],[110,6,110,12],[110,13,110,32],[110,33,110,51],[111,6,111,12],[111,13,111,32],[111,33,111,51]]}
[null,null,null,null,null,null,null,null,null,null,null,null,null,null,null,null,null,null,null,null,null,null,null,null,null,null,null,null,null,null,null,null,null,null,null,null,null,null,null,null,null,null,null,null,null,null,null,null,null,null,null,{"$f":"CONCATENATE(BC1,BD1,BE1,BF1)","v":"Ver.1.14A(2025/4/30)"},null,null,"Ver.","1.14","A","(2025/4/30)"]
[null,null,null,null,null,null,null,null,null,null,null,null,null,null,null,null,null,null,null,null,null,null,null,null,null,null,null,null,null,null,null,null,null,null,null,null,null,null,null,null,null,null,null,null,null,null,null,null,null,null,null,null,null,null,"サービス","IP8以上",{"$f":"IF($BD$2=\"forVPNライト\",1,IF($BD$2=\"IP1/forVPN\",2,IF($BD$2=\"IP8以上\",3,2)))","v":3}]
[null,null,null,null,null,null,null,null,null,null,null,null,null,null,null,null,null,null,null,null,null,null,null,null,null,null,null,null,"オーダ管理番号",null,null,null,null,null,null,null,null,null,null,null,"オーダ登録番号",null,null,null,null,null,null,null,null,null,null,null,null,null,"異動種別","新設","-"]
[]
["第６種オープンコンピュータ通信網サービス　IP8/IP16/IP32/IP64　契約申込書（新規）"]
[null,"NTTコミュニケーションズ株式会社の定める｢IP通信網サービス契約約款（https://www.ntt.com/about-us/disclosure/tariff/yakkan/ip.html）｣｢重要事項に関する説明｣｢各種利用規約｣｢お申込みに関する注意事項｣の内容について承諾の上、下記のとおり申し込みます｡個人情報の取扱いについては、「プライバシーポリシー（https://www.ntt.com/about-us/hp/privacy.html）」の内容を承諾します。",null,null,null,null,null,null,null,null,null,null,null,null,null,null,null,null,null,null,null,null,null,null,null,null,null,null,null,null,null,null,null,null,null,null,null,null,null,null,null,null,null,null,null,null,null,null,null,null,null,null,null,null,"アクセスタイプ：(F)","アクセスタイプ：光コラボ","回線が光ネクスト","フレッツ・ISDN","forVPN/動的IP\nかつ光コラボ","IPoEメニュー"]
[null,null,null,null,null,null,null,null,null,null,null,null,null,null,null,null,null,null,null,null,null,null,null,null,null,null,null,null,null,null,null,null,null,null,null,null,null,null,null,null,null,null,null,null,null,null,null,null,null,null,null,null,null,null,{"$f":"COUNTIF($N$33,\"*(F)*\")>0","v":false},{"$f":"COUNTIF($N$33,\"*OCN光【光一括提供型】*\")>0","v":false},{"$f":"COUNTIF($BD$34,\"*hn*\")>0","v":false},{"$f":"$N$33=\"フレッツ・ISDN\"","v":false},{"$f":"$BD$34=\"forVPNhnc\"","v":false},{"$f":"COUNTIF($N$33,\"*IPoE*\")>0","v":false}]
[null,"※必ずチェックを入れてください。チェックがない場合はお申込みいただけません。"]
[]
["お申込年月日（必須）",null,null,null,null,null,null,null,null,null,null,null,null,null,null,null,null,null,null,null,null,null,null,null,null,null,null,null,null,null,null,null,null,"YYYY/MM/DD（半角）"]
["開通希望年月日（必須）",null,null,null,null,null,null,null,null,null,null,null,null,null,null,null,null,null,null,null,null,null,null,null,null,null,null,null,null,null,null,null,null,"YYYY/MM/DD（半角）\n※OCNサービスの課金開始日となります。\n※ドメイン代行申請の種類により標準納期は異なります。\n※手続き上、お客様のご利用開始希望年月日に添えない場合があります。\n※直前において変更や取下げをされた場合、工事キャンセル費を請求することがあります。\n\n【IPoEプランについて】\n※端末種別、およびドメイン代行申請の種類により標準納期は異なります。\n※フレッツ回線新規（又はOCN光における光回線新規）と同時の場合、OCN開通希望年月日はフレッツ回線（光回線）工事日の「２営業日後」以降の土日祝日を除く日付をご記入ください。\n\n【（Ｆ）について】\n・フレッツ回線工事希望日の１営業日後を基本とします。\n・ドメイン代行申請には概ねNTT東日本/西日本会社のアクセス回線工事の確定後、\n  11営業日～16営業日が必要となります。"]
["お客さま番号",null,null,null,null,null,null,null,null,null,null,null,null,null,null,null,null,null,null,null,null,null,null,null,null,null,null,null,null,null,null,null,null,"※記入不要（ＮＴＴ－Ｃｏｍ記入欄）"]
["【弊社記入欄】 共通顧客ID"]
["共通顧客ID（必須）",null,null,null,null,null,null,null,null,null,null,null,null,null,null,null,null,null,null,null,null,null,null,null,null,null,null,null,null,null,null,null,null,"C＋半角数字10桁"]
["ご契約者名",null,null,null,null,null,"※新規開通時（開通後にご契約者名の変更をOCNにしている場合はその名義）に申込まれた名義をご記入ください。\n　または登記簿謄本（抄本）に登録されているご契約者名をご記入ください。\n※本申込書には必ず押印をお願い致します。"]
["フリガナ（必須）",null,null,null,null,null,null,null,null,null,null,null,null,null,null,null,null,null,null,null,null,null,null,null,null,null,null,null,null,null,null,null,null,null,null,null,null,null,null,null,null,null,null,"全角35桁以内"]
["契約者名（必須）",null,null,null,null,null,null,null,null,null,null,null,null,null,null,null,null,null,null,null,null,null,null,null,null,null,null,null,null,null,null,null,null,null,null,null,null,null,null,null,null,null,null,"全角40桁以内\n※正式名称を40文字以内でご記入いただきますが、弊社の都合により、名称を省略させていただくことがありますので、ご了承ください。"]
["ご契約者住所",null,null,null,null,null,"※個人の場合は戸籍上のご住所、法人の場合は登記簿上のご住所を記入ください。"]
["ご住所（必須）",null,null,null,null,null,"郵便番号（必須）",null,null,null,null,null,null,null,null,null,null,null,null,null,null,null,null,null,null,null,null,null,null,null,null,null,null,"半角数字７桁"]
[null,null,null,null,null,null,"ご住所（必須）",null,null,null,null,null,null,null,null,null,null,null,null,null,null,null,null,null,null,null,null,null,null,null,null,null,null,null,null,null,null,null,null,null,null,"全角46桁以内\n※住所を都道府県からご記入ください。"]
[null,null,null,null,null,null,"番地（必須）",null,null,null,null,null,null,null,null,null,null,null,null,null,null,null,null,null,null,null,null,null,null,null,null,null,null,"全角20桁以内"]
[null,null,null,null,null,null,"ビル名等",null,null,null,null,null,null,null,null,null,null,null,null,null,null,null,null,null,null,null,null,null,null,null,null,null,null,"全角20桁以内"]
["事務担当者＜お申込に関するご連絡先＞"]
["連絡先",null,null,null,null,null,"部課名",null,null,null,null,null,null,null,null,null,null,null,null,null,null,null,null,null,null,null,null,null,null,null,null,null,null,"全角20桁以内"]
[null,null,null,null,null,null,"担当者名（必須）",null,null,null,null,null,null,null,null,null,null,null,null,null,null,null,null,null,null,null,null,null,null,null,null,null,null,"全角10桁以内"]
[null,null,null,null,null,null,"電話番号（必須）",null,null,null,null,null,null,null,null,null,null,null,null,null,null,null,null,null,null,null,null,null,null,null,null,null,null,"ハイフンを含む半角10桁～13桁\n（数字、ハイフンのみ）"]
[null,null,null,null,null,null,"e-mail（必須）",null,null,null,null,null,null,null,null,null,null,null,null,null,null,null,null,null,null,null,null,null,null,null,null,null,null,"半角英数64桁以内\n※ご契約に関する連絡用として、既存のメールアドレスをご記入ください。\n※ご担当者が複数の場合は、カンマで区切りで記入ください。"]
[]
["お申込みタイプ"]
["【ご注意】\n※必要ＩＰアドレス数は、後述「ＩＰアドレス申請書」へ記入された「ネットワークプラン」サーバ等の台数に応じて割当を実施します。\n本項目で選択された個数と「ＩＰアドレス割当申請書」に記入された内容が相違している場合は、選択されたプランでの提供ができない場合がありますのでご注意下さい。\n\n【契約タイプについて】\n※以下で選択いただいたＮＴＴ東日本/ＮＴＴ西日本会社の提供するフレッツの「アクセスタイプ」によりOCNの提供メニューを決定いたします。\n※ＮＴＴ東日本/ＮＴＴ西日本会社のアクセスタイプとOCN契約タイプが不一致の場合は通信が出来ませんので、ご注意下さい。\n　（「OCN契約タイプ」や「IP種別」、「ＮＴＴ東日本/NTT西日本会社のアクセスタイプ」が変更となった場合は必ずご連絡ください。）\n\n※NTT東日本のフレッツ 光ネクスト ギガファミリー/ギガマンション・スマートタイプ、ファミリー/マンション・ギガラインタイプをご利用される場合は、対応する契約タイプをご選択ください。\n　 ハイスピードタイプ等、異なる契約タイプを選択された場合は通信が出来ませんのでご注意願います。"]
["IP種別（必須）",null,null,null,null,null,null,null,null,null,null,null,null,null,null,null,null,null,null,null,null,null,null,null,null,null,null,null,null,null,null,null,null,"選択してください"]
["ご利用ドメイン形態（必須）",null,null,null,null,null,null,null,null,null,null,null,null,null,null,null,null,null,null,null,null,null,null,null,null,null,null,null,null,null,null,null,null,"選択してください\n※IP8は、「OCNサブドメインご利用」、「お客様独自ドメインご利用」、「ドメイン利用なし」のいずれかを選択してください。\n※「OCNサブドメインご利用」を選択の場合は、「OCNサブドメイン情報」にご記入ください。\n※「お客様独自ドメインご利用」を選択の場合は、「お客さまＤＮＳ設定情報」にご記入ください。\n※IP16/IP32/IP64は、OCNサブドメインをご利用いただくことはできません。",null,null,null,null,null,null,null,null,null,null,null,null,null,null,null,null,null,null,null,null,"ご利用ドメイン形態\n【リスト】",{"$f":"IF($N$31=\"IP8\",\"list_dmainUtilityform_1\",IF(OR($N$31=\"IP16\",$N$31=\"IP32\",$N$31=\"IP64\"),\"list_dmainUtilityform_2\",\"null\"))","v":"null"},"ご利用ドメイン形態\n【条件付き書式】",{"$f":"OR($N$31=\"\",AND($N$31<>\"\",$BD$32<>\"null\"))","v":true}]
["アクセスタイプ（必須）",null,null,null,null,null,null,null,null,null,null,null,null,null,null,null,null,null,null,null,null,null,null,null,null,null,null,null,null,null,null,null,null,"選択してください\n※(F)サービスを選択の場合、本申込書へのご記入に加え、「フレッツ受付票」と「OCN 光サービス(F)用保守申込書」のご記入をお願いします。",null,null,null,null,null,null,null,null,null,null,null,null,null,null,null,null,null,null,null,null,"アクセスタイプ\n【リスト】",{"$f":"IF(OR($N$31=\"IP32\",$N$31=\"IP64\"),\"list_AL_4\",IF($N$31=\"forVPNライト\",\"list_AL_3\",IF($N$31=\"動的1to1\",\"list_AL_2\",\"list_AL_1\")))","v":"list_AL_1"},null,null,"契約タイプ制御用\n合体名",{"$f":"__\\osApptypeIpTypeCd&__\\osApptypeAccesstypeCd","v":""}]
["契約タイプ（必須）",null,null,null,null,null,null,null,null,null,null,null,null,null,null,null,null,null,null,null,null,null,null,null,null,null,null,null,null,null,null,null,null,"選択してください",null,null,null,null,null,null,null,null,null,null,null,null,null,null,null,null,null,null,null,null,"契約タイプ\n【リスト】",{"$f":"IF(ISERROR(VLOOKUP($BH$33,変換!$B:$C,2,FALSE)),\"null\",VLOOKUP($BH$33,変換!$B:$C,2,FALSE))","v":"null"},"契約タイプ\n【条件付き書式】",{"$f":"$N$33<>\"フレッツ・ISDN\"","v":true}]
["OCN提供メニュー",null,null,null,null,null,null,null,null,null,null,null,null,{"$f":"IF(ISERROR(VLOOKUP(BH35,OCNメニュー!E:G,2,FALSE)),\"\",VLOOKUP(BH35,OCNメニュー!E:G,2,FALSE))","v":""},null,null,null,null,null,null,null,null,null,null,null,null,null,null,null,null,null,null,null,"記入不要",null,null,null,null,null,null,null,null,null,null,null,null,null,null,null,null,null,null,null,null,null,null,null,null,"提供メニュー/認証ドメイン\n検索用",{"$f":"__\\osApptypeIpTypeCd&__\\osApptypeAccesstypeCd&__\\osApptypeContracttypeCd","v":""}]
["OCN認証ドメイン",null,null,null,null,null,null,null,null,null,null,null,null,{"$f":"IF(ISERROR(VLOOKUP(BH35,OCNメニュー!E:G,3,FALSE)),\"\",VLOOKUP(BH35,OCNメニュー!E:G,3,FALSE))","v":""},null,null,null,null,null,null,null,null,null,null,null,null,null,null,null,null,null,null,null,"記入不要"]
["２年自動更新型割引"]
["2年自動更新型割引希望有無（必須）",null,null,null,null,null,null,null,null,null,null,null,null,null,null,null,null,null,null,null,null,null,null,null,null,null,null,null,null,null,null,null,null,"※IP８/IP16のOCN光【光一括提供型】サービスを選択の場合は、希望有無を選択してください。",null,null,null,null,null,null,null,null,null,null,null,null,null,null,null,null,null,null,null,null,null,null,"2年自動更新型割引希望有無\n【条件付き書式】",{"$f":"OR($BD$7=TRUE,AND($BF$7=FALSE,$BD$34=\"null\"))","v":true}]
["お申込みパターン"]
["アクセス充当\n（必須）",null,null,null,null,null,null,null,null,null,null,null,null,null,null,null,null,null,null,null,null,null,null,null,null,null,null,null,null,null,null,null,null,"※OCN光【光一括提供型】サービスをお申込みの場合、選択してください。\n※6種OCN（F）サービスからフレッツ回線(光回線)を充当する場合のみ「有」をご選択ください。",null,null,null,null,null,null,null,null,null,null,null,null,null,null,null,null,null,null,null,null,"アクセス充当\n【リスト】","list_Presence","アクセス充当\n【条件付き書式】",{"$f":"OR($N$33=\"\",$BD$7=TRUE)","v":true}]
["回線充当区分\n（必須）",null,null,null,null,null,null,null,null,null,null,null,null,null,null,null,null,null,null,null,null,null,null,null,null,null,null,null,null,null,null,null,null,"選択してください\n※アクセス充当が「有」の場合、入力必須です。",null,null,null,null,null,null,null,null,null,null,null,null,null,null,null,null,null,null,null,null,"回線充当区分\n【リスト】","list_lineAllotCategory","回線充当区分\n【条件付き書式】",{"$f":"OR($N$33=\"\",AND($BD$7=TRUE,$N$40<>\"無\"))","v":true}]
["充当元回線情報\n（必須）",null,null,null,null,null,null,null,null,null,null,null,null,null,null,null,null,null,null,null,null,null,null,null,null,null,null,null,null,null,null,null,null,"選択してください\n※アクセス充当が「有」の場合、入力必須です。\n　 充当元のNで始まるお客様契約番号をご記入ください。",null,null,null,null,null,null,null,null,null,null,null,null,null,null,null,null,null,null,null,null,null,null,"充当元回線情報\n【条件付き書式】",{"$f":"$BF$41","v":true}]
["NTT東日本/西日本　フレッツサービス申込み状況　 ※OCN光【光一括提供型】、（F）サービスを選択の方以外、ご記入ください。"]
["NTT東日本／NTT西日本フレッツ申込み状況",null,null,null,null,null,"開通済み／申込済み\n（必須）",null,null,null,null,null,null,null,null,null,null,null,null,null,null,null,null,null,null,null,null,null,null,null,null,null,null,"選択してください\n※お申込み時点でフレッツ回線が既に開通している場合は「開通済み」、フレッツ回線をお申込み済みでお申込み時点で未開通の場合は「申込済み」を選択してください。\n※OCN光アクセス「Ｂフレッツ」(フレッツ別契約型)については、お客さまでアクセス回線がご用意できる場合のみ提供となります。詳しくはＮＴＴ東日本・西日本会社へご確認ください。",null,null,null,null,null,null,null,null,null,null,null,null,null,null,null,null,null,null,null,null,null,null,"申込み状況\n【条件付き書式】",{"$f":"OR($N$33=\"\",AND($N$33<>\"\",$BC$7<>TRUE,$BD$7<>TRUE))","v":true}]
[null,null,null,null,null,null,"開通予定日\n（申込済み）（必須）",null,null,null,null,null,null,null,null,null,null,null,null,null,null,null,null,null,null,null,null,null,null,null,null,null,null,"YYYY/MM/DD（半角）\n※「申込済み」を選択の場合ご記入して下さい。\n※「NTT東日本会社/NTT西日本会社のアクセスタイプが既に開通済み」または「アクセスタイプがNTT東日本会社/NTT西日本会社へ申込済みであり、工事日予定日が確定」であることが、本サービスの提供条件となることをご了承ください。",null,null,null,null,null,null,null,null,null,null,null,null,null,null,null,null,null,null,null,null,null,null,"開通予定日\n【条件付き書式】",{"$f":"OR($N$44=\"\",$N$44<>\"開通済み\")","v":true}]
["ご利用場所　※（F）サービスを選択の方は、別紙の「フレッツ受付票」にご記入ください。",null,null,null,null,null,null,null,null,null,null,null,null,null,null,null,null,null,null,null,null,null,null,null,null,null,null,null,null,null,null,null,null,null,null,null,null,null,null,null,null,null,null,null,null,null,null,null,null,null,null,null,null,null,null,null,"ご利用場所全項目\n【条件付き書式】",{"$f":"OR($N$33=\"\",$BC$7<>TRUE)","v":true}]
["■ご注意\n※ご利用場所の住所、電話番号を必ずご記入ください。"]
["ご利用場所",null,null,null,null,null,"コピーリスト（必須）",null,null,null,null,null,null,null,null,null,null,null,null,null,null,null,null,null,null,null,null,null,null,null,null,null,null,"選択してください"]
[null,null,null,null,null,null,"郵便番号（必須）",null,null,null,null,null,null,null,null,null,null,null,null,null,null,null,null,null,null,null,null,null,null,null,null,null,null,"半角数字７桁",null,null,null,null,null,null,null,null,null,null,null,null,null,null,null,null,null,null,null,null,null,null,"ご利用場所\n郵便番号～ビル名\n【条件付き書式】",{"$f":"AND($BF$46=TRUE,OR($N$48=\"\",$N$48=\"次のとおり\"))","v":true}]
[null,null,null,null,null,null,"ご住所（必須）",null,null,null,null,null,null,null,null,null,null,null,null,null,null,null,null,null,null,null,null,null,null,null,null,null,null,null,null,null,null,null,null,null,null,"全角46桁以内\n※NTT東日本／西日本会社の提供するフレッツサービスを設置される住所を記入ください。"]
[null,null,null,null,null,null,"番地（必須）",null,null,null,null,null,null,null,null,null,null,null,null,null,null,null,null,null,null,null,null,null,null,null,null,null,null,"全角20桁以内"]
[null,null,null,null,null,null,"ビル名等",null,null,null,null,null,null,null,null,null,null,null,null,null,null,null,null,null,null,null,null,null,null,null,null,null,null,"全角20桁以内\n※フロア数まで記入ください。\n※ご利用場所住所内に複数のビルが存在する場合は、必ずご記入ください。"]
[null,null,null,null,null,null,"事業所名",null,null,null,null,null,null,null,null,null,null,null,null,null,null,null,null,null,null,null,null,null,null,null,null,null,null,"全角20桁以内\n※ご利用場所の会社名がご契約者名と相違がある場合は、必ずご記入ください。",null,null,null,null,null,null,null,null,null,null,null,null,null,null,null,null,null,null,null,null,null,null,"ご利用場所事業所名\n【条件付き書式】",{"$f":"OR($N$33=\"\",$BC$7<>TRUE)","v":true}]
[null,null,null,null,null,null,"電話番号（必須）",null,null,null,null,null,null,null,null,null,null,null,null,null,null,null,null,null,null,null,null,null,null,null,null,null,null,"ハイフンを含む半角10桁～13桁（数字、ハイフンのみ）\n※お客様収容設備を本電話番号（NTT東西会社の加入電話）で決定しますので、必ず記入ください。未記入の場合は受付できませんので、ご注意ください。（携帯電話、ＰＨＳ番号は記入いただけません）\n新設のビル等で、電話番号が決まっていない場合はダミー番号での記入も可能です。",null,null,null,null,null,null,null,null,null,null,null,null,null,null,null,null,null,null,null,null,null,null,"ご利用場所電話番号\n【条件付き書式】",{"$f":"OR($N$33=\"\",AND($BC$7<>TRUE,COUNTIF($N$31,\"*forVPN*\")=0))","v":true}]
["ご利用場所に関する\nご連絡先",null,null,null,null,null,"コピーリスト（必須）",null,null,null,null,null,null,null,null,null,null,null,null,null,null,null,null,null,null,null,null,null,null,null,null,null,null,"選択してください",null,null,null,null,null,null,null,null,null,null,null,null,null,null,null,null,null,null,null,null,null,null,"ご利用場所連絡先\n【条件付き書式】",{"$f":"OR($N$33=\"\",$BC$7<>TRUE)","v":true}]
[null,null,null,null,null,null,"お名前（必須）",null,null,null,null,null,null,null,null,null,null,null,null,null,null,null,null,null,null,null,null,null,null,null,null,null,null,"全角10桁以内",null,null,null,null,null,null,null,null,null,null,null,null,null,null,null,null,null,null,null,null,null,null,"ご利用場所連絡先\nお名前\n【条件付き書式】",{"$f":"AND($BF$46=TRUE,OR($N$55=\"\",$N$55=\"次のとおり\"))","v":true}]
[null,null,null,null,null,null,"電話番号（必須）",null,null,null,null,null,null,null,null,null,null,null,null,null,null,null,null,null,null,null,null,null,null,null,null,null,null,"ハイフンを含む半角10桁～13桁\n（数字、ハイフンのみ）",null,null,null,null,null,null,null,null,null,null,null,null,null,null,null,null,null,null,null,null,null,null,"ご利用場所連絡先\n電話番号\n【条件付き書式】",{"$f":"AND($BF$46=TRUE,OR($N$55=\"\",$N$55=\"次のとおり\"))","v":true}]
["技術担当者　※故障等緊急時や認証ID／PW再通知申請等重要なお知らせ時の連絡先として使用します。"]
["技術担当者情報",null,null,null,null,null,"コピーリスト（必須）",null,null,null,null,null,null,null,null,null,null,null,null,null,null,null,null,null,null,null,null,null,null,null,null,null,null,"選択してください",null,null,null,null,null,null,null,null,null,null,null,null,null,null,null,null,null,null,null,null,"技術担当者コピーリスト\n【リスト】",{"$f":"IF($N$48=\"次のとおり\",\"list_nwTechnology_1\",\"list_nwTechnology_2\")","v":"list_nwTechnology_2"}]
[null,null,null,null,null,null,"担当者名（必須）",null,null,null,null,null,null,null,null,null,null,null,null,null,null,null,null,null,null,null,null,null,null,null,null,null,null,"全角10桁以内",null,null,null,null,null,null,null,null,null,null,null,null,null,null,null,null,null,null,null,null,null,null,"技術担当者\n担当者名・電話番号\n【条件付き書式】",{"$f":"OR($N$59=\"\",$N$59=\"次のとおり\")","v":true}]
[null,null,null,null,null,null,"電話番号（必須）",null,null,null,null,null,null,null,null,null,null,null,null,null,null,null,null,null,null,null,null,null,null,null,null,null,null,"ハイフンを含む半角10桁～13桁\n（数字、ハイフンのみ）"]
[null,null,null,null,null,null,"FAX番号",null,null,null,null,null,null,null,null,null,null,null,null,null,null,null,null,null,null,null,null,null,null,null,null,null,null,"ハイフンを含む半角10桁～13桁\n（数字、ハイフンのみ）",null,null,null,null,null,null,null,null,null,null,null,null,null,null,null,null,null,null,null,null,null,null,"技術担当者\nFAX番号\n【条件付き書式】",{"$f":"IF($N$59=\"お申込みに関する連絡先と同じ\",FALSE,TRUE)","v":true}]
[null,null,null,null,null,null,"e-mail（必須）",null,null,null,null,null,null,null,null,null,null,null,null,null,null,null,null,null,null,null,null,null,null,null,null,null,null,"半角英数64桁以内\n※ご担当者が複数の場合は、カンマで区切りで記入ください。",null,null,null,null,null,null,null,null,null,null,null,null,null,null,null,null,null,null,null,null,null,null,"技術担当者\nFAX番号\n【条件付き書式】",{"$f":"IF($N$59=\"お申込みに関する連絡先と同じ\",FALSE,TRUE)","v":true}]
["保守受付言語"]
["保守受付言語（必須）",null,null,null,null,null,null,null,null,null,null,null,null,"日本語",null,null,null,null,null,null,null,null,null,null,null,null,null,null,null,null,null,null,null,"選択してください\n※英語保守をご希望の場合は、「英語」をご選択ください。",null,null,null,null,null,null,null,null,null,null,null,null,null,null,null,null,null,null,null,"★保守受付言語：日本語をデフォルト表示"]
["お支払に関する情報"]
["■ご注意\n【口座振替及びクレジットカードでのお支払】をご希望のお客さま\n　※「請求書によるお支払」をご選択ください。\n　※口座振替によるお支払をご希望のお客さまは、www.ntt.com/b-charge　より「口座振替依頼書」PDFをダウンロードください。\n　※クレジットカードでのお支払をご希望のお客さまは、カスタマサポートデスク（https://www.ntt.com/business/services/network/internet-connect/ocn-business/ocn/customer/index.html）にてお手続きください。\n　※初回のご請求は「請求書によるお支払」になる場合があります。\n\n【既契約のお支払情報と同一にする】をご希望のお客さま\n　※引継ぎ元の請求がファイナンス社の場合は対象外となります。\n　※OCN利用料をフレッツ光利用料と合わせて、お支払いただいているお客さまはご利用いただけません。\n　※現在、ご利用中のサービスのお支払情報と同一にします。（但し、ご契約者名義が同一の場合のみ）\n　※複数の請求を一枚にまとめている場合もお支払情報を同一にします。\n　※お支払情報に関するお知らせの送付先は既契約と同一になります。\n\n※工事キャンセル費を請求する場合、別途請求書を送付します。　"]
["支払方法（必須）",null,null,null,null,null,null,null,null,null,null,null,null,null,null,null,null,null,null,null,null,null,null,null,null,null,null,null,null,null,null,null,null,"選択してください"]
["既契約のお客さま番号\n（既契約のお支払情報と同一にする）（必須）",null,null,null,null,null,null,null,null,null,null,null,null,null,null,null,null,null,null,null,null,null,null,null,null,null,null,null,null,null,null,null,null,"ＨまたはＮからはじまる10桁のお客さま番号をご記入ください",null,null,null,null,null,null,null,null,null,null,null,null,null,null,null,null,null,null,null,null,null,null,"既契約のお客さま番号\n【条件付き書式】",{"$f":"OR($N$68=\"\",$N$68=\"既契約のお支払情報と同一にする\")","v":true}]
["毎月の利用料の請求先",null,null,null,null,null,"コピーリスト（必須）",null,null,null,null,null,null,null,null,null,null,null,null,null,null,null,null,null,null,null,null,null,null,null,null,null,null,"選択してください",null,null,null,null,null,null,null,null,null,null,null,null,null,null,null,null,null,null,null,null,"請先コピーリスト\n【リスト】",{"$f":"IF($N$48=\"次のとおり\",\"list_billMailingCopylist_1\",\"list_billMailingCopylist_2\")","v":"list_billMailingCopylist_2"},"請先コピーリスト\n【条件付き書式】",{"$f":"OR($N$68=\"\",$N$68=\"請求書によるお支払\")","v":true}]
[null,null,null,null,null,null,"郵便番号（必須）",null,null,null,null,null,null,null,null,null,null,null,null,null,null,null,null,null,null,null,null,null,null,null,null,null,null,"半角数字７桁",null,null,null,null,null,null,null,null,null,null,null,null,null,null,null,null,null,null,null,null,null,null,"請先\n郵便番号～ビル名等\n【条件付き書式】",{"$f":"AND($BF$70=TRUE,OR($N$70=\"\",N70=\"次のとおり\"))","v":true}]
[null,null,null,null,null,null,"ご住所（必須）",null,null,null,null,null,null,null,null,null,null,null,null,null,null,null,null,null,null,null,null,null,null,null,null,null,null,null,null,null,null,null,null,null,null,"全角46桁以内\n※住所を都道府県からご記入ください。"]
[null,null,null,null,null,null,"番地（必須）",null,null,null,null,null,null,null,null,null,null,null,null,null,null,null,null,null,null,null,null,null,null,null,null,null,null,"全角20桁以内"]
[null,null,null,null,null,null,"ビル名等",null,null,null,null,null,null,null,null,null,null,null,null,null,null,null,null,null,null,null,null,null,null,null,null,null,null,"全角20桁以内"]
[null,null,null,null,null,null,"宛先　フリガナ\n（必須）",null,null,null,null,null,null,null,null,null,null,null,null,null,null,null,null,null,null,null,null,null,null,null,null,null,null,"全角30桁以内",null,null,null,null,null,null,null,null,null,null,null,null,null,null,null,null,null,null,null,null,null,null,"請先\n宛先～連絡先電番\n【条件付き書式】",{"$f":"OR($N$68=\"\",$N$68=\"請求書によるお支払\")","v":true}]
[null,null,null,null,null,null,"宛先　お名前\n(会社名＋部課名)\n（必須）",null,null,null,null,null,null,null,null,null,null,null,null,null,null,null,null,null,null,null,null,null,null,null,null,null,null,"全角40桁以内\n※宛先に記入いただいた内容は、そのまま請求書に印刷されます。会社名・部署名・氏名等をご記入ください。　"]
[null,null,null,null,null,null,"連絡先",null,"お名前",null,null,null,null,null,null,null,null,null,null,null,null,null,null,null,null,null,null,null,null,null,null,null,null,"全角10桁以内\n※請求書の宛先には表示されません。"]
[null,null,null,null,null,null,null,null,"電話番号",null,null,null,null,null,null,null,null,null,null,null,null,null,null,null,null,null,null,null,null,null,null,null,null,"ハイフンを含む半角10桁～13桁\n（数字、ハイフンのみ）"]
["ご利用案内に関する情報　　※接続に必要となる情報をOCNより送付します。"]
["■ご注意\n※「ご利用内容のご案内」メールは、「customer@mail.kaian.ntt.com」から届きますので、メール受信設定いただきますようお願いいたします。\n※「ご利用内容のご案内」は次の流れで閲覧可能です。\n　　　①本申込み書記載のメールアドレスにワンタイムURLを弊社より送信、本申込み書記入のパスワードでアクセス、\n　　　②アクセスしたサイトで、ワンタイムパスワード送付先のメールアドレス（個人アドレスのみ、メーリングリスト不可）を登録、\n　　　③ ②で登録したメールアドレスに届くワンタイムパスワードで認証\n※メールに記載されるワンタイムURL有効期限以降は閲覧ができなくなりますのでお早目に確認をお願いします。\n※メールにてお届けできない場合の送付先に関しても必ずご記入下さい。\n※送信したメールが届かなかった場合は、郵送にてお送りいたしますが、開通日に間に合わない場合がありますので、ご注意願います。"]
["ご利用案内の送信先",null,null,null,null,null,"送信先\nメールアドレス\n（必須）",null,null,null,null,null,null,null,null,null,null,null,null,null,null,null,null,null,null,null,null,null,null,null,null,null,null,"半角英数64桁まで\n※複数のメールアドレスを指定することはできません。\n※ワンタイムURL送付先メールアドレスになります。（個人メールアドレスをご記入ください。セキュリティリスク上メーリングリストは利用できません。）"]
[null,null,null,null,null,null,"ご利用案内確認\nパスワード\n（必須）",null,null,null,null,null,null,null,null,null,null,null,null,null,null,null,null,null,null,null,null,null,null,null,null,null,null,"半角英数8桁～10桁まで\n※英大文字、英小文字、数字からそれぞれ1文字以上使用してください。\n※「ご利用内容のご案内」専用サイトにログインする際に本パスワードが必要となりますので、ご案内のメールが届くまで必ず保管願います。"]
["ご利用案内の送付先\n\n\n\n※メールにてお届けできない場合、郵送させていただきます。",null,null,null,null,null,"コピーリスト（必須）",null,null,null,null,null,null,null,null,null,null,null,null,null,null,null,null,null,null,null,null,null,null,null,null,null,null,"選択してください",null,null,null,null,null,null,null,null,null,null,null,null,null,null,null,null,null,null,null,null,"開案送付先コピーリスト\n【リスト】",{"$f":"IF(AND($N$48=\"次のとおり\",$N$70=\"次のとおり\"),\"list_kaianMailingAdd_1\",IF(AND($N$48<>\"次のとおり\",$N$70=\"次のとおり\"),\"list_kaianMailingAdd_2\",IF(AND($N$48=\"次のとおり\",$N$70<>\"次のとおり\"),\"list_kaianMailingAdd_3\",IF(AND($N$48<>\"次のとおり\",$N$70<>\"次のとおり\"),\"list_kaianMailingAdd_4\",\"null\"))))","v":"list_kaianMailingAdd_4"}]
[null,null,null,null,null,null,"郵便番号（必須）",null,null,null,null,null,null,null,null,null,null,null,null,null,null,null,null,null,null,null,null,null,null,null,null,null,null,"半角数字７桁",null,null,null,null,null,null,null,null,null,null,null,null,null,null,null,null,null,null,null,null,null,null,"開案送付先\n郵便番号～ビル名等\n【条件付き書式】",{"$f":"OR($N$83=\"\",$N$83=\"次のとおり\")","v":true}]
[null,null,null,null,null,null,"ご住所（必須）",null,null,null,null,null,null,null,null,null,null,null,null,null,null,null,null,null,null,null,null,null,null,null,null,null,null,null,null,null,null,null,null,null,null,"全角46桁以内\n※住所を都道府県からご記入ください。"]
[null,null,null,null,null,null,"番地（必須）",null,null,null,null,null,null,null,null,null,null,null,null,null,null,null,null,null,null,null,null,null,null,null,null,null,null,"全角20桁以内"]
[null,null,null,null,null,null,"ビル名等",null,null,null,null,null,null,null,null,null,null,null,null,null,null,null,null,null,null,null,null,null,null,null,null,null,null,"全角20桁以内"]
[null,null,null,null,null,null,"宛先",null,"フリガナ（必須）",null,null,null,null,null,null,null,null,null,null,null,null,null,null,null,null,null,null,null,null,null,null,null,null,"全角35桁以内\n※OCN光【光一括提供型】をお申込みされる場合、ご記入ください。",null,null,null,null,null,null,null,null,null,null,null,null,null,null,null,null,null,null,null,null,null,null,"開案送付先\n宛先フリガナ\n【条件付き書式】",{"$f":"OR($N$33=\"\",$BD$7=TRUE)","v":true}]
[null,null,null,null,null,null,null,null,"会社名／お名前\n（必須）",null,null,null,null,null,null,null,null,null,null,null,null,null,null,null,null,null,null,null,null,null,null,null,null,"全角20桁以内"]
[null,null,null,null,null,null,null,null,"部課名",null,null,null,null,null,null,null,null,null,null,null,null,null,null,null,null,null,null,null,null,null,null,null,null,"全角20桁以内\n※ご利用案内の送付先に部課名が必要な場合にご記入ください。"]
[null,null,null,null,null,null,null,null,"担当者",null,null,null,null,null,null,null,null,null,null,null,null,null,null,null,null,null,null,null,null,null,null,null,null,"全角10桁以内\n※ご利用案内の送付先の担当者名は必ずご記入ください。"]
["お客様ご要望記事欄"]
["選択してください",null,null,null,null,null,null,null,null,null,null,null,null,"記事欄に下記文言の記載があることでSOセンタの確認作業が発生し、納期に影響が発生する場合がありますので、ご注意ください。\n「OCN開通希望日とフレッツ開通予定日が同日であることは、お客様了承済です。」「ご利用場所電話番号はダミー番号です。」「開通案内の最短での発送をお願いします。」\nその他要望事項等、記載が必要な時のみプルダウンで「お客様ご要望記事欄を記入する」を選択の上ご記入ください。",null,null,null,null,null,null,null,null,null,null,null,null,null,null,null,null,null,null,null,null,null,null,null,null,null,null,null,null,null,null,null,null,null,null,null,null,null,null,null,null,null,null,"記事欄入力可否\n※FALSEの時非活性",{"$f":"OR($A$93=\"お客様ご要望記事欄を記入する\",$N$94<>\"\")","v":false}]
["お客様ご要望記事欄"]
[]
["【弊社記入欄】 "]
["料金に関する留意事項（必須）",null,null,null,null,null,null,null,null,null,null,null,null,null,null,null,null,null,null,null,null,null,null,null,null,null,null,null,null,null,null,null,null,"選択してください"]
["NPCRM承認ID枝番",null,null,null,null,null,null,null,null,null,null,null,null,null,null,null,null,null,null,null,null,null,null,null,null,null,null,null,null,null,null,null,null,"半角15桁以内"]
["CPQ番号",null,null,null,null,null,null,null,null,null,null,null,null,null,null,null,null,null,null,null,null,null,null,null,null,null,null,null,null,null,null,null,null,"CPO＋半角数字10桁"]
["サブプロジェクトID",null,null,null,null,null,null,null,null,null,null,null,null,null,null,null,null,null,null,null,null,null,null,null,null,null,null,null,null,null,null,null,null,"半角15桁以内"]
["回線種別（必須）",null,null,null,null,null,null,null,null,null,null,null,null,null,null,null,null,null,null,null,null,null,null,null,null,null,null,null,null,null,null,null,null,"※回線種別は「お客様区分」です。該当の区分を選択してください。"]
["大口情報",null,null,null,null,null,null,null,null,null,null,null,null,null,null,null,null,null,null,null,null,null,null,null,null,null,null,null,null,null,null,null,null,"ハイフン付きで半角14桁"]
["個別案件管理番号",null,null,null,null,null,null,null,null,null,null,null,null,null,null,null,null,null,null,null,null,null,null,null,null,null,null,null,null,null,null,null,null,"半角英数字10桁"]
[]
["【弊社記入欄】 お客様対応部門"]
["お客様対応部門",null,null,null,null,null,"販売チャネルコード\n（必須）",null,null,null,null,null,null,"04260600",null,null,null,null,null,null,null,null,null,null,null,null,null,null,null,null,null,null,null,"半角英数字８桁"]
[null,null,null,null,null,null,"販売チャネル名\n（必須）",null,null,null,null,null,null,"プロデュースＩＮＣ．",null,null,null,null,null,null,null,null,null,null,null,null,null,null,null,null,null,null,null,"全角16桁以内"]
[null,null,null,null,null,null,"担当者（必須）",null,null,null,null,null,null,null,null,null,null,null,null,null,null,null,null,null,null,null,null,null,null,null,null,null,null,"全角10桁以内"]
[null,null,null,null,null,null,"社員コード ",null,null,null,null,null,null,null,null,null,null,null,null,null,null,null,null,null,null,null,null,null,null,null,null,null,null,"半角英数字8桁以内"]
[null,null,null,null,null,null,"電話番号（必須）",null,null,null,null,null,null,"0120-435-233",null,null,null,null,null,null,null,null,null,null,null,null,null,null,null,null,null,null,null,"ハイフンを含む半角10桁～13桁\n（数字、ハイフンのみ）"]
[null,null,null,null,null,null,"ＦＡＸ番号 ",null,null,null,null,null,null,"0120-435-230",null,null,null,null,null,null,null,null,null,null,null,null,null,null,null,null,null,null,null,"ハイフンを含む半角10桁～13桁\n（数字、ハイフンのみ）"]
[null,null,null,null,null,null,"ｅ-mail（必須）",null,null,null,null,null,null,null,null,null,null,null,null,null,null,null,null,null,null,null,null,null,null,null,null,null,null,"半角英数64桁以内"]
["【弊社記入欄】 お申込受付部門"]
["お申込受付部門",null,null,null,null,null,"担当者（必須）",null,null,null,null,null,null,null,null,null,null,null,null,null,null,null,null,null,null,null,null,null,null,null,null,null,null,"全角10桁以内"]
[null,null,null,null,null,null,"組織名（必須）",null,null,null,null,null,null,null,null,null,null,null,null,null,null,null,null,null,null,null,null,null,null,null,null,null,null,"全角16桁以内"]
[null,null,null,null,null,null,"電話番号（必須）",null,null,null,null,null,null,null,null,null,null,null,null,null,null,null,null,null,null,null,null,null,null,null,null,null,null,"ハイフンを含む半角10桁～13桁\n（数字、ハイフンのみ）"]
[null,null,null,null,null,null,"ＦＡＸ番号 ",null,null,null,null,null,null,null,null,null,null,null,null,null,null,null,null,null,null,null,null,null,null,null,null,null,null,"ハイフンを含む半角10桁～13桁\n（数字、ハイフンのみ）"]
[null,null,null,null,null,null,"ｅ-mail（必須）",null,null,null,null,null,null,null,null,null,null,null,null,null,null,null,null,null,null,null,null,null,null,null,null,null,null,"半角英数64桁以内"]

{"sheet":"IPoE申込情報","index":2,"n_rows":38,"n_cols":59,"rows_kept":38,"cut":false,"hidden":false,"merged":[[25,13,25,32],[21,56,21,61],[31,13,31,32],[31,33,31,51],[26,13,26,32],[26,33,26,51],[27,13,27,20],[27,21,27,24],[27,25,27,32],[27,33,27,51],[30,13,30,32],[30,33,30,51],[29,13,29,41],[29,42,29,51],[25,33,25,51],[2,0,2,51],[31,6,31,12],[33,0,33,51],[26,0,26,12],[27,0,27,12],[24,0,24,12],[25,0,25,12],[22,0,22,12],[23,0,23,12],[22,13,22,32],[22,33,22,51],[23,13,23,32],[23,33,23,51],[24,13,24,32],[24,33,24,51],[20,0,20,12],[21,0,21,12],[20,13,20,32],[20,33,20,51],[21,13,21,32],[21,33,21,51],[19,0,19,51],[13,0,13,12],[13,13,13,32],[13,33,13,41],[13,42,13,51],[14,0,14,12],[14,13,14,32],[14,33,14,41],[14,42,14,51],[15,0,15,51],[16,0,16,12],[16,13,16,32],[16,33,16,51],[18,0,18,51],[11,0,11,12],[11,13,11,32],[11,33,11,41],[11,42,11,51],[12,0,12,12],[12,13,12,32],[12,33,12,41],[12,42,12,51],[9,0,9,12],[9,13,9,32],[9,33,9,41],[9,42,9,51],[10,0,10,12],[10,13,10,32],[10,33,10,41],[10,42,10,51],[7,0,7,12],[7,13,7,32],[7,33,7,41],[7,42,7,51],[8,0,8,12],[8,13,8,32],[8,33,8,41],[8,42,8,51],[4,0,4,51],[5,0,5,51],[6,0,6,12],[6,13,6,32],[6,33,6,41],[6,42,6,51],[37,0,37,12],[37,13,37,32],[37,33,37,51],[35,33,35,51],[35,13,35,32],[35,0,35,12],[36,0,36,12],[36,13,36,32],[36,33,36,51],[34,0,34,12],[34,13,34,32],[34,33,34,51],[28,0,31,5],[28,6,28,12],[29,6,29,12],[30,6,30,12],[28,13,28,32],[28,33,28,51]]}
[null,null,null,null,null,null,null,null,null,null,null,null,null,null,null,null,null,null,null,null,null,null,null,null,null,null,null,null,null,null,null,null,null,null,null,null,null,null,null,null,null,null,null,null,null,null,null,null,null,null,null,{"$f":"基本情報!$AZ$1","v":"Ver.1.14A(2025/4/30)"},null,null,null,null,"IPoEメニュー","アクセスタイプ：\n光コラボ","IPoEワイド"]
[null,null,null,null,null,null,null,null,null,null,null,null,null,null,null,null,null,null,null,null,null,null,null,null,null,null,null,null,null,null,null,null,null,null,null,null,null,null,null,null,null,null,null,null,null,null,null,null,null,null,null,null,null,null,null,null,{"$f":"基本情報!$BH$7","v":false},{"$f":"基本情報!$BD$7","v":false},{"$f":"OR(COUNTIF(基本情報!$N$33,\"*IPoE ワイド*\")>0,COUNTIF(基本情報!$N$33,\"*IPoE スーパーワイド*\")>0)","v":false}]
[{"$f":"基本情報!$A$5","v":"第６種オープンコンピュータ通信網サービス　IP8/IP16/IP32/IP64　契約申込書（新規）"}]
[]
["フレッツ回線情報　　※フレッツ別契約型の場合のみご記入ください。"]
["■ご注意\n※ご利用中のフレッツ回線の情報をご記入ください。（NTT東西へフレッツ回線を申込みされた時にフレッツ申込書に記載した内容をお書きください。）\n※本サービスのお申し込みには、ご利用になるフレッツ契約IDおよびアクセスキー（又は、フレッツ契約IDおよびその名義等の情報）を記入いただく必要があります。\nフレッツ契約IDが未記入の場合は、お客さまからお預かりしたフレッツ名義等の情報を元にNTT東西から開示されるフレッツ契約IDを利用し開通工事を実施します。",null,null,null,null,null,null,null,null,null,null,null,null,null,null,null,null,null,null,null,null,null,null,null,null,null,null,null,null,null,null,null,null,null,null,null,null,null,null,null,null,null,null,null,null,null,null,null,null,null,null,null,null,null,null,null,"フレッツ回線情報\n入力要否\n※TRUEの時活性\n\n【条件付き書式】",{"$f":"IF(基本情報!$N$33=\"\",TRUE,IF(AND($BE$2=TRUE,$BF$2=FALSE),TRUE,FALSE))","v":true},"フレッツ別契かつIPoEの場合TRUE"]
["▼ご記入ください",null,null,null,null,null,null,null,null,null,null,null,null,"▼ご記入ください",null,null,null,null,null,null,null,null,null,null,null,null,null,null,null,null,null,null,null,"留意事項",null,null,null,null,null,null,null,null,"弊社記入欄（記入不要）"]
["フレッツ契約ID\n（必須）",null,null,null,null,null,null,null,null,null,null,null,null,null,null,null,null,null,null,null,null,null,null,null,null,null,null,null,null,null,null,null,null,"半角英数11桁 または 13桁\n※ご利用中（またはお申込み中）のフレッツ契約IDをご記入ください。\n※東日本：CAFまたはCOPから始まる番号\n※西日本：CAFから始まる番号"]
["アクセスキー",null,null,null,null,null,null,null,null,null,null,null,null,null,null,null,null,null,null,null,null,null,null,null,null,null,null,null,null,null,null,null,null,"半角英数8桁まで"]
["フレッツご契約者名フリガナ",null,null,null,null,null,null,null,null,null,null,null,null,null,null,null,null,null,null,null,null,null,null,null,null,null,null,null,null,null,null,null,null,"半角ｶﾅ256文字まで"]
["フレッツご契約者名",null,null,null,null,null,null,null,null,null,null,null,null,null,null,null,null,null,null,null,null,null,null,null,null,null,null,null,null,null,null,null,null,"全角64文字まで"]
["フレッツご契約者住所郵便番号",null,null,null,null,null,null,null,null,null,null,null,null,null,null,null,null,null,null,null,null,null,null,null,null,null,null,null,null,null,null,null,null,"ハイフンを含む半角8桁まで\n（数字、ハイフンのみ）"]
["フレッツご利用場所郵便番号",null,null,null,null,null,null,null,null,null,null,null,null,null,null,null,null,null,null,null,null,null,null,null,null,null,null,null,null,null,null,null,null,"ハイフンを含む半角8桁まで\n（数字、ハイフンのみ）"]
["フレッツご契約者連絡先電話番号",null,null,null,null,null,null,null,null,null,null,null,null,null,null,null,null,null,null,null,null,null,null,null,null,null,null,null,null,null,null,null,null,"ハイフンを含む半角10桁～13桁まで\n（数字、ハイフンのみ）"]
["フレッツご利用場所電話番号",null,null,null,null,null,null,null,null,null,null,null,null,null,null,null,null,null,null,null,null,null,null,null,null,null,null,null,null,null,null,null,null,"ハイフンを含む半角10桁～13桁まで\n（数字、ハイフンのみ）"]
["◆IPoE接続方式でご利用される場合、NTT東日本・NTT西日本が提供する「フレッツ・v6オプション」のご契約が必要です。\n　 フレッツ別契約型をお申込みされるお客さまで、「フレッツ・v6オプション」が未契約の場合には、弊社による代行申込み登録を承諾いただきます。\n\n　※OCN光IPoEプランをお申込みの場合は、コムにてIPoE工事に合わせてフレッツv6オプション工事を実施いたします。"]
["フレッツ・v6オプション代行申込みについて（必須）",null,null,null,null,null,null,null,null,null,null,null,null,null,null,null,null,null,null,null,null,null,null,null,null,null,null,null,null,null,null,null,null,"選択してください\n※代行申込みを承諾いただけない場合、本サービスのお申込み受付はできかねます。"]
[null,null,null,null,null,null,"　"]
["IPoE端末情報"]
["【IPoE対応ルータについて】\n・6種 IPoEプランでは、v4 over v6 接続に対応したIPoE対応ルーターをレンタル提供します。\n・6種 IPoE クロスプランではレンタルルータを提供しておりません。お客様ご自身にて端末をご用意ください。\n・IPoE対応ルータ01（NEC Aterm）は6種IPoEプランのいずれのプランでも継続してご利用いただけます（動的/固定、標準/ワイド共通）\n・IPoE対応ルータ02（YAMAHA RTX830)は6種IPoEプランの固定IPプランでご利用いただけます。\n・端末ご利用形態で、「自営端末」をご選択される場合には、お客様ご自身にて端末をご用意ください。端末の設定サポートや保守については、当社ではお受けできません。\n\n【端末配送先ご住所に関する留意事項】\n・IPoE対応ルータ01（NEC Aterm）は開通希望日の1～3営業日前にご指定の配送先へお届けとなります。日時指定不可ですが、必ず開通日までに受け取り可能な配送先をご指定ください。\n・特に転居先へ新設予定の場合は、転居前のご住所を配送先にするなど、ご留意願います。\n\n【機器設置に関する留意事項】\n・お客様設置の場合、到着の時間指定はできません。平日（9:00～17:00）時間帯の送付となります。\n・お客様設置の場合、機器到着後すぐに開封し、同梱物に不備がないか確認してください。\n・お客様設置の場合、機器に同梱されている「お客様設置ガイド」の注意事項等をお読みいただき、手順に沿って設置し、通信ができることの確認を行ってください。\n・契約種別を跨る移行（2種→6種、7種→6種)でIPoE対応ルータ02を選択される場合、原則として工事区分を『お客様設置』にてお申込みのうえ、6種開通希望日以降に端末設置願います。\n  尚、オンサイト設置についてお客様の強い要望がある場合や、やむを得ない場合は、工事日程やWebエントリの申請方法に関する注意事項がございますので、必ずエスカレーションのうえ事前相談願います。",null,null,null,null,null,null,null,null,null,null,null,null,null,null,null,null,null,null,null,null,null,null,null,null,null,null,null,null,null,null,null,null,null,null,null,null,null,null,null,null,null,null,null,null,null,null,null,null,null,null,null,null,null,null,null,"IPoE端末情報\n入力要否\n※TRUEの時活性\n\n【条件付き書式】",{"$f":"IF(基本情報!$N$33=\"\",TRUE,IF($BE$2=TRUE,TRUE,FALSE))","v":true}]
["端末ご利用形態（必須）",null,null,null,null,null,null,null,null,null,null,null,null,null,null,null,null,null,null,null,null,null,null,null,null,null,null,null,null,null,null,null,null,"選択してください",null,null,null,null,null,null,null,null,null,null,null,null,null,null,null,null,null,null,null,null,"端末ご利用形態\n【リスト】",{"$f":"IF(__\\osApptypeIpTypeCd=\"動的IP(ex)\",\"list_TerminalUsageForm_2\",IF(COUNTIF(__\\osApptypeAccesstypeCd,\"フレッツ 光クロス?*\")>0,\"list_TerminalUsageForm_3\",\"list_TerminalUsageForm_1\"))","v":"list_TerminalUsageForm_1"},"端末種別以下の\n書式設定用\n【条件付き書式】",{"$f":"OR(IPoE申込情報!$N$21=\"レンタル端末利用\",IPoE申込情報!$N$21=\"\")","v":true}]
["レンタル端末種別（必須）",null,null,null,null,null,null,null,null,null,null,null,null,null,null,null,null,null,null,null,null,null,null,null,null,null,null,null,null,null,null,null,null,"選択してください\n※ご利用される端末により、以下の選択肢をご選択ください。\n　　・NEC Aterm　 　　　 ⇒  IPoE対応ルータ01\n　　・YAMAHA RTX830 ⇒  IPoE対応ルータ02\n※IPoE対応ルータ02をお申込される場合は、別途設定調書の提出をお願いいたします。",null,null,null,null,null,null,null,null,null,null,null,null,null,null,null,null,null,null,null,null,"レンタル端末種別\n【リスト】",{"$f":"IF(__\\osApptypeIpTypeCd=\"forVPN/動的IP\",\"list_TerminalType_d\",\"list_TerminalType\")","v":"list_TerminalType"},"＜レンタル端末種別【リスト】＞\n★RTX830_SO規制時の関数\n=IF(__\\osApptypeIpTypeCd=\"forVPN/動的IP\",\"list_TerminalType_d\",IF(COUNTIF(__\\osSelfProjectMngNo,\"*B99*\")>0,\"list_TerminalType\",\"list_TerminalType_d\"))\n★RTX830_SO規制解除時の関数\n=IF(__\\osApptypeIpTypeCd=\"forVPN/動的IP\",\"list_TerminalType_d\",\"list_TerminalType\")"]
["保守タイプ（必須）",null,null,null,null,null,null,null,null,null,null,null,null,null,null,null,null,null,null,null,null,null,null,null,null,null,null,null,null,null,null,null,null,"選択してください\n※IPoE対応ルータ02の場合は「オンサイト保守（24時間365日）」を選択してください",null,null,null,null,null,null,null,null,null,null,null,null,null,null,null,null,null,null,null,null,"保守タイプ\n【リスト】",{"$f":"IF(IPoE申込情報!$N$22=\"IPoE対応ルータ01\",\"list_maintenanceType_A\",IF(IPoE申込情報!$N$22=\"IPoE対応ルータ02\",\"list_maintenanceType_R\",\"null\"))","v":"null"}]
["コールドスタンバイ（必須）",null,null,null,null,null,null,null,null,null,null,null,null,null,null,null,null,null,null,null,null,null,null,null,null,null,null,null,null,null,null,null,null,"IPoE対応ルータ02の場合、選択してください",null,null,null,null,null,null,null,null,null,null,null,null,null,null,null,null,null,null,null,null,null,null,"コールドスタンバイ\n【条件付き書式】",{"$f":"OR(IPoE申込情報!$N$22=\"\",IPoE申込情報!$N$22=\"IPoE対応ルータ02\")","v":true}]
["工事区分（必須）",null,null,null,null,null,null,null,null,null,null,null,null,null,null,null,null,null,null,null,null,null,null,null,null,null,null,null,null,null,null,null,null,"※IPoE対応ルータ01の場合は「お客様設置」を選択してください\n※IPoE対応ルータ02の場合は「お客様設置」「オンサイト設置」のいずれかを選択してください\n    尚、契約種別を跨る移行の場合は、原則 「お客様設置」にてお申込みください。",null,null,null,null,null,null,null,null,null,null,null,null,null,null,null,null,null,null,null,null,"工事区分\n【リスト】",{"$f":"IF(IPoE申込情報!$N$22=\"IPoE対応ルータ01\",\"list_Construction1\",IF(IPoE申込情報!$N$22=\"IPoE対応ルータ02\",\"list_Construction2\",\"null\"))","v":"null"}]
["機器設置希望年月日（必須）",null,null,null,null,null,null,null,null,null,null,null,null,null,null,null,null,null,null,null,null,null,null,null,null,null,null,null,null,null,null,null,null,"IPoE対応ルータ02の場合、記入してください\n※「開通希望年月日」の前営業日が機器設置希望年月日（予定）となります。",null,null,null,null,null,null,null,null,null,null,null,null,null,null,null,null,null,null,null,null,null,null,"機器設置希望年月\n【条件付き書式】",{"$f":"OR(IPoE申込情報!$N$25=\"オンサイト設置\",IPoE申込情報!$N$25=\"\")","v":true}]
["機器設置希望工事時間帯（必須）",null,null,null,null,null,null,null,null,null,null,null,null,null,null,null,null,null,null,null,null,null,null,null,null,null,null,null,null,null,null,null,null,"工事区分が「オンサイト設置」の場合選択してください",null,null,null,null,null,null,null,null,null,null,null,null,null,null,null,null,null,null,null,null,null,null,"機器設置\n希望工事時間帯\n【条件付き書式】",{"$f":"OR(IPoE申込情報!$N$25=\"オンサイト設置\",IPoE申込情報!$N$25=\"\")","v":true}]
["機器設置希望工事時間（必須）",null,null,null,null,null,null,null,null,null,null,null,null,null,null,null,null,null,null,null,null,"～",null,null,null,null,null,null,null,null,null,null,null,"機器設置希望工事時間帯が「その他」の場合、選択してください\n※借用時間は、約2時間です。\n　 但し、コールドスタンバイを同時にお申し込みの場合は約3時間となります。",null,null,null,null,null,null,null,null,null,null,null,null,null,null,null,null,null,null,null,null,null,null,"機器設置\n希望工事時間\n【条件付き書式】",{"$f":"AND(OR(IPoE申込情報!$N$25=\"\",IPoE申込情報!$N$25=\"オンサイト設置\"),OR(IPoE申込情報!$N$27=\"\",IPoE申込情報!$N$27=\"その他\"))","v":true}]
["端末配送先",null,null,null,null,null,"郵便番号\n（必須）",null,null,null,null,null,null,null,null,null,null,null,null,null,null,null,null,null,null,null,null,null,null,null,null,null,null,"半角数字７桁\n※ハイフンを除く数字7桁をご記入ください。",null,null,null,null,null,null,null,null,null,null,null,null,null,null,null,null,null,null,null,null,null,null,"機器配送先\n【条件付き書式】",{"$f":"IF(AND(IPoE申込情報!$N$21<>\"自営端末\",IPoE申込情報!$N$25<>\"オンサイト設置\"),TRUE,FALSE)","v":true}]
[null,null,null,null,null,null,"ご住所\n（必須）",null,null,null,null,null,null,null,null,null,null,null,null,null,null,null,null,null,null,null,null,null,null,null,null,null,null,null,null,null,null,null,null,null,null,null,"全角66文字まで\n※番地、建物名を含む住所をご記入ください"]
[null,null,null,null,null,null,"お名前（会社名＋部課名）\n（必須）",null,null,null,null,null,null,null,null,null,null,null,null,null,null,null,null,null,null,null,null,null,null,null,null,null,null,"全角50文字まで\n※j配送先の宛名をご記入ください。\n※会社名等も含めてご記入ください。"]
[null,null,null,null,null,null,"連絡先電話番号\n（必須）",null,null,null,null,null,null,null,null,null,null,null,null,null,null,null,null,null,null,null,null,null,null,null,null,null,null,"ハイフンを含む半角10桁～13桁まで（数字、ハイフンのみ）"]
[]
["IPoEプラン専用オプション"]
["企画型輻輳抑制機能\n（必須）",null,null,null,null,null,null,null,null,null,null,null,null,{"$f":"$BF$35","v":""},null,null,null,null,null,null,null,null,null,null,null,null,null,null,null,null,null,null,null,"※IPoE標準プランの場合は「利用しない」、IPoEワイドプラン／IPoEスーパーワイドプランの場合は「利用する」が既定値となります。",null,null,null,null,null,null,null,null,null,null,null,null,null,null,null,null,null,null,null,null,null,null,"企画型輻輳抑制機能",{"$f":"IF(COUNTIF(基本情報!$N$33,\"*IPoE 標準プラン*\")>0,\"利用しない\",IF(OR(COUNTIF(基本情報!$N$33,\"*IPoE ワイドプラン*\")>0,COUNTIF(基本情報!$N$33,\"*IPoE スーパーワイド*\")>0),\"利用する\",\"\"))","v":""},"※標準プラン：利用しない、ワイドプラン：利用する を固定値 とする\n(Entryでは項目表示あり）"]
["企画型輻輳抑制機能に\n関する留意事項への同意確認\n（必須）",null,null,null,null,null,null,null,null,null,null,null,null,null,null,null,null,null,null,null,null,null,null,null,null,null,null,null,null,null,null,null,null,"※IPoEワイドプラン／IPoEスーパーワイドプランをお申込みの場合、留意事項をご確認のうえ左欄を選択してください。\n\n＜企画型輻輳抑制機能に関する留意事項＞\nIPoEワイドプラン／IPoEスーパーワイドプランのご提供にあたり、当社はご契約者のOCN回線にて行う通信のうち、IPアドレス、ポート番号等及びアプリケーション層のデータ等を機械的および自動的に取得することによって、当社所定の通信※を検知し、当該通信に割り当てる帯域の制御等を実施することについて、あらかじめ包括的に同意していただきます。\nご契約者は、左欄にて「同意する」旨の選択をする事で、上記内容に同意するものとします。\n※当社公式HPに掲載",null,null,null,null,null,null,null,null,null,null,null,null,null,null,null,null,null,null,null,null,null,null,"企画型輻輳抑制機能_同意確認\n【条件付き書式】",{"$f":"OR(基本情報!$N$33=\"\",AND($BE$2=TRUE,$N$35<>\"利用しない\"))","v":true}]
["アプリコントロールA\n（IPoE ワイド／スーパーワイドプラン）（必須）",null,null,null,null,null,null,null,null,null,null,null,null,null,null,null,null,null,null,null,null,null,null,null,null,null,null,null,null,null,null,null,null,"選択してください\n※本オプションはIPoEワイドプラン／IPoEスーパーワイドプランをご利用の場合のみ、お申込みいただけます。",null,null,null,null,null,null,null,null,null,null,null,null,null,null,null,null,null,null,null,null,null,null,"アプリコントロールA\n【条件付き書式】",{"$f":"IF(基本情報!$N$33=\"\",TRUE,IF($BG$2=TRUE,TRUE,FALSE))","v":true}]
["アプリコントロールAに\n関する留意事項への同意確認\n（必須）",null,null,null,null,null,null,null,null,null,null,null,null,null,null,null,null,null,null,null,null,null,null,null,null,null,null,null,null,null,null,null,null,"※アプリコントロールAをお申込みの場合、留意事項をご確認のうえ左欄を選択してください。\n\n＜アプリコントロールAに関する留意事項＞\nアプリコントールAのご提供にあたり、当社はご契約者のOCN回線にて行う通信のうち、\nIPアドレス、ポート番号等及びアプリケーション層のデータ等を機械的および自動的に取得することによって、当社所定の通信※を検知し、当該通信に割り当てる帯域の制御等を実施することについて、あらかじめ包括的に同意していただきます。\nご契約者は左欄にて「同意する」旨の選択をする事で上記内容に同意するものとします。\n※当社公式HPに掲載",null,null,null,null,null,null,null,null,null,null,null,null,null,null,null,null,null,null,null,null,null,null,"アプリコントロールA_同意確認\n【条件付き書式】",{"$f":"OR(基本情報!$N$33=\"\",AND($BG$2=TRUE,$N$37<>\"利用しない\"))","v":true}]

{"sheet":"付加サービス情報","index":3,"n_rows":19,"n_cols":60,"rows_kept":19,"cut":false,"hidden":false,"merged":[[14,13,14,22],[14,23,14,26],[14,27,14,32],[14,0,14,12],[14,33,14,51],[12,33,12,51],[10,0,10,12],[11,0,11,12],[11,13,11,32],[13,0,13,12],[10,33,10,51],[10,13,10,32],[11,33,11,51],[12,13,12,32],[13,33,13,51],[12,0,12,12],[13,13,13,22],[13,23,13,26],[13,27,13,32],[17,13,17,32],[17,33,17,51],[15,33,15,51],[15,0,15,12],[17,0,17,12],[16,0,16,12],[16,13,16,32],[16,33,16,51],[15,13,15,32],[18,0,18,12],[18,13,18,32],[18,33,18,51],[4,0,4,51],[2,0,2,51],[5,0,5,51],[7,0,9,5],[9,6,9,12],[8,6,8,12],[7,6,7,12],[8,13,8,32],[9,13,9,32],[9,33,9,51],[6,0,6,51],[7,13,7,32],[7,33,8,51]]}
[null,null,null,null,null,null,null,null,null,null,null,null,null,null,null,null,null,null,null,null,null,null,null,null,null,null,null,null,null,null,null,null,null,null,null,null,null,null,null,null,null,null,null,null,null,null,null,null,null,null,null,{"$f":"基本情報!$AZ$1","v":"Ver.1.14A(2025/4/30)"},null,null,"アクセスタイプ：(F)","アクセスタイプ：\n光コラボ","回線が光ネクスト","フレッツ・ISDN","forVPN/動的IP\nかつ光コラボ","IPoEメニュー"]
[null,null,null,null,null,null,null,null,null,null,null,null,null,null,null,null,null,null,null,null,null,null,null,null,null,null,null,null,null,null,null,null,null,null,null,null,null,null,null,null,null,null,null,null,null,null,null,null,null,null,null,null,null,null,{"$f":"基本情報!$BC$7","v":false},{"$f":"基本情報!$BD$7","v":false},{"$f":"基本情報!$BE$7","v":false},{"$f":"基本情報!$BF$7","v":false},{"$f":"基本情報!$BG$7","v":false},{"$f":"基本情報!$BH$7","v":false}]
[{"$f":"基本情報!A5","v":"第６種オープンコンピュータ通信網サービス　IP8/IP16/IP32/IP64　契約申込書（新規）"}]
[]
["付加サービス情報"]
["■ご注意\n※「ビジネスパックＶＰＮ」・「一元故障受付サービス」については、必ず営業担当者経由でお申込ください。\n※OCNビジネスパックＶＰＮは、Ｂフレッツビジネスタイプ「ひかり電話ビジネスタイプ対応、及び同ベーシックタイプ「ひかり電話ビジネスタイプ」対応とあわせてのご利用はできません。"]
["【独自ドメインご利用のお客さまのみ】\n≪DNSサービスをお申込みのお客さまは、以下を了承いただきます≫ \n・回線申込みとは別に申込みいただくと、主契約の特定ができないため受付け処理ができません。必ず本申込書とDNSサービスの申込書を合わせて、お申込みください。\n・回線申込みは、必ず独自ドメイン利用である必要があります。\n・DNSサービスでお申込みのドメイン名を使用したOCN回線契約が既に存在する場合は、該当のOCN回線契約の変更申込書を提出いただきます。（DNSサーバ名の変更、セカンダリDNS情報の変更などが必要となります）\n・割当IPアドレス個数が変更、またはご利用場所の変更に伴い割当IPアドレスが変更となる場合、DNSサービスの変更申込が必要となる場合があります。DNSサービスの契約内容の変更は「DNSサービス」の申込書にてお申込みいただきます。"]
["DNSサービス",null,null,null,null,null,"契約の有無\n（必須）",null,null,null,null,null,null,null,null,null,null,null,null,null,null,null,null,null,null,null,null,null,null,null,null,null,null,"選択してください。\n※「利用する」を選択の場合、「DNSサービス申込書」をあわせてお申込みください。\n※DNSサービスは、回線契約の付加機能サービスとなりますので、主契約となる回線サービスを必ず決定していただく必要があります。\nご利用中で主契約回線を変更する場合などを含め、DNSサービスの内容を追加・変更・削除する場合には、専用の「DNSサービス申込書」でのみ承ることができます。",null,null,null,null,null,null,null,null,null,null,null,null,null,null,null,null,null,null,null,null,null,null,"DNSサービス\n契約の有無\n【条件付き書式】",{"$f":"OR(基本情報!$N$32=\"\",基本情報!$N$32=\"お客様独自ドメインご利用\")","v":true}]
[null,null,null,null,null,null,"主契約回線\n（利用する）（必須）",null,null,null,null,null,null,null,null,null,null,null,null,null,null,null,null,null,null,null,null,null,null,null,null,null,null,null,null,null,null,null,null,null,null,null,null,null,null,null,null,null,null,null,null,null,null,null,null,null,"DNSサービス\n主契約回線\n【条件付き書式】",{"$f":"IF($BF$8=FALSE,FALSE,IF($N$8=\"利用しない\",FALSE,TRUE))","v":true}]
[null,null,null,null,null,null,"ご利用中のお客さま番号",null,null,null,null,null,null,null,null,null,null,null,null,null,null,null,null,null,null,null,null,null,null,null,null,null,null,"※既にご利用中の場合は、帰属先（主契約）となる回線契約のお客さま番号を必ず記入ください。",null,null,null,null,null,null,null,null,null,null,null,null,null,null,null,null,null,null,null,null,null,null,"DNSサービス\nご利用中の\nお客さま番号\n【条件付き書式】",{"$f":"IF($BF$8=FALSE,FALSE,IF($N$8=\"利用しない\",FALSE,TRUE))","v":true}]
["OCN セキュリティゲートウェイ（必須）",null,null,null,null,null,null,null,null,null,null,null,null,null,null,null,null,null,null,null,null,null,null,null,null,null,null,null,null,null,null,null,null,"選択してください\n※利用する場合は、「OCNセキュリティゲートウェイ申込書」を合わせてお申込みください。\n※OCNビジネスパックVPNとの併用はできません。",null,null,null,null,null,null,null,null,null,null,null,null,null,null,null,null,null,null,null,null,"SGW\n【リスト】",{"$f":"IF($BH$2=TRUE,\"null\",IF($N$12=\"利用する\",\"list_SGW_2\",\"list_SGW_1\"))","v":"list_SGW_1"},"SGW\n【条件付き書式】",{"$f":"IF(OR($BF$2=TRUE,$BH$2=TRUE),FALSE,TRUE)","v":true}]
["OCNビジネスパック（必須）",null,null,null,null,null,null,null,null,null,null,null,null,null,null,null,null,null,null,null,null,null,null,null,null,null,null,null,null,null,null,null,null,"選択してください。\n※サービスの利用形態をご確認の上、お申込みください。\n※サービスの詳細に関しましては、下記URLをご参照ください。\n  http://www.ntt.com/business/services/network/internet-connect/ocn-business/vpn/biz.html\n※利用する場合は、「OCNビジネスパックVPN申込書」をあわせてお申込ください。\n※OCN　セキュリティゲートウェイ（ルータタイプ）との併用はできません。",null,null,null,null,null,null,null,null,null,null,null,null,null,null,null,null,null,null,null,null,"ビジパク\n【リスト】",{"$f":"IF(OR($BF$2=TRUE,$BH$2=TRUE,$N$11=\"利用する(ルータタイプ)\"),\"list_option_2\",\"list_option_1\")","v":"list_option_1"}]
["一元故障受付サービス（必須）",null,null,null,null,null,null,null,null,null,null,null,null,null,null,null,null,null,null,null,null,null,null,null,null,null,null,null,null,null,null,null,null,"選択してください。\n※利用する場合は、「一元故障受付用申込書」を合わせてお申込ください。",null,null,null,null,null,null,null,null,null,null,null,null,null,null,null,null,null,null,null,null,null,null,"一元故障受付\nサービス\n【条件付き書式】",{"$f":"IF(OR($BC$2=TRUE,$BD$2=TRUE),FALSE,TRUE)","v":true}]
["ウイルスバスタービジネスセキュリティ（必須）",null,null,null,null,null,null,null,null,null,null,null,null,null,null,null,null,null,null,null,null,null,null,null,null,null,null,"　ライセンス",null,null,null,null,null,"選択してください。\n※「利用する」を選択した場合は、ご利用ライセンス数をご記入下さい。\n※5ライセンス以上、最大99999ライセンスまでお申込みいただけます。\n※ウイルスバスタービジネスセキュリティに関する登録完了通知メールは、ネットワーク技術担当者様のメールアドレス宛に送付致します。",null,null,null,null,null,null,null,null,null,null,null,null,null,null,null,null,null,null,null,null,null,null,"VBBSライセンス数\n【条件付き書式】",{"$f":"OR(付加サービス情報!$N$14=\"\",付加サービス情報!$N$14=\"利用する\")","v":true}]
["OCN TMWSaaSサービス（必須）",null,null,null,null,null,null,null,null,null,null,null,null,null,null,null,null,null,null,null,null,null,null,null,null,null,null,"　ライセンス",null,null,null,null,null,"選択してください。\n※「利用する」を選択した場合は、ご利用ライセンス数をご記入下さい。\n※1ライセンス以上、最大99999ライセンスまでお申込みいただけます。\n※OCN TMWSaaSサービスに関する登録完了通知メールは、ネットワーク技術担当者様のメールアドレス宛に送付致します。",null,null,null,null,null,null,null,null,null,null,null,null,null,null,null,null,null,null,null,null,null,null,"OCN TMWSaaS\nライセンス数\n【条件付き書式】",{"$f":"OR(付加サービス情報!N15=\"\",付加サービス情報!N15=\"利用する\")","v":true}]
["IPv6インターネット接続サービス(PPPoE方式)\n（必須）",null,null,null,null,null,null,null,null,null,null,null,null,null,null,null,null,null,null,null,null,null,null,null,null,null,null,null,null,null,null,null,null,"選択してください。\n※本サービスをお申込いただけるアクセスラインは以下のとおりです。\n　 フレッツ 光ネクスト／OCN 光サービス（F)「光ネクスト」／OCN光【光一括提供型】\n※動的アドレスでIPv6インターネット接続サービス(PPPoE方式)をご利用の場合、お申込は不要です。IPv6動的アドレスは自動的に払い出されます。\n※IP1をご利用でIPv6インターネット接続サービス(PPPoE方式)を固定IPでご利用する場合は、「IPv6インターネット接続申込書」を合わせてお申込ください。",null,null,null,null,null,null,null,null,null,null,null,null,null,null,null,null,null,null,null,null,null,null,"IPv6\nインターネット接続 PPPoE\n【条件付き書式】",{"$f":"IF(基本情報!$N$31=\"\",TRUE,IF(AND($BE$2=TRUE,$BH$2=FALSE,AND(基本情報!$N$31<>\"forVPN/動的IP\",基本情報!$N$31<>\"forVPNライト\")),TRUE,FALSE))","v":true}]
["Arcstar IP Voice（必須）",null,null,null,null,null,null,null,null,null,null,null,null,null,null,null,null,null,null,null,null,null,null,null,null,null,null,null,null,null,null,null,null,"選択してください。",null,null,null,null,null,null,null,null,null,null,null,null,null,null,null,null,null,null,null,null,"IPV\n【リスト】",{"$f":"IF($BH$2=TRUE,\"list_option_2\",\"list_option_1\")","v":"list_option_1"},"IPV\n【条件付き書式】",{"$f":"$BH$2=FALSE","v":true}]
["Arcstar IP Voice\n(ひかり電話タイプ/ひかり電話アドバンスタイプ)\n（OCN光【光一括提供型】）（必須）",null,null,null,null,null,null,null,null,null,null,null,null,null,null,null,null,null,null,null,null,null,null,null,null,null,null,null,null,null,null,null,null,"選択してください。\n※利用する場合は、「Arcstar IP Voice(ひかり電話タイプ/ひかり電話アドバンスタイプ）申込書」をあわせてお申込みください。",null,null,null,null,null,null,null,null,null,null,null,null,null,null,null,null,null,null,null,null,null,null,"IPVひかり電話\n【条件付き書式】",{"$f":"OR(基本情報!$N$33=\"\",$BD$2=TRUE)","v":true}]
["24時間出張修理オプション\n（OCN光【光一括提供型】）（必須）",null,null,null,null,null,null,null,null,null,null,null,null,null,null,null,null,null,null,null,null,null,null,null,null,null,null,null,null,null,null,null,null,"選択してください。\n※本項目はOCN光【光一括提供型】/OCN光【光一括提供型】(IPoE 標準プラン)/OCN光【光一括提供型】(IPoE ワイドプラン)をご利用の場合のみお申込みいただけます。\n※光回線転用、事業者変更（転入）をお申込の場合、ご利用中の光回線で24時間出張修理オプションをご契約中の場合のみ「利用する」を選択してください。",null,null,null,null,null,null,null,null,null,null,null,null,null,null,null,null,null,null,null,null,"24時間出張修理オプション\n【リスト】","list_option_1","24時間出張修理オプション\n【条件付き書式】",{"$f":"OR(基本情報!$N$33=\"\",$BD$2=TRUE)","v":true}]

{"sheet":"OCNメールアカウント情報","index":4,"n_rows":16,"n_cols":56,"rows_kept":16,"cut":false,"hidden":false,"merged":[[6,0,6,51],[7,0,7,51],[8,0,9,5],[14,0,15,5],[14,6,14,12],[14,13,14,32],[14,33,14,51],[15,6,15,12],[15,13,15,28],[15,33,15,51],[15,29,15,32],[10,0,11,5],[10,6,10,12],[10,13,10,32],[10,33,10,51],[11,6,11,12],[12,0,13,5],[12,6,12,12],[12,13,12,32],[12,33,12,51],[13,6,13,12],[13,13,13,28],[13,33,13,51],[13,29,13,32],[9,33,9,51],[9,6,9,12],[8,6,8,12],[11,13,11,28],[11,33,11,51],[9,13,9,28],[9,29,9,32],[8,13,8,32],[8,33,8,51],[11,29,11,32],[2,0,2,51],[4,0,4,51],[5,0,5,12],[5,13,5,32],[5,33,5,51]]}
[null,null,null,null,null,null,null,null,null,null,null,null,null,null,null,null,null,null,null,null,null,null,null,null,null,null,null,null,null,null,null,null,null,null,null,null,null,null,null,null,null,null,null,null,null,null,null,null,null,null,null,{"$f":"基本情報!$AZ$1","v":"Ver.1.14A(2025/4/30)"}]
[]
[{"$f":"基本情報!A5","v":"第６種オープンコンピュータ通信網サービス　IP8/IP16/IP32/IP64　契約申込書（新規）"}]
[]
["OCNメールアカウント情報"]
["メールアドレス引継ぎ希望有無\n（OCNサブドメインご利用）（必須）",null,null,null,null,null,null,null,null,null,null,null,null,null,null,null,null,null,null,null,null,null,null,null,null,null,null,null,null,null,null,null,null,"選択してください",null,null,null,null,null,null,null,null,null,null,null,null,null,null,null,null,null,null,null,null,"メールアカウント情報\nシート\n【条件付き書式】",{"$f":"AND(基本情報!$N$32<>\"お客様独自ドメインご利用\",基本情報!$N$32<>\"ドメイン利用なし\")","v":true}]
["OCNメールアドレス引継ぎ情報"]
["■注意事項（共通）\n※他のOCN契約で利用中のOCNメールアドレスを本契約で引き続きご利用いただくことができます。引継ぎをご希望のお客さまは、 以下の「他のOCN契約からメールアドレスの引継ぎを希望する」をチェックのうえ、\n　 引継ぎ元のOCNお客さま番号と引継ぎを希望するメールアカウント・メールサーバ名をご記入ください。\n※ご契約者名義が同一の場合のみ、OCNメールアドレスを引継ぐことができます。第3者からの引継ぎはできません。\n※ウィルスチェックサービス・メールパスワードは、現在のご契約内容・設定を引継ぎ、引き続き当社から提供いたします。当社の契約約款等をご確認の上、お申込み願います。\n\n■注意事項（NTTドコモの提供する第２種OCNからメールアドレスを引継ぎされる場合）\n※メールアドレスを引継ぐにあたり、メールボックス内のデータなど、引継ぎに必要な情報等をNTTドコモから当社が引き継ぐことについてあらかじめ同意していただきます。\n※第２種OCN契約を廃止して本サービスに移行される場合、NTTドコモの提供する「OCNペイオン」については、継続してご利用いただくことはできません。\n※本サービスにおいて、NTTドコモの提供する「迷惑メールブロックサービス」はご利用いただけません。また「隔離ボックス」内のメールは閲覧ができなくなりますので、必要に応じて事前に保存・転送等のご対応をお願い致します。\n※本サービスに引き継ぐメールアドレスが第２種OCN契約の連絡先メールアドレスとなっている場合、第２種OCN契約でご利用されている他のメールアドレスがあれば、NTTドコモはそのメールアドレスを第２種OCNの新たな連絡先として登録します。",null,null,null,null,null,null,null,null,null,null,null,null,null,null,null,null,null,null,null,null,null,null,null,null,null,null,null,null,null,null,null,null,null,null,null,null,null,null,null,null,null,null,null,null,null,null,null,null,null,null,null,null,null,"既契約回線からの\n引継ぎ希望メールアドレス\n1～4\n【条件付き書式】",{"$f":"OR($N$6=\"\",$N$6=\"希望する\")","v":true}]
["既契約回線からの引継ぎ希望メールアドレス１",null,null,null,null,null,"引継ぎ元お客さま番号\n（希望する）（必須）",null,null,null,null,null,null,null,null,null,null,null,null,null,null,null,null,null,null,null,null,null,null,null,null,null,null,"N＋半角数字9桁\n※メールアドレスの引継ぎを希望する場合、引継ぎ元のOCNお客さま番号を記入ください。"]
[null,null,null,null,null,null,"引継ぎ希望アドレス\n（希望する）（必須）",null,null,null,null,null,null,null,null,null,null,null,null,null,null,null,null,null,null,null,null,null,null,"\n.ocn.ne.jp",null,null,null,"半角41桁まで\n※「アカウント＠メールサーバ」の形態でご記入ください。"]
["既契約回線からの引継ぎ希望メールアドレス2",null,null,null,null,null,"引継ぎ元お客さま番号",null,null,null,null,null,null,null,null,null,null,null,null,null,null,null,null,null,null,null,null,null,null,null,null,null,null,"N＋半角数字9桁\n※メールアドレスの引継ぎを希望する場合、引継ぎ元のOCNお客さま番号を記入ください。"]
[null,null,null,null,null,null,"引継ぎ希望アドレス",null,null,null,null,null,null,null,null,null,null,null,null,null,null,null,null,null,null,null,null,null,null,"\n.ocn.ne.jp",null,null,null,"半角41桁まで\n※「アカウント＠メールサーバ」の形態でご記入ください。"]
["既契約回線からの引継ぎ希望メールアドレス3",null,null,null,null,null,"引継ぎ元お客さま番号",null,null,null,null,null,null,null,null,null,null,null,null,null,null,null,null,null,null,null,null,null,null,null,null,null,null,"N＋半角数字9桁\n※メールアドレスの引継ぎを希望する場合、引継ぎ元のOCNお客さま番号を記入ください。"]
[null,null,null,null,null,null,"引継ぎ希望アドレス",null,null,null,null,null,null,null,null,null,null,null,null,null,null,null,null,null,null,null,null,null,null,"\n.ocn.ne.jp",null,null,null,"半角41桁まで\n※「アカウント＠メールサーバ」の形態でご記入ください。"]
["既契約回線からの引継ぎ希望メールアドレス4",null,null,null,null,null,"引継ぎ元お客さま番号",null,null,null,null,null,null,null,null,null,null,null,null,null,null,null,null,null,null,null,null,null,null,null,null,null,null,"N＋半角数字9桁\n※メールアドレスの引継ぎを希望する場合、引継ぎ元のOCNお客さま番号を記入ください。"]
[null,null,null,null,null,null,"引継ぎ希望アドレス",null,null,null,null,null,null,null,null,null,null,null,null,null,null,null,null,null,null,null,null,null,null,"\n.ocn.ne.jp",null,null,null,"半角41桁まで\n※「アカウント＠メールサーバ」の形態でご記入ください。"]

{"sheet":"OCNサブドメイン情報","index":5,"n_rows":1048576,"n_cols":56,"rows_kept":4500,"cut":true,"hidden":false,"merged":[[25,13,25,34],[22,13,22,34],[23,13,23,34],[24,13,24,34],[22,35,23,51],[24,35,25,51],[2,0,2,51],[4,0,4,51],[5,0,5,51],[6,0,6,51],[7,0,7,12],[7,35,7,51],[7,29,7,34],[7,13,7,28],[8,0,8,12],[8,13,8,28],[8,29,8,34],[8,35,8,51],[9,0,9,12],[9,13,9,28],[9,29,9,34],[9,35,9,51],[10,0,10,51],[11,4,11,51],[12,4,12,15],[12,16,12,27],[12,28,12,39],[12,40,12,51],[11,0,13,1],[11,2,13,3],[13,4,13,15],[13,16,13,27],[13,28,13,39],[13,40,13,51],[14,40,14,51],[14,28,14,39],[14,16,14,27],[15,28,15,39],[15,40,15,51],[15,16,15,27],[15,4,15,15],[16,16,16,27],[16,28,16,39],[16,40,16,51],[19,28,19,39],[19,40,19,51],[17,16,17,27],[17,28,17,39],[17,40,17,51],[18,16,18,27],[18,28,18,39],[18,40,18,51],[19,16,19,27],[16,2,16,3],[17,2,17,3],[18,2,18,3],[16,4,16,15],[17,4,17,15],[18,4,18,15],[1048575,2,1048575,3],[19,2,19,3],[14,0,19,1],[19,4,19,15],[14,4,14,15],[20,0,20,51],[21,0,21,12],[22,0,25,5],[25,6,25,12],[24,6,24,12],[23,6,23,12],[22,6,22,12],[21,13,21,34],[21,35,21,51],[14,2,14,3],[15,2,15,3]],"bounds":{"rows_first":2000,"rows_last":500,"rows_between":2000,"halvings":0}}
[null,null,null,null,null,null,null,null,null,null,null,null,null,null,null,null,null,null,null,null,null,null,null,null,null,null,null,null,null,null,null,null,null,null,null,null,null,null,null,null,null,null,null,null,null,null,null,null,null,null,null,{"$f":"基本情報!$AZ$1","v":"Ver.1.14A(2025/4/30)"}]
[]
[{"$f":"基本情報!A5","v":"第６種オープンコンピュータ通信網サービス　IP8/IP16/IP32/IP64　契約申込書（新規）"}]
[]
["■「ご利用ドメイン形態」にて「OCNサブドメインご利用」を選択のお客さまはご記入ください。",null,null,null,null,null,null,null,null,null,null,null,null,null,null,null,null,null,null,null,null,null,null,null,null,null,null,null,null,null,null,null,null,null,null,null,null,null,null,null,null,null,null,null,null,null,null,null,null,null,null,null,null,null,"OCNサブドメイン情報\nシート\n【条件付き書式】",{"$f":"OR(__\\osApptypeUsedomainformCd=\"\",__\\osApptypeUsedomainformCd=\"OCNサブドメインご利用\")","v":true}]
["OCNサブドメイン名"]
["※OCNサブドメイン名をご利用いただく場合は、必ずOCNのDNSサーバに設定が必要ですので、漏れなくご記入ください。\n※他のお客さまと重複する場合がありますので、第１～第３希望までご記入下さい。"]
["第１希望（必須）",null,null,null,null,null,null,null,null,null,null,null,null,null,null,null,null,null,null,null,null,null,null,null,null,null,null,null,null,"-unet.ocn.ne.jp",null,null,null,null,null,"半角2桁～35桁\n※ご利用できるのは、英小文字・数字・”ｰ（ハイフン）”です。\n　 但し、先頭は英小文字を使用してください。"]
["第2希望（必須）",null,null,null,null,null,null,null,null,null,null,null,null,null,null,null,null,null,null,null,null,null,null,null,null,null,null,null,null,"-unet.ocn.ne.jp",null,null,null,null,null,"半角2桁～35桁\n※ご利用できるのは、英小文字・数字・”ｰ（ハイフン）”です。\n　 但し、先頭は英小文字を使用してください。"]
["第3希望（必須）",null,null,null,null,null,null,null,null,null,null,null,null,null,null,null,null,null,null,null,null,null,null,null,null,null,null,null,null,"-unet.ocn.ne.jp",null,null,null,null,null,"半角2桁～35桁\n※ご利用できるのは、英小文字・数字・”ｰ（ハイフン）”です。\n　 但し、先頭は英小文字を使用してください。"]
["ホスト情報　　※記入された情報にてOCNのDNSを設定します。"]
["IPアドレス",null,"ホストNo.",null,"※ホスト名が未記入時は、上段から順次“ｐｃ１”～“ｐｃ６”と設定いたします。"]
[null,null,null,null,"ホスト名",null,null,null,null,null,null,null,null,null,null,null,"CNAME1",null,null,null,null,null,null,null,null,null,null,null,"CNAME2",null,null,null,null,null,null,null,null,null,null,null,"CNAME3"]
[null,null,null,null,"半角60桁以内\n※ホスト名が決定している場合、ご記入ください。\n※半角英小文字・半角数字・半角ハイフンのみ\n　 ご使用いただけます。",null,null,null,null,null,null,null,null,null,null,null,"半角60桁以内\n※半角英小文字・半角数字・半角ハイフンのみ\n　 ご使用いただけます。",null,null,null,null,null,null,null,null,null,null,null,"半角60桁以内\n※半角英小文字・半角数字・半角ハイフンのみ\n　 ご使用いただけます。",null,null,null,null,null,null,null,null,null,null,null,"半角60桁以内\n※半角英小文字・半角数字・半角ハイフンのみ\n　 ご使用いただけます。"]
["若番順にアドレス設定します",null,1]
[null,null,2]
[null,null,3]
[null,null,4]
[null,null,5]
[null,null,6]
["メールサーバ情報"]
["メールサーバ設置有無\n（必須）"]
["設置台数\n（お客さまネットワークにメールサーバを設置する）\n（必須）\n",null,null,null,null,null,"設置台数\n（必須）",null,null,null,null,null,null,null,null,null,null,null,null,null,null,null,null,null,null,null,null,null,null,null,null,null,null,null,null,"選択してください\n※｢アカウント＠ホスト名.サブドメイン名.ocn.ne.jp｣（ホスト名を省略しない）の形式で設定する\n  ･ｘｘｘ@ホスト名.○○○○-unet（サブドメイン名）.ocn.ne.jp\n\n※「アカウント＠サブドメイン名.ocn.ne.jp」（ホスト名を省略する）の形式で設定する\n　･ｘｘｘ@○○○○-unet（サブドメイン名）.ocn.ne.jp",null,null,null,null,null,null,null,null,null,null,null,null,null,null,null,null,null,null,"設置台数\n【条件付き書式】",{"$f":"OR($N$22=\"\",$N$22=\"お客さまネットワークにメールサーバを設置する\")","v":true}]
[null,null,null,null,null,null,"形式\n（必須）",null,null,null,null,null,null,null,null,null,null,null,null,null,null,null,null,null,null,null,null,null,null,null,null,null,null,null,null,null,null,null,null,null,null,null,null,null,null,null,null,null,null,null,null,null,null,null,"形式\n【条件付き書式】",{"$f":"OR($N$22=\"\",$N$22=\"お客さまネットワークにメールサーバを設置する\")","v":true}]
[null,null,null,null,null,null,"優先順位1\nホスト№\n（必須）",null,null,null,null,null,null,null,null,null,null,null,null,null,null,null,null,null,null,null,null,null,null,null,null,null,null,null,null,"※上記ホスト情報よりメールサーバに使用するホスト№を選択ください。\n※複数台のメールサーバを設置される場合、ＭＸレコードの設定が必要となりますので、優先順位を選択してください。",null,null,null,null,null,null,null,null,null,null,null,null,null,null,null,null,null,null,"優先順位1\nホスト№\n【条件付き書式】",{"$f":"OR($N$22=\"\",$N$22=\"お客さまネットワークにメールサーバを設置する\")","v":true}]
[null,null,null,null,null,null,"優先順位2\nホスト№\n（複数台設置）（必須）",null,null,null,null,null,null,null,null,null,null,null,null,null,null,null,null,null,null,null,null,null,null,null,null,null,null,null,null,null,null,null,null,null,null,null,null,null,null,null,null,null,null,null,null,null,null,null,"優先順位2\nホスト№\n【条件付き書式】",{"$f":"OR($N$22=\"\",AND($N$22=\"お客さまネットワークにメールサーバを設置する\",OR($N$23=\"\",$N$23=\"複数台設置\")))","v":true}]
[]
[]
[]
[]
[]
[]
[]
[]
[]
[]
[]
[]
[]
[]
[]
[]
[]
[]
[]
[]
[]
[]
[]
[]
[]
[]
[]
[]
[]
[]
[]
[]
[]
[]
[]
[]
[]
[]
[]
[]
[]
[]
[]
[]
[]
[]
[]
[]
[]
[]
[]
[]
[]
[]
[]
[]
[]
[]
[]
[]
[]
[]
[]
[]
[]
[]
[]
[]
[]
[]
[]
[]
[]
[]
[]
[]
[]
[]
[]
[]
[]
[]
[]
[]
[]
[]
[]
[]
[]
[]
[]
[]
[]
[]
[]
[]
[]
[]
[]
[]
[]
[]
[]
[]
[]
[]
[]
[]
[]
[]
[]
[]
[]
[]
[]
[]
[]
[]
[]
[]
[]
[]
[]
[]
[]
[]
[]
[]
[]
[]
[]
[]
[]
[]
[]
[]
[]
[]
[]
[]
[]
[]
[]
[]
[]
[]
[]
[]
[]
[]
[]
[]
[]
[]
[]
[]
[]
[]
[]
[]
[]
[]
[]
[]
[]
[]
[]
[]
[]
[]
[]
[]
[]
[]
[]
[]
[]
[]
[]
[]
[]
[]
[]
[]
[]
[]
[]
[]
[]
[]
[]
[]
[]
[]
[]
[]
[]
[]
[]
[]
[]
[]
[]
[]
[]
[]
[]
[]
[]
[]
[]
[]
[]
[]
[]
[]
[]
[]
[]
[]
[]
[]
[]
[]
[]
[]
[]
[]
[]
[]
[]
[]
[]
[]
[]
[]
[]
[]
[]
[]
[]
[]
[]
[]
[]
[]
[]
[]
[]
[]
[]
[]
[]
[]
[]
[]
[]
[]
[]
[]
[]
[]
[]
[]
[]
[]
[]
[]
[]
[]
[]
[]
[]
[]
[]
[]
[]
[]
[]
[]
[]
[]
[]
[]
[]
[]
[]
[]
[]
[]
[]
[]
[]
[]
[]
[]
[]
[]
[]
[]
[]
[]
[]
[]
[]
[]
[]
[]
[]
[]
[]
[]
[]
[]
[]
[]
[]
[]
[]
[]
[]
[]
[]
[]
[]
[]
[]
[]
[]
[]
[]
[]
[]
[]
[]
[]
[]
[]
[]
[]
[]
[]
[]
[]
[]
[]
[]
[]
[]
[]
[]
[]
[]
[]
[]
[]
[]
[]
[]
[]
[]
[]
[]
[]
[]
[]
[]
[]
[]
[]
[]
[]
[]
[]
[]
[]
[]
[]
[]
[]
[]
[]
[]
[]
[]
[]
[]
[]
[]
[]
[]
[]
[]
[]
[]
[]
[]
[]
[]
[]
[]
[]
[]
[]
[]
[]
[]
[]
[]
[]
[]
[]
[]
[]
[]
[]
[]
[]
[]
[]
[]
[]
[]
[]
[]
[]
[]
[]
[]
[]
[]
[]
[]
[]
[]
[]
[]
[]
[]
[]
[]
[]
[]
[]
[]
[]
[]
[]
[]
[]
[]
[]
[]
[]
[]
[]
[]
[]
[]
[]
[]
[]
[]
[]
[]
[]
[]
[]
[]
[]
[]
[]
[]
[]
[]
[]
[]
[]
[]
[]
[]
[]
[]
[]
[]
[]
[]
[]
[]
[]
[]
[]
[]
[]
[]
[]
[]
[]
[]
[]
[]
[]
[]
[]
[]
[]
[]
[]
[]
[]
[]
[]
[]
[]
[]
[]
[]
[]
[]
[]
[]
[]
[]
[]
[]
[]
[]
[]
[]
[]
[]
[]
[]
[]
[]
[]
[]
[]
[]
[]
[]
[]
[]
[]
[]
[]
[]
[]
[]
[]
[]
[]
[]
[]
[]
[]
[]
[]
[]
[]
[]
[]
[]
[]
[]
[]
[]
[]
[]
[]
[]
[]
[]
[]
[]
[]
[]
[]
[]
[]
[]
[]
[]
[]
[]
[]
[]
[]
[]
[]
[]
[]
[]
[]
[]
[]
[]
[]
[]
[]
[]
[]
[]
[]
[]
[]
[]
[]
[]
[]
[]
[]
[]
[]
[]
[]
[]
[]
[]
[]
[]
[]
[]
[]
[]
[]
[]
[]
[]
[]
[]
[]
[]
[]
[]
[]
[]
[]
[]
[]
[]
[]
[]
[]
[]
[]
[]
[]
[]
[]
[]
[]
[]
[]
[]
[]
[]
[]
[]
[]
[]
[]
[]
[]
[]
[]
[]
[]
[]
[]
[]
[]
[]
[]
[]
[]
[]
[]
[]
[]
[]
[]
[]
[]
[]
[]
[]
[]
[]
[]
[]
[]
[]
[]
[]
[]
[]
[]
[]
[]
[]
[]
[]
[]
[]
[]
[]
[]
[]
[]
[]
[]
[]
[]
[]
[]
[]
[]
[]
[]
[]
[]
[]
[]
[]
[]
[]
[]
[]
[]
[]
[]
[]
[]
[]
[]
[]
[]
[]
[]
[]
[]
[]
[]
[]
[]
[]
[]
[]
[]
[]
[]
[]
[]
[]
[]
[]
[]
[]
[]
[]
[]
[]
[]
[]
[]
[]
[]
[]
[]
[]
[]
[]
[]
[]
[]
[]
[]
[]
[]
[]
[]
[]
[]
[]
[]
[]
[]
[]
[]
[]
[]
[]
[]
[]
[]
[]
[]
[]
[]
[]
[]
[]
[]
[]
[]
[]
[]
[]
[]
[]
[]
[]
[]
[]
[]
[]
[]
[]
[]
[]
[]
[]
[]
[]
[]
[]
[]
[]
[]
[]
[]
[]
[]
[]
[]
[]
[]
[]
[]
[]
[]
[]
[]
[]
[]
[]
[]
[]
[]
[]
[]
[]
[]
[]
[]
[]
[]
[]
[]
[]
[]
[]
[]
[]
[]
[]
[]
[]
[]
[]
[]
[]
[]
[]
[]
[]
[]
[]
[]
[]
[]
[]
[]
[]
[]
[]
[]
[]
[]
[]
[]
[]
[]
[]
[]
[]
[]
[]
[]
[]
[]
[]
[]
[]
[]
[]
[]
[]
[]
[]
[]
[]
[]
[]
[]
[]
[]
[]
[]
[]
[]
[]
[]
[]
[]
[]
[]
[]
[]
[]
[]
[]
[]
[]
[]
[]
[]
[]
[]
[]
[]
[]
[]
[]
[]
[]
[]
[]
[]
[]
[]
[]
[]
[]
[]
[]
[]
[]
[]
[]
[]
[]
[]
[]
[]
[]
[]
[]
[]
[]
[]
[]
[]
[]
[]
[]
[]
[]
[]
[]
[]
[]
[]
[]
[]
[]
[]
[]
[]
[]
[]
[]
[]
[]
[]
[]
[]
[]
[]
[]
[]
[]
[]
[]
[]
[]
[]
[]
[]
[]
[]
[]
[]
[]
[]
[]
[]
[]
[]
[]
[]
[]
[]
[]
[]
[]
[]
[]
[]
[]
[]
[]
[]
[]
[]
[]
[]
[]
[]
[]
[]
[]
[]
[]
[]
[]
[]
[]
[]
[]
[]
[]
[]
[]
[]
[]
[]
[]
[]
[]
[]
[]
[]
[]
[]
[]
[]
[]
[]
[]
[]
[]
[]
[]
[]
[]
[]
[]
[]
[]
[]
[]
[]
[]
[]
[]
[]
[]
[]
[]
[]
[]
[]
[]
[]
[]
[]
[]
[]
[]
[]
[]
[]
[]
[]
[]
[]
[]
[]
[]
[]
[]
[]
[]
[]
[]
[]
[]
[]
[]
[]
[]
[]
[]
[]
[]
[]
[]
[]
[]
[]
[]
[]
[]
[]
[]
[]
[]
[]
[]
[]
[]
[]
[]
[]
[]
[]
[]
[]
[]
[]
[]
[]
[]
[]
[]
[]
[]
[]
[]
[]
[]
[]
[]
[]
[]
[]
[]
[]
[]
[]
[]
[]
[]
[]
[]
[]
[]
[]
[]
[]
[]
[]
[]
[]
[]
[]
[]
[]
[]
[]
[]
[]
[]
[]
[]
[]
[]
[]
[]
[]
[]
[]
[]
[]
[]
[]
[]
[]
[]
[]
[]
[]
[]
[]
[]
[]
[]
[]
[]
[]
[]
[]
[]
[]
[]
[]
[]
[]
[]
[]
[]
[]
[]
[]
[]
[]
[]
[]
[]
[]
[]
[]
[]
[]
[]
[]
[]
[]
[]
[]
[]
[]
[]
[]
[]
[]
[]
[]
[]
[]
[]
[]
[]
[]
[]
[]
[]
[]
[]
[]
[]
[]
[]
[]
[]
[]
[]
[]
[]
[]
[]
[]
[]
[]
[]
[]
[]
[]
[]
[]
[]
[]
[]
[]
[]
[]
[]
[]
[]
[]
[]
[]
[]
[]
[]
[]
[]
[]
[]
[]
[]
[]
[]
[]
[]
[]
[]
[]
[]
[]
[]
[]
[]
[]
[]
[]
[]
[]
[]
[]
[]
[]
[]
[]
[]
[]
[]
[]
[]
[]
[]
[]
[]
[]
[]
[]
[]
[]
[]
[]
[]
[]
[]
[]
[]
[]
[]
[]
[]
[]
[]
[]
[]
[]
[]
[]
[]
[]
[]
[]
[]
[]
[]
[]
[]
[]
[]
[]
[]
[]
[]
[]
[]
[]
[]
[]
[]
[]
[]
[]
[]
[]
[]
[]
[]
[]
[]
[]
[]
[]
[]
[]
[]
[]
[]
[]
[]
[]
[]
[]
[]
[]
[]
[]
[]
[]
[]
[]
[]
[]
[]
[]
[]
[]
[]
[]
[]
[]
[]
[]
[]
[]
[]
[]
[]
[]
[]
[]
[]
[]
[]
[]
[]
[]
[]
[]
[]
[]
[]
[]
[]
[]
[]
[]
[]
[]
[]
[]
[]
[]
[]
[]
[]
[]
[]
[]
[]
[]
[]
[]
[]
[]
[]
[]
[]
[]
[]
[]
[]
[]
[]
[]
[]
[]
[]
[]
[]
[]
[]
[]
[]
[]
[]
[]
[]
[]
[]
[]
[]
[]
[]
[]
[]
[]
[]
[]
[]
[]
[]
[]
[]
[]
[]
[]
[]
[]
[]
[]
[]
[]
[]
[]
[]
[]
[]
[]
[]
[]
[]
[]
[]
[]
[]
[]
[]
[]
[]
[]
[]
[]
[]
[]
[]
[]
[]
[]
[]
[]
[]
[]
[]
[]
[]
[]
[]
[]
[]
[]
[]
[]
[]
[]
[]
[]
[]
[]
[]
[]
[]
[]
[]
[]
[]
[]
[]
[]
[]
[]
[]
[]
[]
[]
[]
[]
[]
[]
[]
[]
[]
[]
[]
[]
[]
[]
[]
[]
[]
[]
[]
[]
[]
[]
[]
[]
[]
[]
[]
[]
[]
[]
[]
[]
[]
[]
[]
[]
[]
[]
[]
[]
[]
[]
[]
[]
[]
[]
[]
[]
[]
[]
[]
[]
[]
[]
[]
[]
[]
[]
[]
[]
[]
[]
[]
[]
[]
[]
[]
[]
[]
[]
[]
[]
[]
[]
[]
[]
[]
[]
[]
[]
[]
[]
[]
[]
[]
[]
[]
[]
[]
[]
[]
[]
[]
[]
[]
[]
[]
[]
[]
[]
[]
[]
[]
[]
[]
[]
[]
[]
[]
[]
[]
[]
[]
[]
[]
[]
[]
[]
[]
[]
[]
[]
[]
[]
[]
[]
[]
[]
[]
[]
[]
[]
[]
[]
[]
[]
[]
[]
[]
[]
[]
[]
[]
[]
[]
[]
[]
[]
[]
[]
[]
[]
[]
[]
[]
[]
[]
[]
[]
[]
[]
[]
[]
[]
[]
[]
[]
[]
[]
[]
[]
[]
[]
[]
[]
[]
[]
[]
[]
[]
[]
[]
[]
[]
[]
[]
[]
[]
[]
[]
[]
[]
[]
[]
[]
[]
[]
[]
[]
[]
[]
[]
[]
[]
[]
[]
[]
[]
[]
[]
[]
[]
[]
[]
[]
[]
[]
[]
[]
[]
[]
[]
[]
[]
[]
[]
[]
[]
[]
[]
[]
[]
[]
[]
[]
[]
[]
[]
[]
[]
[]
[]
[]
[]
[]
[]
[]
[]
[]
[]
[]
[]
[]
[]
[]
[]
[]
[]
[]
[]
[]
[]
[]
[]
[]
[]
[]
[]
[]
[]
[]
[]
[]
[]
[]
[]
[]
[]
[]
[]
[]
[]
[]
[]
[]
[]
[]
[]
[]
[]
[]
[]
[]
[]
[]
[]
[]
[]
[]
[]
[]
[]
[]
[]
[]
[]
[]
[]
[]
[]
[]
[]
[]
[]
[]
[]
[]
[]
[]
[]
[]
[]
[]
[]
[]
[]
[]
[]
[]
[]
[]
[]
[]
[]
[]
[]
[]
[]
[]
[]
[]
[]
[]
[]
[]
[]
[]
[]
[]
[]
[]
[]
[]
[]
[]
[]
[]
[]
[]
[]
[]
[]
[]
[]
[]
[]
[]
[]
[]
[]
[]
[]
[]
[]
[]
[]
[]
[]
[]
[]
[]
[]
[]
[]
[]
[]
[]
[]
[]
[]
[]
[]
[]
[]
[]
[]
[]
[]
[]
[]
[]
[]
[]
[]
[]
[]
[]
[]
[]
[]
[]
[]
[]
[]
[]
[]
[]
[]
[]
[]
[]
[]
[]
[]
[]
[]
[]
[]
[]
[]
[]
[]
[]
[]
[]
[]
[]
[]
[]
[]
[]
[]
[]
[]
[]
[]
[]
[]
[]
[]
[]
[]
[]
[]
[]
[]
[]
[]
[]
[]
[]
[]
[]
[]
[]
[]
[]
[]
[]
[]
[]
[]
[]
[]
[]
[]
[]
[]
[]
[]
[]
[]
[]
[]
[]
[]
[]
[]
[]
[]
[]
[]
[]
[]
[]
[]
[]
[]
[]
[]
[]
[]
[]
[]
[]
[]
[]
[]
[]
[]
[]
[]
[]
[]
[]
[]
[]
[]
[]
[]
[]
[]
[]
[]
[]
[]
[]
[]
[]
[]
[]
[]
[]
[]
[]
[]
[]
[]
[]
[]
[]
[]
[]
[]
[]
[]
[]
[]
[]
[]
[]
[]
[]
[]
[]
[]
[]
[]
[]
[]
[]
[]
[]
[]
[]
[]
[]
[]
[]
[]
[]
[]
[]
[]
[]
[]
[]
[]
[]
[]
[]
[]
[]
[]
[]
[]
[]
[]
[]
[]
[]
[]
[]
[]
[]
[]
[]
[]
[]
[]
[]
[]
[]
[]
[]
[]
[]
[]
[]
[]
[]
[]
[]
[]
[]
[]
[]
[]
[]
[]
[]
[]
[]
[]
[]
[]
[]
[]
[]
[]
[]
[]
[]
[]
[]
[]
[]
[]
[]
[]
[]
[]
[]
[]
[]
[]
[]
[]
[]
[]
[]
[]
[]
[]
[]
[]
[]
[]
[]
[]
[]
[]
[]
[]
[]
[]
[]
[]
[]
[]
[]
[]
[]
[]
[]
[]
[]
[]
[]
[]
[]
[]
[]
[]
[]
[]
[]
[]
[]
[]
[]
[]
[]
[]
[]
[]
[]
[]
[]
[]
[]
[]
[]
[]
[]
[]
[]
[]
[]
[]
[]
[]
[]
[]
[]
[]
[]
[]
[]
[]
[]
[]
[]
[]
[]
[]
[]
[]
[]
[]
[]
[]
[]
[]
[]
[]
[]
[]
[]
[]
[]
[]
[]
[]
[]
[]
[]
[]
[]
[]
[]
[]
[]
[]
[]
[]
[]
[]
[]
[]
[]
[]
[]
[]
[]
[]
[]
[]
[]
[]
[]
[]
[]
[]
[]
[]
[]
[]
[]
[]
[]
[]
[]
[]
[]
[]
[]
[]
[]
[]
[]
[]
[]
[]
[]
[]
[]
[]
[]
[]
[]
[]
[]
[]
[]
[]
[]
[]
[]
[]
[]
[]
[]
[]
[]
[]
[]
[]
[]
[]
[]
[]
[]
[]
[]
[]
[]
[]
[]
[]
[]
[]
[]
[]
[]
[]
[]
[]
[]
[]
[]
[]
[]
[]
[]
[]
[]
[]
[]
[]
[]
[]
[]
[]
[]
[]
[]
[]
[]
[]
[]
[]
[]
[]
[]
[]
[]
[]
[]
[]
[]
[]
[]
[]
[]
[]
[]
[]
[]
[]
[]
[]
[]
[]
[]
[]
[]
[]
[]
[]
[]
[]
[]
[]
[]
[]
[]
[]
[]
[]
[]
[]
[]
[]
[]
[]
[]
[]
[]
[]
[]
[]
[]
[]
[]
[]
[]
[]
[]
[]
[]
[]
[]
[]
[]
[]
[]
[]
[]
[]
[]
[]
[]
[]
[]
[]
[]
[]
[]
[]
[]
[]
[]
[]
[]
[]
[]
[]
[]
[]
[]
[]
[]
[]
[]
[]
[]
[]
[]
[]
[]
[]
[]
[]
[]
[]
[]
[]
[]
[]
[]
[]
[]
[]
[]
[]
[]
[]
[]
[]
[]
[]
[]
[]
[]
[]
[]
[]
[]
[]
[]
[]
[]
[]
[]
[]
[]
[]
[]
[]
[]
[]
[]
[]
[]
[]
[]
[]
[]
[]
[]
[]
[]
[]
[]
[]
[]
[]
[]
[]
[]
[]
[]
[]
[]
[]
[]
[]
[]
[]
[]
[]
[]
[]
[]
[]
[]
[]
[]
[]
[]
[]
[]
[]
[]
[]
[]
[]
[]
[]
[]
[]
[]
[]
[]
[]
[]
[]
[]
[]
[]
[]
[]
[]
[]
[]
[]
[]
[]
[]
[]
[]
[]
[]
[]
[]
[]
[]
[]
[]
[]
[]
[]
[]
[]
[]
[]
[]
[]
[]
[]
[]
[]
[]
[]
[]
[]
[]
[]
[]
[]
[]
[]
[]
[]
[]
[]
[]
[]
[]
[]
[]
[]
[]
[]
[]
[]
[]
[]
[]
[]
[]
[]
[]
[]
[]
[]
[]
[]
[]
[]
[]
[]
[]
[]
[]
[]
[]
[]
[]
[]
[]
[]
[]
[]
[]
[]
[]
[]
[]
[]
[]
[]
[]
[]
[]
[]
[]
[]
[]
[]
[]
[]
[]
[]
[]
[]
[]
[]
[]
[]
[]
[]
[]
[]
[]
[]
[]
[]
[]
[]
[]
[]
[]
[]
[]
[]
[]
[]
[]
[]
[]
[]
[]
[]
[]
[]
[]
[]
[]
[]
[]
[]
[]
[]
[]
[]
[]
[]
[]
[]
[]
[]
[]
[]
[]
[]
[]
[]
[]
[]
[]
[]
[]
[]
[]
[]
[]
[]
[]
[]
[]
[]
[]
[]
[]
[]
[]
[]
[]
[]
[]
[]
[]
[]
[]
[]
[]
[]
[]
[]
[]
[]
[]
[]
[]
[]
[]
[]
[]
[]
[]
[]
[]
[]
[]
[]
[]
[]
[]
[]
[]
[]
[]
[]
[]
[]
[]
[]
[]
[]
[]
[]
[]
[]
[]
[]
[]
[]
[]
[]
[]
[]
[]
[]
[]
[]
[]
[]
[]
[]
[]
[]
[]
[]
[]
[]
[]
[]
[]
[]
[]
[]
[]
[]
[]
[]
[]
[]
[]
[]
[]
[]
[]
[]
[]
[]
[]
[]
[]
[]
[]
[]
[]
[]
[]
[]
[]
[]
[]
[]
[]
[]
[]
[]
[]
[]
[]
[]
[]
[]
[]
[]
[]
[]
[]
[]
[]
[]
[]
[]
[]
[]
[]
[]
[]
[]
[]
[]
[]
[]
[]
[]
[]
[]
[]
[]
[]
[]
[]
[]
[]
[]
[]
[]
[]
[]
[]
[]
[]
[]
[]
[]
[]
[]
[]
[]
[]
[]
[]
[]
[]
[]
[]
[]
[]
[]
[]
[]
[]
[]
[]
[]
[]
[]
[]
[]
[]
[]
[]
[]
[]
[]
[]
[]
[]
[]
[]
[]
[]
[]
[]
[]
[]
[]
[]
[]
[]
[]
[]
[]
[]
[]
[]
[]
[]
[]
[]
[]
[]
[]
[]
[]
[]
[]
[]
[]
[]
[]
[]
[]
[]
[]
[]
[]
[]
[]
[]
[]
[]
[]
[]
[]
[]
[]
[]
[]
[]
[]
[]
[]
[]
[]
[]
[]
[]
[]
[]
[]
[]
[]
[]
[]
[]
[]
[]
[]
[]
[]
[]
[]
[]
[]
[]
[]
[]
[]
[]
[]
[]
[]
[]
[]
[]
[]
[]
[]
[]
[]
[]
[]
[]
[]
[]
[]
[]
[]
[]
[]
[]
[]
[]
[]
[]
[]
[]
[]
[]
[]
[]
[]
[]
[]
[]
[]
[]
[]
[]
[]
[]
[]
[]
[]
[]
[]
[]
[]
[]
[]
[]
[]
[]
[]
[]
[]
[]
[]
[]
[]
[]
[]
[]
[]
[]
[]
[]
[]
[]
[]
[]
[]
[]
[]
[]
[]
[]
[]
[]
[]
[]
[]
[]
[]
[]
[]
[]
[]
[]
[]
[]
[]
[]
[]
[]
[]
[]
[]
[]
[]
[]
[]
[]
[]
[]
[]
[]
[]
[]
[]
[]
[]
[]
[]
[]
[]
[]
[]
[]
[]
[]
[]
[]
[]
[]
[]
[]
[]
[]
[]
[]
[]
[]
[]
[]
[]
[]
[]
[]
[]
[]
[]
[]
[]
[]
[]
[]
[]
[]
[]
[]
[]
[]
[]
[]
[]
[]
[]
[]
[]
[]
[]
[]
[]
[]
[]
[]
[]
[]
[]
[]
[]
[]
[]
[]
[]
[]
[]
[]
[]
[]
[]
[]
[]
[]
[]
[]
[]
[]
[]
[]
[]
[]
[]
[]
[]
[]
[]
[]
[]
[]
[]
[]
[]
[]
[]
[]
[]
[]
[]
[]
[]
[]
[]
[]
[]
[]
[]
[]
[]
[]
[]
[]
[]
[]
[]
[]
[]
[]
[]
[]
[]
[]
[]
[]
[]
[]
[]
[]
[]
[]
[]
[]
[]
[]
[]
[]
[]
[]
[]
[]
[]
[]
[]
[]
[]
[]
[]
[]
[]
[]
[]
[]
[]
[]
[]
[]
[]
[]
[]
[]
[]
[]
[]
[]
[]
[]
[]
[]
[]
[]
[]
[]
[]
[]
[]
[]
[]
[]
[]
[]
[]
[]
[]
[]
[]
[]
[]
[]
[]
[]
[]
[]
[]
[]
[]
[]
[]
[]
[]
[]
[]
[]
[]
[]
[]
[]
[]
[]
[]
[]
[]
[]
[]
[]
[]
[]
[]
[]
[]
[]
[]
[]
[]
[]
[]
[]
[]
[]
[]
[]
[]
[]
[]
[]
[]
[]
[]
[]
[]
[]
[]
[]
[]
[]
[]
[]
[]
[]
[]
[]
[]
[]
[]
[]
[]
[]
[]
[]
[]
[]
[]
[]
[]
[]
[]
[]
[]
[]
[]
[]
[]
[]
[]
[]
[]
[]
[]
[]
[]
[]
[]
[]
[]
[]
[]
[]
[]
[]
[]
[]
[]
[]
[]
[]
[]
[]
[]
[]
[]
[]
[]
[]
[]
[]
[]
[]
[]
[]
[]
[]
[]
[]
[]
[]
[]
[]
[]
[]
[]
[]
[]
[]
[]
[]
[]
[]
[]
[]
[]
[]
[]
[]
[]
[]
[]
[]
[]
[]
[]
[]
[]
[]
[]
[]
[]
[]
[]
[]
[]
[]
[]
[]
[]
[]
[]
[]
[]
[]
[]
[]
[]
[]
[]
[]
[]
[]
[]
[]
[]
[]
[]
[]
[]
[]
[]
[]
[]
[]
[]
[]
[]
[]
[]
[]
[]
[]
[]
[]
[]
[]
[]
[]
[]
[]
[]
[]
[]
[]
[]
[]
[]
[]
[]
[]
[]
[]
[]
[]
[]
[]
[]
[]
[]
[]
[]
[]
[]
[]
[]
[]
[]
[]
[]
[]
[]
[]
[]
[]
[]
[]
[]
[]
[]
[]
[]
[]
[]
[]
[]
[]
[]
[]
[]
[]
[]
[]
[]
[]
[]
[]
[]
[]
[]
[]
[]
[]
[]
[]
[]
[]
[]
[]
[]
[]
[]
[]
[]
[]
[]
[]
[]
[]
[]
[]
[]
[]
[]
[]
[]
[]
[]
[]
[]
[]
[]
[]
[]
[]
[]
[]
[]
[]
[]
[]
[]
[]
[]
[]
[]
[]
[]
[]
[]
[]
[]
[]
[]
[]
[]
[]
[]
[]
[]
[]
[]
[]
[]
[]
[]
[]
[]
[]
[]
[]
[]
[]
[]
[]
[]
[]
[]
[]
[]
[]
[]
[]
[]
[]
[]
[]
[]
[]
[]
[]
[]
[]
[]
[]
[]
[]
[]
[]
[]
[]
[]
[]
[]
[]
[]
[]
[]
[]
[]
[]
[]
[]
[]
[]
[]
[]
[]
[]
[]
[]
[]
[]
[]
[]
[]
[]
[]
[]
[]
[]
[]
[]
[]
[]
[]
[]
[]
[]
[]
[]
[]
[]
[]
[]
[]
[]
[]
[]
[]
[]
[]
[]
[]
[]
[]
[]
[]
[]
[]
[]
[]
[]
[]
[]
[]
[]
[]
[]
[]
[]
[]
[]
[]
[]
[]
[]
[]
[]
[]
[]
[]
[]
[]
[]
[]
[]
[]
[]
[]
[]
[]
[]
[]
[]
[]
[]
[]
[]
[]
[]
[]
[]
[]
[]
[]
[]
[]
[]
[]
[]
[]
[]
[]
[]
[]
[]
[]
[]
[]
[]
[]
[]
[]
[]
[]
[]
[]
[]
[]
[]
[]
[]
[]
[]
[]
[]
[]
[]
[]
[]
[]
[]
[]
[]
[]
[]
[]
[]
[]
[]
[]
[]
[]
[]
[]
[]
[]
[]
[]
[]
[]
[]
[]
[]
[]
[]
[]
[]
[]
[]
[]
[]
[]
[]
[]
[]
[]
[]
[]
[]
[]
[]
[]
[]
[]
[]
[]
[]
[]
[]
[]
[]
[]
[]
[]
[]
[]
[]
[]
[]
[]
[]
[]
[]
[]
[]
[]
[]
[]
[]
[]
[]
[]
[]
[]
[]
[]
[]
[]
[]
[]
[]
[]
[]
[]
[]
[]
[]
[]
[]
[]
[]
[]
[]
[]
[]
[]
[]
[]
[]
[]
[]
[]
[]
[]
[]
[]
[]
[]
[]
[]
[]
[]
[]
[]
[]
[]
[]
[]
[]
[]
[]
[]
[]
[]
[]
[]
[]
[]
[]
[]
[]
[]
[]
[]
[]
[]
[]
[]
[]
[]
[]
[]
[]
[]
[]
[]
[]
[]
[]
[]
[]
[]
[]
[]
[]
[]
[]
[]
[]
[]
[]
[]
[]
[]
[]
[]
[]
[]
[]
[]
[]
[]
[]
[]
[]
[]
[]
[]
[]
[]
[]
[]
[]
[]
[]
[]
[]
[]
[]
[]
[]
[]
[]
[]
[]
[]
[]
[]
[]
[]
[]
[]
[]
[]
[]
[]
[]
[]
[]
[]
[]
[]
[]
[]
[]
[]
[]
[]
[]
[]
[]
[]
[]
[]
[]
[]
[]
[]
[]
[]
[]
[]
[]
[]
[]
[]
[]
[]
[]
[]
[]
[]
[]
[]
[]
[]
[]
[]
[]
[]
[]
[]
[]
[]
[]
[]
[]
[]
[]
[]
[]
[]
[]
[]
[]
[]
[]
[]
[]
[]
[]
[]
[]
[]
[]
[]
[]
[]
[]
[]
[]
[]
[]
[]
[]
[]
[]
[]
[]
[]
[]
[]
[]
[]
[]
[]
[]
[]
[]
[]
[]
[]
[]
[]
[]
[]
[]
[]
[]
[]
[]
[]
[]
[]
[]
[]
[]
[]
[]
[]
[]
[]
[]
[]
[]
[]
[]
[]
[]
[]
[]
[]
[]
[]
[]
[]
[]
[]
[]
[]
[]
[]
[]
[]
[]
[]
[]
[]
[]
[]
[]
[]
[]
[]
[]
[]
[]
[]
[]
[]
[]
[]
[]
[]
[]
[]
[]
[]
[]
[]
[]
[]
[]
[]
[]
[]
[]
[]
[]
[]
[]
[]
[]
[]
[]
[]
[]
[]
[]
[]
[]
[]
[]
[]
[]
[]
[]
[]
[]
[]
[]
[]
[]
[]
[]
[]
[]
[]
[]
[]
[]
[]
[]
[]
[]
[]
[]
[]
[]
[]
[]
[]
[]
[]
[]
[]
[]
[]
[]
[]
[]
[]
[]
[]
[]
[]
[]
[]
[]
[]
[]
[]
[]
[]
[]
[]
[]
[]
[]
[]
[]
[]
[]
[]
[]
[]
[]
[]
[]
[]
[]
[]
[]
[]
[]
[]
[]
[]
[]
[]
[]
[]
[]
[]
[]
[]
[]
[]
[]
[]
[]
[]
[]
[]
[]
[]
[]
[]
[]
[]
[]
[]
[]
[]
[]
[]
[]
[]
[]
[]
[]
[]
[]
[]
[]
[]
[]
[]
[]
[]
[]
[]
[]
[]
[]
[]
[]
[]
[]
[]
[]
[]
[]
[]
[]
[]
[]
[]
[]
[]
[]
[]
[]
[]
[]
[]
[]
[]
[]
[]
[]
[]
[]
[]
[]
[]
[]
[]
[]
[]
[]
[]
[]
[]
[]
[]
[]
[]
[]
[]
[]
[]
[]
[]
[]
[]
[]
[]
[]
[]
[]
[]
[]
[]
[]
[]
[null,null,1]

{"sheet":"お客さまDNS設定情報","index":6,"n_rows":27,"n_cols":56,"rows_kept":27,"cut":false,"hidden":false,"merged":[[25,35,26,51],[22,0,22,51],[23,0,24,5],[23,6,23,12],[23,13,23,34],[23,35,23,51],[24,6,24,12],[24,13,24,34],[24,35,24,51],[25,0,26,5],[25,6,25,12],[25,13,25,34],[26,6,26,12],[26,13,26,34],[18,0,18,51],[19,0,21,5],[19,6,19,12],[19,13,19,34],[19,35,19,51],[21,6,21,12],[21,13,21,34],[20,6,20,12],[20,13,20,34],[20,35,21,51],[16,13,16,34],[17,6,17,12],[17,13,17,34],[16,35,17,51],[12,0,12,12],[12,13,12,34],[13,0,13,12],[13,13,13,34],[12,35,13,51],[15,0,15,51],[16,0,17,5],[16,6,16,12],[14,0,14,51],[8,35,8,51],[10,0,10,51],[11,0,11,51],[7,0,8,5],[8,6,8,12],[7,6,7,12],[9,0,9,12],[9,13,9,34],[9,35,9,51],[7,13,7,34],[7,35,7,51],[8,13,8,34],[2,0,2,51],[3,0,3,51],[4,0,4,51],[5,0,5,51],[6,0,6,12],[6,13,6,34],[6,35,6,51]]}
[null,null,null,null,null,null,null,null,null,null,null,null,null,null,null,null,null,null,null,null,null,null,null,null,null,null,null,null,null,null,null,null,null,null,null,null,null,null,null,null,null,null,null,null,null,null,null,null,null,null,null,{"$f":"基本情報!$AZ$1","v":"Ver.1.14A(2025/4/30)"}]
[]
[{"$f":"基本情報!A5","v":"第６種オープンコンピュータ通信網サービス　IP8/IP16/IP32/IP64　契約申込書（新規）"}]
["■「ご利用ドメイン形態」にて「お客様独自ドメインご利用」を選択のお客さまはご記入ください。",null,null,null,null,null,null,null,null,null,null,null,null,null,null,null,null,null,null,null,null,null,null,null,null,null,null,null,null,null,null,null,null,null,null,null,null,null,null,null,null,null,null,null,null,null,null,null,null,null,null,null,null,null,"お客さまDNS設定情報\nシート\n【条件付き書式】",{"$f":"OR(__\\osApptypeUsedomainformCd=\"\",__\\osApptypeUsedomainformCd=\"お客様独自ドメインご利用\")","v":true}]
["お客さまドメイン設定情報（独自ドメイン名）"]
["【指定事業者の変更について】\n以下のURLの指定事業者変更よりご利用のドメイン種別を選択いただき、カスタマサポートデスクよりお申込みを行ってください。\nURL：https://www.ntt.com/business/services/network/internet-connect/ocn-business/ni/domain/transfer.html#tab1-3\nなお、新規ご契約と合わせて指定事業者変更をお申込みいただく場合は、書面でのお申込となりますので予めご了承下さい。                              \n以下のURLから申請書をダウンロードしメール・郵送にてお申込下さい。\nURL：https://www.ntt.com/business/services/network/internet-connect/ocn-business/ni/download.html \n指定事業者がOCN以外の場合、お客さまからOCNへ「ネームサーバ登録」「レジストリデータベース情報」の登録、変更を依頼されましても対応できませんことを了承願います。"]
["使用するドメイン名について（必須）",null,null,null,null,null,null,null,null,null,null,null,null,null,null,null,null,null,null,null,null,null,null,null,null,null,null,null,null,null,null,null,null,null,null,"選択してください\n※代行取得申請を希望するドメインの種類毎に「取得申請書」を準備しておりますので、営業担当者の方はご注意ください。\n※「新たに申請する」を選択の場合、「使用ドメイン名」へ取得申請中または取得予定のドメイン名を下記に記入ください。\n※「既得のドメイン名を利用する」を選択の場合、「使用ドメイン名」へ使用するドメイン名を記入ください。"]
["ドメイン種別",null,null,null,null,null,"ドメイン種別\n（新たに申請する（ＯＣＮによる代行申請を希望））\n（必須）",null,null,null,null,null,null,null,null,null,null,null,null,null,null,null,null,null,null,null,null,null,null,null,null,null,null,null,null,"選択してください",null,null,null,null,null,null,null,null,null,null,null,null,null,null,null,null,null,null,"ドメイン種別\n【条件付き書式】",{"$f":"AND($N$7<>\"新たに申請する(お客さまにて申請)\",$N$7<>\"既得のドメイン名を利用する\")","v":true}]
[null,null,null,null,null,null,"属性型JPドメイン種別\n（属性型JPドメイン）\n（必須）",null,null,null,null,null,null,null,null,null,null,null,null,null,null,null,null,null,null,null,null,null,null,null,null,null,null,null,null,"選択してください",null,null,null,null,null,null,null,null,null,null,null,null,null,null,null,null,null,null,"属性型JPドメイン種別\n【条件付き書式】",{"$f":"AND($N$7<>\"新たに申請する(お客さまにて申請)\",$N$7<>\"既得のドメイン名を利用する\",N8<>\"汎用・都道府県型JPドメイン\",N8<>\"gTLDドメイン(.com/.net/.org)\")","v":true}]
["使用ドメイン名\n（必須）",null,null,null,null,null,null,null,null,null,null,null,null,null,null,null,null,null,null,null,null,null,null,null,null,null,null,null,null,null,null,null,null,null,null,"半角50桁以内\n※半角英小文字・半角数字・半角ハイフン・ピリオドのみご使用いただけます。\n※サブドメイン名で使用される場合は、サブドメイン名から記入ください。"]
["DNS利用形態"]
["■ご注意\n※前項の「使用ドメイン」でメール＆ウェブを利用の場合は以下をご確認ください。\n　メール＆ウェブのDNS機能をご利用の場合、回線サービスは独自ドメイン利用の形態でお申込みいただくことはできません。\n　お客様でDNSサーバをご用意いただくか、OCNサブドメイン利用としていただく必要があります。（メール＆ウェブのDNS機能に本契約回線の接続に関する情報を管理、設定する機能がありません）\n　お客様でDNSサーバをご用意いただく場合は、「お客様にてDNSを用意いただく」にチェックをし、プライマリDNSサーバ名等の情報を以下にご記入ください。\n　お客さまでDNSサーバを用意いただけない場合は、ご利用ドメイン形態を「OCNサブドメインご利用」「ドメイン利用なし」でお申込ください。"]
["正引き用DNSご利用形態（必須）",null,null,null,null,null,null,null,null,null,null,null,null,null,null,null,null,null,null,null,null,null,null,null,null,null,null,null,null,null,null,null,null,null,null,"選択してください\n※「DNSサービス　DNSアウトソーシングプランを利用する」は、\n前項の「使用ドメイン名」での弊社DNSサービスの利用がある場合、もしくは、本申込と同時に前項の「使用ドメイン名」　にてDNSアウトソーシングプランを新規でお申込いただく場合に選択ください。",null,null,null,null,null,null,null,null,null,null,null,null,null,null,null,null,null,null,"正引き関連項目\n【条件付き書式】",{"$f":"$N$13<>\"DNSサービスDNSアウトソーシングプランを利用する\"","v":true}]
["逆引き用DNSご利用形態（必須）",null,null,null,null,null,null,null,null,null,null,null,null,null,null,null,null,null,null,null,null,null,null,null,null,null,null,null,null,null,null,null,null,null,null,null,null,null,null,null,null,null,null,null,null,null,null,null,null,null,null,null,null,null,"逆引き関連項目\n【条件付き書式】",{"$f":"AND($N$14<>\"DNSサービスDNSアウトソーシングプランを利用する\",$N$14<>\"設定しない\")","v":true}]
["お客さまDNS設定情報　※DNS利用形態で、「お客さまにてDNSをご用意いただく」を選択の場合記入"]
["【プライマリDNSサーバ名】\n◆お客さまでプライマリDNSサーバを用意される場合は、お客さまプライマリDNSサーバ名を必ず記入ください。\n※DNSサーバ名は「FQDN（ホスト名＋ドメイン名（サブドメイン名も含む））」で記入ください。"]
["プライマリ\nDNSサーバ名",null,null,null,null,null,"正引き用DNSサーバ名\n（必須）",null,null,null,null,null,null,null,null,null,null,null,null,null,null,null,null,null,null,null,null,null,null,null,null,null,null,null,null,"半角80桁以内\n※半角英小文字・半角数字・半角ハイフン・半角ピリオドのみご使用いただけます。\n※１台のプライマリDNSサーバにて複数のOCN回線をご契約のお客さまは、契約回線の登録内容に変更の必要があれば、回線毎に変更申込書の提出が必要となりますのでご注意ください。\nお申込みの際には、前項で記入いただいたドメインによる複数回線契約、ホスティング契約の有無を必ずご確認ください。",null,null,null,null,null,null,null,null,null,null,null,null,null,null,null,null,null,null,"正引き用DNSサーバ名\n【条件付き書式】",{"$f":"$BD$13","v":true}]
[null,null,null,null,null,null,"逆引き用DNSサーバ名\n（必須）",null,null,null,null,null,null,null,null,null,null,null,null,null,null,null,null,null,null,null,null,null,null,null,null,null,null,null,null,null,null,null,null,null,null,null,null,null,null,null,null,null,null,null,null,null,null,null,"逆引き用DNSサーバ名\n【条件付き書式】",{"$f":"$BD$14","v":true}]
["【プライマリDNSサーバIPアドレス】\n◆お客さまでプライマリDNSサーバを用意される場合は、必ず記入ください。\n◆「本OCN回線にプライマリDNSサーバを設置する」を選択のお客さま\n　※ OCN回線サービスのセカンダリDNSを希望される場合は、お客さまのDNSサーバのIPアドレスはOCNが指定します。\n　  OCNでのドメイン代行取得申請を承っていないお客様で、NICへのドメイン情報登録が必要な場合はお客様にて登録申請手続き願います。\n　　切り替えに必要なお客様作業（標準的な作業）ついては、ご利用開始の数日前に郵送する 「ご利用内容の案内」をご一読ください。"]
["プライマリ\nDNSサーバ\nIPアドレス",null,null,null,null,null,"設置形態\n（お客さまにてDNSを用意いただく）（必須）",null,null,null,null,null,null,null,null,null,null,null,null,null,null,null,null,null,null,null,null,null,null,null,null,null,null,null,null,"選択してください",null,null,null,null,null,null,null,null,null,null,null,null,null,null,null,null,null,null,"プライマリDNSサーバ\n設置形態\n【条件付き書式】",{"$f":"OR($BD$13=TRUE,$BD$14=TRUE)","v":true}]
[null,null,null,null,null,null,"正引き用サーバ\nIPアドレス\n（本OCN回線以外にDNSｻｰﾊﾞを設置する）（必須）",null,null,null,null,null,null,null,null,null,null,null,null,null,null,null,null,null,null,null,null,null,null,null,null,null,null,null,null,"半角15桁以内\n※「本OCN回線以外にDNSサーバを設置する」を選択の場合、お客さまでご用意いただくプライマリDNSサーバのIPアドレスを必ずご記入ください。",null,null,null,null,null,null,null,null,null,null,null,null,null,null,null,null,null,null,"正引き用サーバ\nIPアドレス\n【条件付き書式】",{"$f":"AND($BD$13=TRUE,$N$20<>\"本OCN回線にプライマリDNSサーバを設置する\")","v":true}]
[null,null,null,null,null,null,"逆引き用サーバ\nIPアドレス\n（本OCN回線以外にDNSｻｰﾊﾞを設置する）（必須）",null,null,null,null,null,null,null,null,null,null,null,null,null,null,null,null,null,null,null,null,null,null,null,null,null,null,null,null,null,null,null,null,null,null,null,null,null,null,null,null,null,null,null,null,null,null,null,"逆引き用サーバ\nIPアドレス\n【条件付き書式】",{"$f":"AND($BD$14=TRUE,$N$20<>\"本OCN回線にプライマリDNSサーバを設置する\")","v":true}]
["【セカンダリDNSサービス】\n◆お客さまでプライマリDNSサーバを用意される場合は、必ず記入ください。\n※１のドメインに限りセカンダリDNSサービスをご利用いただくことができます。（工事費は有料・定額利用料無料）\n※複数個目のドメインでセカンダリDNSサービスのご希望がある場合、DNSサービスのセカンダリDNSプランをお申込みください。（工事費・定額利用料共に有料・別申込み）"]
["セカンダリDNS\nサービス",null,null,null,null,null,"ご希望有無\n（お客さまにてDNSを用意いただく）（必須）",null,null,null,null,null,null,null,null,null,null,null,null,null,null,null,null,null,null,null,null,null,null,null,null,null,null,null,null,"選択して下さい\n※「希望しない」を選択の場合、お客さまでセカンダリDNSをご用意ください。",null,null,null,null,null,null,null,null,null,null,null,null,null,null,null,null,null,null,"【条件付き書式】",{"$f":"OR($BD$13=TRUE,$BD$14=TRUE)","v":true}]
[null,null,null,null,null,null,"ご利用形態\n（希望する）（必須）",null,null,null,null,null,null,null,null,null,null,null,null,null,null,null,null,null,null,null,null,null,null,null,null,null,null,null,null,"選択してください\n※セカンダリDNSサービスを利用いただくためには、お客様がDNSサーバを立ち上げられたことをお知らせいただく必要があります。\nIPアドレス等の設定に関する情報は、ご利用開始の数日前に郵送する「ご利用内容の案内」資料をご覧ください。",null,null,null,null,null,null,null,null,null,null,null,null,null,null,null,null,null,null,"【条件付き書式】",{"$f":"AND($BD$24=TRUE,$N$24<>\"希望しない\")","v":true}]
["逆引き権限委譲追加他DNSサーバ名",null,null,null,null,null,"DNSサーバ名1",null,null,null,null,null,null,null,null,null,null,null,null,null,null,null,null,null,null,null,null,null,null,null,null,null,null,null,null,"半角80桁以内\n※半角英小文字・半角数字・半角ハイフン・半角ピリオドのみご使用いただけます。\n※希望が無ければ記入不要です。\n※上記「DNSサーバ名」で記載いただいたDNSサーバ以外に逆引き用DNSサーバを２つまで追加登録いただけます。OCNセカンダリDNSサービスを希望されるお客さまは、１つのみ追加いただく事ができます。\n※ＩＰ8、ＩＰ16ではClassC未満のアドレス割当をします。\nその場合、OCNのDNSに逆引きの権限委譲の登録が必要となりますので、複数のDNSサーバをお持ちであれば全てのDNSサーバ名をホスト名から最上位ドメイン名（JP等）までご記入ください。",null,null,null,null,null,null,null,null,null,null,null,null,null,null,null,null,null,null,"【条件付き書式】",{"$f":"$BD$14=TRUE","v":true}]
[null,null,null,null,null,null,"DNSサーバ名2",null,null,null,null,null,null,null,null,null,null,null,null,null,null,null,null,null,null,null,null,null,null,null,null,null,null,null,null,null,null,null,null,null,null,null,null,null,null,null,null,null,null,null,null,null,null,null,"【条件付き書式】",{"$f":"AND($BD$14=TRUE,$N$24<>\"希望する\")","v":true}]

{"sheet":"IPアドレス割当申請書","index":7,"n_rows":89,"n_cols":61,"rows_kept":89,"cut":false,"hidden":false,"merged":[[76,13,76,32],[76,33,76,51],[31,13,31,17],[31,18,31,22],[31,23,31,27],[31,28,31,39],[31,40,31,51],[32,13,32,17],[32,18,32,22],[32,23,32,27],[32,28,32,39],[32,40,32,51],[74,13,74,32],[74,33,74,51],[75,13,75,32],[75,33,75,51],[70,13,70,32],[70,33,70,51],[71,13,71,32],[71,33,71,51],[72,13,72,32],[72,33,72,51],[67,13,67,32],[67,33,67,51],[73,13,73,32],[73,33,73,51],[23,13,23,17],[23,18,23,22],[23,23,23,27],[23,28,23,39],[23,40,23,51],[24,13,24,17],[24,18,24,22],[24,23,24,27],[24,28,24,39],[24,40,24,51],[25,13,25,17],[25,18,25,22],[25,23,25,27],[25,28,25,39],[25,40,25,51],[26,13,26,17],[26,18,26,22],[26,23,26,27],[26,28,26,39],[26,40,26,51],[27,13,27,17],[27,18,27,22],[80,13,80,32],[80,33,80,51],[81,13,81,32],[81,33,81,51],[82,13,82,32],[82,33,82,51],[77,13,77,32],[77,33,77,51],[78,13,78,32],[78,33,78,51],[79,13,79,32],[79,33,79,51],[87,13,87,32],[87,33,87,51],[88,13,88,32],[88,33,88,51],[83,13,83,32],[83,33,83,51],[84,13,84,32],[84,33,84,51],[85,13,85,32],[85,33,85,51],[86,13,86,32],[86,33,86,51],[68,13,68,32],[68,33,68,51],[69,13,69,32],[69,33,69,51],[64,13,64,32],[64,33,64,51],[65,13,65,32],[65,33,65,51],[66,13,66,32],[66,33,66,51],[58,13,58,32],[58,33,58,51],[59,13,59,32],[59,33,59,51],[60,13,60,32],[60,33,60,51],[55,13,55,32],[55,33,55,51],[56,13,56,32],[56,33,56,51],[57,13,57,32],[57,33,57,51],[52,13,52,32],[52,33,52,51],[53,13,53,32],[53,33,53,51],[54,13,54,32],[54,33,54,51],[49,13,49,32],[49,33,49,51],[50,13,50,32],[50,33,50,51],[51,13,51,32],[51,33,51,51],[87,0,87,12],[88,0,88,12],[7,13,7,32],[7,33,7,51],[8,13,8,32],[8,33,8,51],[10,13,10,32],[10,33,10,51],[12,13,12,32],[12,33,12,51],[78,0,85,5],[78,6,79,12],[80,6,81,12],[82,6,83,12],[84,6,85,12],[86,0,86,12],[70,0,72,5],[70,6,70,12],[46,13,46,32],[46,33,46,51],[47,13,47,32],[47,33,47,51],[48,13,48,32],[48,33,48,51],[71,6,71,12],[72,6,72,12],[73,0,77,5],[73,6,73,12],[74,6,74,12],[75,6,75,12],[77,6,77,12],[76,6,76,12],[66,0,67,5],[66,6,66,12],[67,6,67,12],[68,0,69,5],[68,6,68,12],[69,6,69,12],[60,0,60,12],[61,0,61,12],[62,0,62,12],[63,0,63,51],[64,0,64,12],[65,0,65,12],[61,13,61,32],[61,33,61,51],[62,13,62,32],[62,33,62,51],[48,0,49,5],[48,6,48,12],[49,6,49,12],[50,0,50,12],[51,0,51,12],[52,0,59,5],[52,6,53,12],[54,6,55,12],[56,6,57,12],[58,6,59,12],[41,0,41,12],[42,0,42,51],[43,0,43,51],[44,0,44,51],[45,0,45,12],[46,0,47,5],[46,6,46,12],[47,6,47,12],[45,13,45,32],[45,33,45,51],[41,13,41,32],[41,33,41,51],[33,0,33,51],[34,0,34,8],[36,8,36,12],[39,0,39,51],[40,0,40,51],[26,6,26,12],[27,6,27,12],[28,6,28,12],[29,6,29,12],[30,6,30,12],[31,6,31,12],[27,23,27,27],[27,28,27,39],[27,40,27,51],[28,13,28,17],[28,18,28,22],[28,23,28,27],[28,28,28,39],[28,40,28,51],[29,13,29,17],[29,18,29,22],[29,23,29,27],[29,28,29,39],[29,40,29,51],[19,0,19,51],[20,0,20,12],[21,0,21,12],[22,0,31,5],[22,6,22,12],[23,6,23,12],[24,6,24,12],[25,6,25,12],[32,0,32,12],[20,23,21,27],[20,18,21,22],[20,13,21,17],[20,40,21,51],[20,28,21,39],[22,40,22,51],[22,28,22,39],[22,23,22,27],[22,18,22,22],[22,13,22,17],[30,13,30,17],[30,18,30,22],[30,23,30,27],[30,28,30,39],[30,40,30,51],[16,0,16,12],[7,0,8,5],[7,6,7,12],[8,6,8,12],[9,0,9,51],[10,0,10,12],[11,0,11,51],[17,0,17,12],[18,0,18,51],[13,13,13,32],[13,33,13,51],[14,13,14,32],[14,33,14,51],[15,13,15,32],[15,33,15,51],[16,13,16,32],[16,33,16,51],[17,13,17,32],[17,33,17,51],[4,0,4,51],[2,0,2,51],[5,0,5,51],[6,0,6,51],[12,0,15,5],[12,6,12,12],[13,6,13,12],[14,6,14,12],[15,6,15,12]]}
[null,null,null,null,null,null,null,null,null,null,null,null,null,null,null,null,null,null,null,null,null,null,null,null,null,null,null,null,null,null,null,null,null,null,null,null,null,null,null,null,null,null,null,null,null,null,null,null,null,null,null,{"$f":"基本情報!$AZ$1","v":"Ver.1.14A(2025/4/30)"}]
[]
[{"$f":"基本情報!A5","v":"第６種オープンコンピュータ通信網サービス　IP8/IP16/IP32/IP64　契約申込書（新規）"}]
[]
["IPアドレス割当申請情報"]
["【本申請書にご記入いただく情報の利用目的等について】\n(1) 情報の利用目的について                                          \n 　 本書にご記入いただいた内容は、社団法人日本ネットワークインフォメーションセンター（以下、JPNIC）へIPアドレス割り当て管理業務上必要な情報として提供し、同社が運用するＷＨＯＩＳデータベースに登録されます。\n　　その情報は、 「ＪＰＮＩＣのＩＰアドレス割り当て管理業務における情報の取り扱い等に関する規則」第4条（登録情報等の利用目的）http://www.nic.ad.jp/doc/jpnic-00998.html  に定める目的のために利用致します。                                                                                 \n　  この利用目的について、同意していただける場合は、本書にご記入ください。同意していただけない場合は、サービスのお申し込みはお受けできません。                                         \n(2) ＷＨＯＩＳ登録情報の正確性・最新性の確保についてのお願い                                          \n    本書にご記入いただいた内容がＷＨＯＩＳデータベースに登録された後で、その変更があった場合は、遅滞無くＯＣＮサービスセンタへ変更内容をご連絡いただき、登録内容の変更手続きをお取りください。\n   その際、変更に関わる手数料をいただきます。                                                                              \n(3)登録内容の確認                                          \n   本書に記載された内容が、JPNICデータベース上に公開されることをご了承ください。JPNIC登録内容は以下のホームページより確認いただけます。                                         \n   http://whois.nic.ad.jp/cgi-bin/whois_gw                  "]
["ＩＰアドレス引継ぎ有無"]
["ＩＰアドレス引継ぎ",null,null,null,null,null,"有無\n（必須）",null,null,null,null,null,null,null,null,null,null,null,null,null,null,null,null,null,null,null,null,null,null,null,null,null,null,"選択してください"]
[null,null,null,null,null,null,"引継ぎ元お客さま番号\n（有）（必須）",null,null,null,null,null,null,null,null,null,null,null,null,null,null,null,null,null,null,null,null,null,null,null,null,null,null,"N＋半角数字9桁\n※ＩＰアドレスの引継ぎを希望する場合、引継ぎ元のOCNお客さま番号をご記入ください。",null,null,null,null,null,null,null,null,null,null,null,null,null,null,null,null,null,null,null,null,null,null,"引継ぎ元お客さま番号\n【条件付き書式】",{"$f":"$N$8<>\"無\"","v":true}]
["ネットワーク名"]
["ネットワーク名（必須）",null,null,null,null,null,null,null,null,null,null,null,null,null,null,null,null,null,null,null,null,null,null,null,null,null,null,null,null,null,null,null,null,"半角英数12桁以内\n※英大文字・数字・－（ハイフン）を使用して12文字以内で記入ください。\n※先頭と末尾に－（ハイフン）を使用いただく事はできません。"]
["IPアドレス割当申請者（組織）"]
["組織名",null,null,null,null,null,"コピーリスト\n（必須）",null,null,null,null,null,null,null,null,null,null,null,null,null,null,null,null,null,null,null,null,null,null,null,null,null,null,"選択してください"]
[null,null,null,null,null,null,"フリガナ\n（必須）",null,null,null,null,null,null,null,null,null,null,null,null,null,null,null,null,null,null,null,null,null,null,null,null,null,null,"全角70桁以内",null,null,null,null,null,null,null,null,null,null,null,null,null,null,null,null,null,null,null,null,null,null,"組織名/フリガナ\n【条件付き書式】",{"$f":"$N$13<>\"ご契約者名と同じ\"","v":true}]
[null,null,null,null,null,null,"組織名\n（必須）",null,null,null,null,null,null,null,null,null,null,null,null,null,null,null,null,null,null,null,null,null,null,null,null,null,null,"全角40桁以内"]
[null,null,null,null,null,null,"組織名英文\n（Organization)\n（必須）",null,null,null,null,null,null,null,null,null,null,null,null,null,null,null,null,null,null,null,null,null,null,null,null,null,null,"半角70桁以内"]
["ご住所\n（必須）",null,null,null,null,null,null,null,null,null,null,null,null,null,null,null,null,null,null,null,null,null,null,null,null,null,null,null,null,null,null,null,null,"選択してください",null,null,null,null,null,null,null,null,null,null,null,null,null,null,null,null,null,null,null,null,"IPアドレス割当申請者（組織）ご住所\n【リスト】",{"$f":"IF(__\\osUseAddClist=\"次のとおり\",\"list_paddrOrgAddCd_1\",\"list_paddrOrgAddCd_2\")","v":"list_paddrOrgAddCd_2"}]
["個人名の非公開希望",null,null,null,null,null,null,null,null,null,null,null,null,null,null,null,null,null,null,null,null,null,null,null,null,null,null,null,null,null,null,null,null,"組織名を個人名でお申込される場合に選択してください"]
["ＩＰアドレス利用プラン"]
["※このプランを基に割当アドレス数を決定しますので正確に記入ください。\n※サブネット数とサブネット毎のホスト数の合計を「割当直後の予測値/6ヶ月後の予測値/1年後の予測値」として必ず記入ください。\n※各サブネット毎に「利用部署」「利用目的・接続機器」を必ず記入ください。\n※IP種別がIP8の場合はサブネット数は2つまで、IP16の場合は4つまでご記入いただけます。",null,null,null,null,null,null,null,null,null,null,null,null,null,null,null,null,null,null,null,null,null,null,null,null,null,null,null,null,null,null,null,null,null,null,null,null,null,null,null,null,null,null,null,null,null,null,null,null,null,null,null,null,null,null,null,"IPアドレス利用プラン\n【条件付き書式】\n\n※入力可能行数の制御用",{"$f":"IF(__\\osApptypeIpTypeCd=\"\",\"null\",__\\osApptypeIpTypeCd)","v":"null"}]
["　　　　　　　　　　　　　ホスト数",null,null,null,null,null,null,null,null,null,null,null,null,"割当直後の\nホスト数\n（必須）",null,null,null,null,"6ヵ月後の\nホスト数\n（必須）",null,null,null,null,"1年後の\nホスト数\n（必須）",null,null,null,null,"利用部署（必須）",null,null,null,null,null,null,null,null,null,null,null,"利用目的・接続機器（必須）"]
["　　　　サブネット№"]
["サブネット毎の\nホスト数",null,null,null,null,null,"サブネット１\n（必須）"]
[null,null,null,null,null,null,"サブネット２"]
[null,null,null,null,null,null,"サブネット３"]
[null,null,null,null,null,null,"サブネット４"]
[null,null,null,null,null,null,"サブネット５"]
[null,null,null,null,null,null,"サブネット６"]
[null,null,null,null,null,null,"サブネット７"]
[null,null,null,null,null,null,"サブネット８"]
[null,null,null,null,null,null,"サブネット９"]
[null,null,null,null,null,null,"サブネット１０"]
["合計（必須）",null,null,null,null,null,null,null,null,null,null,null,null,{"$f":"IF(SUM(N23:N32)>0,SUM(N23:N32),\"\")","v":""},null,null,null,null,{"$f":"IF(SUM(S23:S32)>0,SUM(S23:S32),\"\")","v":""},null,null,null,null,{"$f":"IF(SUM(X23:X32)>0,SUM(X23:X32),\"\")","v":""}]
["※IPアドレス利用プランに記入された「合計のホスト数」が以下の条件を満たすことが、割当ての条件となります。"]
["　☆割当条件"]
[null,"割当直後利用率",null,null,null,null,null,null,null,null,null,null,null,null,null,null,null,null,null,null,null,null,null,null,null,null,null,null,null,null,null,null,"合計のホスト数（記入されたホスト数）"]
[null,"6ヵ月後利用率",null,null,null,null,null,null,"50％以上",null,null,null,null,"　　　　　利用率計算方法　　⇒",null,null,null,null,null,null,null,null,"   利用率　＝",null,null,null,null,null,null,null,null,null,null,null,null,null,null,null,null,"×　　１００％"]
[null,"1年後利用率",null,null,null,null,null,null,null,null,null,null,null,null,null,null,null,null,null,null,null,null,null,null,null,null,null,null,null,null,null,null,"割当て希望数－（サブネット数×２）"]
[]
["IPアドレスリナンバ手続き（OCN内リナンバ）の有無"]
["“OCN内リナンバ”とは、既存のOCN回線からの移行（切り替え）をお申し込みのお客さま、またはご利用場所の変更などで割当IPアドレスが変更となるお客さまに対して、既存OCN契約でご利用のIPアドレスの返却と移行後のOCN契約で利用するIPアドレスの登録を同時に実施することを言います。OCN内リナンバ申請の有無を選択ください。\n※返却するIPアドレスと新たに割当てるIPアドレスの組織名が同一の場合に限り、OCN内リナンバ申請が可能です。\n※他ISPから割当てられたIPアドレスを返却するＩＰアドレスとして申請するＩＰアドレスリナンバ申請は、JPNICへのIPアドレスリナンバ申請が廃止されたためOCNからJPNICへ返却することができません。このＩＰアドレスのJPNICへの返却手続きについては、割り当てされたプロバイダにお問合わせください。\n※本申込みと廃止申込書を同時に提出いただく場合のみOCN内リナンバ申請が可能です。本申込書と廃止申込書を別々に送付される場合は、OCN内リナンバ申請を実施することができません。\n※以下に該当するお客さまは、IPアドレス割当てに関するIPアドレス登録料／IPアドレス変更料が必要となります。\n　・返却するIPアドレスより新たに割当てるIPアドレスの個数が増加する場合\n　　　→IPアドレス登録料として5,500円（税込6,050円）が必要\n　・OCN内リナンバ申請と同時に、ネットワーク名・組織情報・管理者連絡窓口・技術連絡担当者情報等が変更となる場合\n　　　→IPアドレス変更料として1,000円（税込1,100円）が必要"]
["申請有無（必須）",null,null,null,null,null,null,null,null,null,null,null,null,null,null,null,null,null,null,null,null,null,null,null,null,null,null,null,null,null,null,null,null,"選択してください"]
["担当者情報/担当グループ情報"]
["ネットワーク情報（IPアドレス割り当てに関する情報）の管理者連絡窓口・技術連絡担当者として、「担当者情報」「担当グループ情報」のいずれかを登録します。「担当者情報」「担当グループ情報」のいずれかを選択のうえ、必要な情報を記入ください。\n　※個人の情報を掲載したくないお客さまは、「担当グループ情報」にて組織やグループの情報を登録することが可能です。\n≪JPNICハンドル／グループハンドルについて≫\n　既にJPNICハンドル（「担当者情報」として登録する場合）／グループハンドル（「担当グループ情報」として登録する場合）をお持ちの方のみ記入ください。\n　JPNICハンドル／グループハンドルを記入いただく際には、JPNIC-DBにて登録内容を予めご確認の上、ご記入ください。 http://whois.nic.ad.jp/cgi-bin/whois_gw\n　※JPNIC-DBの登録内容に一箇所でも変更がある場合、またはJPNIC-DBの[電子メイル]項目が未登録の場合は、JPNICハンドル／グループハンドルにあわせて記入必須項目をすべて記入ください。弊社から登録内容を更新いたします。\n　この場合、別途、IPアドレス変更料をいただきます。\n*1.ご住所については、Whoisでは非公開となります。 \n*2.電話番号については、管理者連絡窓口としてのみ登録されている場合は、Whoisでは非公開となります。"]
["管理者連絡窓口情報"]
["管理者連絡窓口（必須）",null,null,null,null,null,null,null,null,null,null,null,null,null,null,null,null,null,null,null,null,null,null,null,null,null,null,null,null,null,null,null,null,"選択してください\n※管理者連絡窓口の組織名には申請組織以外の方を指定する事はできません。"]
["ＪＰＮＩＣハンドル/\nグループハンドル",null,null,null,null,null,"有無\n（必須）",null,null,null,null,null,null,null,null,null,null,null,null,null,null,null,null,null,null,null,null,null,null,null,null,null,null,"選択してください"]
[null,null,null,null,null,null,"ハンドル名\n（有）（必須）",null,null,null,null,null,null,null,null,null,null,null,null,null,null,null,null,null,null,null,null,null,null,null,null,null,null,"半角16桁以内",null,null,null,null,null,null,null,null,null,null,null,null,null,null,null,null,null,null,null,null,null,null,"ハンドル名\n【条件付き書式】",{"$f":"$N$47<>\"無\"","v":true}]
["ご氏名/グループ名",null,null,null,null,null,"和文\n（必須）",null,null,null,null,null,null,null,null,null,null,null,null,null,null,null,null,null,null,null,null,null,null,null,null,null,null,"全角40桁以内\n※\"「担当者情報」での登録を希望する\"を選択の場合、組織に属する担当者のお名前をご記入ください。\n※\"「担当者グループ情報」での登録を希望する\"を選択の場合、担当者名などグループの名称を記入ください。",null,null,null,null,null,null,null,null,null,null,null,null,null,null,null,null,null,null,null,null,null,null,"ご氏名/グループ名\n和文/英文\n【条件付き書式】",{"$f":"IF(AND($N$46=\"「担当者情報」での登録を希望する\",$N$47=\"有(既存の情報に変更有り)\"),FALSE,TRUE)","v":true},null,"ご氏名/グループ名\n以下の入力制御",{"$f":"$N$47<>\"有(既存の情報に変更無し)\"","v":true}]
[null,null,null,null,null,null,"英文\n（Last,First）/\n（Group Name)\n（必須）",null,null,null,null,null,null,null,null,null,null,null,null,null,null,null,null,null,null,null,null,null,null,null,null,null,null,"半角100桁"]
["組織名（和文/英文）\n（必須）",null,null,null,null,null,null,null,null,null,null,null,null,null,null,null,null,null,null,null,null,null,null,null,null,null,null,null,null,null,null,null,null,"記入不要"]
["ご住所\n（必須）",null,null,null,null,null,null,null,null,null,null,null,null,null,null,null,null,null,null,null,null,null,null,null,null,null,null,null,null,null,null,null,null,"選択してください",null,null,null,null,null,null,null,null,null,null,null,null,null,null,null,null,null,null,null,null,"管理連絡窓口ご住所\n【リスト】",{"$f":"IF(AND(基本情報!$N$48=\"次のとおり\",基本情報!$N$70=\"次のとおり\"),\"list_AdmininfoAdd_1\",IF(AND(基本情報!$N$48<>\"次のとおり\",基本情報!$N$70=\"次のとおり\"),\"list_AdmininfoAdd_2\",IF(AND(基本情報!$N$48=\"次のとおり\",基本情報!$N$70<>\"次のとおり\"),\"list_AdmininfoAdd_3\",IF(AND(基本情報!$N$48<>\"次のとおり\",基本情報!$N$70<>\"次のとおり\"),\"list_AdmininfoAdd_4\",\"null\"))))","v":"list_AdmininfoAdd_4"}]
["部署/肩書",null,null,null,null,null,"部署和文",null,null,null,null,null,null,null,null,null,null,null,null,null,null,null,null,null,null,null,null,null,null,null,null,null,null,"選択してください"]
[null,null,null,null,null,null,null,null,null,null,null,null,null,null,null,null,null,null,null,null,null,null,null,null,null,null,null,null,null,null,null,null,null,"全角20桁以内\n※「その他」を選択の場合、記入してください。",null,null,null,null,null,null,null,null,null,null,null,null,null,null,null,null,null,null,null,null,null,null,"部署和文その他\n【条件付き書式】",{"$f":"OR($N$53=\"\",$N$53=\"その他\")","v":true}]
[null,null,null,null,null,null,"部署英文（Division)",null,null,null,null,null,null,{"$f":"IF(ISERROR(VLOOKUP($N$53,変換!F:G,2,FALSE)),\"\",VLOOKUP($N$53,変換!F:G,2,FALSE))","v":""},null,null,null,null,null,null,null,null,null,null,null,null,null,null,null,null,null,null,null,"記入不要",null,null,null,null,null,null,null,null,null,null,null,null,null,null,null,null,null,null,null,null,null,null,"部署英文\n【条件付き書式】",{"$f":"OR($N$53=\"\",$N$53<>\"その他\")","v":true}]
[null,null,null,null,null,null,null,null,null,null,null,null,null,null,null,null,null,null,null,null,null,null,null,null,null,null,null,null,null,null,null,null,null,"半角40桁以内\n※「その他」を選択の場合、記入してください。",null,null,null,null,null,null,null,null,null,null,null,null,null,null,null,null,null,null,null,null,null,null,"部署英文その他\n【条件付き書式】",{"$f":"OR($N$53=\"\",$N$53=\"その他\")","v":true}]
[null,null,null,null,null,null,"肩書和文",null,null,null,null,null,null,null,null,null,null,null,null,null,null,null,null,null,null,null,null,null,null,null,null,null,null,"選択してください\n※\"「担当者グループ情報」での登録を希望する\"を選択の場合は選択不要です。",null,null,null,null,null,null,null,null,null,null,null,null,null,null,null,null,null,null,null,null,null,null,"肩書和文\n【条件付き書式】",{"$f":"$N$46<>\"「担当グループ情報」での登録を希望する\"","v":true}]
[null,null,null,null,null,null,null,null,null,null,null,null,null,null,null,null,null,null,null,null,null,null,null,null,null,null,null,null,null,null,null,null,null,"全角10桁以内\n※「その他」を選択の場合、記入してください。\n※\"「担当者グループ情報」での登録を希望する\"を選択の場合は記入不要です。",null,null,null,null,null,null,null,null,null,null,null,null,null,null,null,null,null,null,null,null,null,null,"肩書和文その他\n【条件付き書式】",{"$f":"AND($N$46<>\"「担当グループ情報」での登録を希望する\",OR($N$57=\"\",$N$57=\"その他\"))","v":true}]
[null,null,null,null,null,null,"肩書英文（Title)",null,null,null,null,null,null,{"$f":"IF(ISERROR(VLOOKUP($N$57,変換!J:K,2,FALSE)),\"\",VLOOKUP($N$57,変換!J:K,2,FALSE))","v":""},null,null,null,null,null,null,null,null,null,null,null,null,null,null,null,null,null,null,null,"記入不要",null,null,null,null,null,null,null,null,null,null,null,null,null,null,null,null,null,null,null,null,null,null,"肩書英文\n【条件付き書式】",{"$f":"AND($N$46<>\"「担当グループ情報」での登録を希望する\",OR($N$57=\"\",$N$57<>\"その他\"))","v":true}]
[null,null,null,null,null,null,null,null,null,null,null,null,null,null,null,null,null,null,null,null,null,null,null,null,null,null,null,null,null,null,null,null,null,"半角40桁以内\n※「その他」を選択の場合、記入してください。\n※\"「担当者グループ情報」での登録を希望する\"を選択の場合は記入不要です。",null,null,null,null,null,null,null,null,null,null,null,null,null,null,null,null,null,null,null,null,null,null,"肩書英文その他\n【条件付き書式】",{"$f":"AND($N$46<>\"「担当グループ情報」での登録を希望する\",OR($N$57=\"\",$N$57=\"その他\"))","v":true}]
["電話番号\n（必須）",null,null,null,null,null,null,null,null,null,null,null,null,null,null,null,null,null,null,null,null,null,null,null,null,null,null,null,null,null,null,null,null,"ハイフンを含む半角10桁～13桁まで（数字、ハイフンのみ）"]
["FAX番号",null,null,null,null,null,null,null,null,null,null,null,null,null,null,null,null,null,null,null,null,null,null,null,null,null,null,null,null,null,null,null,null,"ハイフンを含む半角10桁～13桁まで（数字、ハイフンのみ）"]
["e-mail\n（必須）",null,null,null,null,null,null,null,null,null,null,null,null,null,null,null,null,null,null,null,null,null,null,null,null,null,null,null,null,null,null,null,null,"半角英数80桁以内"]
["技術連絡担当者情報"]
["コピーリスト\n（必須）",null,null,null,null,null,null,null,null,null,null,null,null,null,null,null,null,null,null,null,null,null,null,null,null,null,null,null,null,null,null,null,null,"選択してください",null,null,null,null,null,null,null,null,null,null,null,null,null,null,null,null,null,null,null,null,null,null,null,null,null,"技術担当者\nコピーリスト\n以下の入力制御",{"$f":"$N$65<>\"全て管理者連絡窓口と同じ\"","v":true}]
["技術連絡担当者\n（必須）",null,null,null,null,null,null,null,null,null,null,null,null,null,null,null,null,null,null,null,null,null,null,null,null,null,null,null,null,null,null,null,null,"選択してください"]
["ＪＰＮＩＣハンドル/\nグループハンドル",null,null,null,null,null,"有無\n（必須）",null,null,null,null,null,null,null,null,null,null,null,null,null,null,null,null,null,null,null,null,null,null,null,null,null,null,"選択してください"]
[null,null,null,null,null,null,"ハンドル名\n（有）（必須）",null,null,null,null,null,null,null,null,null,null,null,null,null,null,null,null,null,null,null,null,null,null,null,null,null,null,"半角16桁以内",null,null,null,null,null,null,null,null,null,null,null,null,null,null,null,null,null,null,null,null,null,null,"ハンドル名\n【条件付き書式】",{"$f":"$N$67<>\"無\"","v":true}]
["ご氏名/グループ名",null,null,null,null,null,"和文\n（必須）",null,null,null,null,null,null,null,null,null,null,null,null,null,null,null,null,null,null,null,null,null,null,null,null,null,null,"全角40桁以内\n※\"「担当者情報」での登録を希望する\"を選択の場合、組織に属する担当者のお名前をご記入ください。\n※\"「担当者グループ情報」での登録を希望する\"を選択の場合、担当者名などｸﾞﾙｰﾌﾟの名称をご記入ください。",null,null,null,null,null,null,null,null,null,null,null,null,null,null,null,null,null,null,null,null,null,null,"ご氏名/グループ名\n和文/英文\n【条件付き書式】",{"$f":"IF(AND($N$66=\"「担当者情報」での登録を希望する\",$N$67=\"有(既存の情報に変更有り)\"),FALSE,TRUE)","v":true},null,"ご氏名/グループ名\n以下の入力制御",{"$f":"$N$67<>\"有(既存の情報に変更無し)\"","v":true}]
[null,null,null,null,null,null,"英文\n（Last,First）/\n（Group Name)\n（必須）",null,null,null,null,null,null,null,null,null,null,null,null,null,null,null,null,null,null,null,null,null,null,null,null,null,null,"半角100桁以内"]
["組織名（和文/英文）",null,null,null,null,null,"コピーリスト\n（必須）",null,null,null,null,null,null,null,null,null,null,null,null,null,null,null,null,null,null,null,null,null,null,null,null,null,null,"選択してください"]
[null,null,null,null,null,null,"和文\n（必須）",null,null,null,null,null,null,null,null,null,null,null,null,null,null,null,null,null,null,null,null,null,null,null,null,null,null,"全角40桁以内",null,null,null,null,null,null,null,null,null,null,null,null,null,null,null,null,null,null,null,null,null,null,"組織名　和文/英文\n 【条件付き書式】",{"$f":"$N$71<>\"IPアドレス割当申請者(組織)と同じ\"","v":true}]
[null,null,null,null,null,null,"英文\n（必須）",null,null,null,null,null,null,null,null,null,null,null,null,null,null,null,null,null,null,null,null,null,null,null,null,null,null,"半角70桁以内"]
["ご住所",null,null,null,null,null,"コピーリスト\n（必須）",null,null,null,null,null,null,null,null,null,null,null,null,null,null,null,null,null,null,null,null,null,null,null,null,null,null,"選択してください",null,null,null,null,null,null,null,null,null,null,null,null,null,null,null,null,null,null,null,null,"技術連絡担当者\nご住所\n【リスト】",{"$f":"IF(AND(基本情報!$N$48=\"次のとおり\",基本情報!$N$70=\"次のとおり\"),\"list_EnginfoAddClistCd_1\",IF(AND(基本情報!$N$48<>\"次のとおり\",基本情報!$N$70=\"次のとおり\"),\"list_EnginfoAddClistCd_2\",IF(AND(基本情報!$N$48=\"次のとおり\",基本情報!$N$70<>\"次のとおり\"),\"list_EnginfoAddClistCd_3\",IF(AND(基本情報!$N$48<>\"次のとおり\",基本情報!$N$70<>\"次のとおり\"),\"list_EnginfoAddClistCd_4\",\"null\"))))","v":"list_EnginfoAddClistCd_4"}]
[null,null,null,null,null,null,"郵便番号\n（必須）",null,null,null,null,null,null,null,null,null,null,null,null,null,null,null,null,null,null,null,null,null,null,null,null,null,null,"半角数字 7桁固定（ハイフンなし）",null,null,null,null,null,null,null,null,null,null,null,null,null,null,null,null,null,null,null,null,null,null,"郵便番号～ビル名等\n 【条件付き書式】",{"$f":"OR($N$74=\"\",$N$74=\"次のとおり\")","v":true}]
[null,null,null,null,null,null,"ご住所\n（必須）",null,null,null,null,null,null,null,null,null,null,null,null,null,null,null,null,null,null,null,null,null,null,null,null,null,null,"全角46桁以内\n※住所を都道府県からご記入ください。"]
[null,null,null,null,null,null,"番地",null,null,null,null,null,null,null,null,null,null,null,null,null,null,null,null,null,null,null,null,null,null,null,null,null,null,"全角20桁以内"]
[null,null,null,null,null,null,"ビル名等",null,null,null,null,null,null,null,null,null,null,null,null,null,null,null,null,null,null,null,null,null,null,null,null,null,null,"全角20桁以内"]
["部署/肩書",null,null,null,null,null,"部署和文",null,null,null,null,null,null,null,null,null,null,null,null,null,null,null,null,null,null,null,null,null,null,null,null,null,null,"選択してください"]
[null,null,null,null,null,null,null,null,null,null,null,null,null,null,null,null,null,null,null,null,null,null,null,null,null,null,null,null,null,null,null,null,null,"全角20桁以内\n※「その他」を選択の場合、記入してください。",null,null,null,null,null,null,null,null,null,null,null,null,null,null,null,null,null,null,null,null,null,null,"部署和文その他\n【条件付き書式】",{"$f":"OR($N$79=\"\",$N$79=\"その他\")","v":true}]
[null,null,null,null,null,null,"部署英文（Division)",null,null,null,null,null,null,{"$f":"IF(ISERROR(VLOOKUP($N$79,変換!F:G,2,FALSE)),\"\",VLOOKUP($N$79,変換!F:G,2,FALSE))","v":""},null,null,null,null,null,null,null,null,null,null,null,null,null,null,null,null,null,null,null,"記入不要",null,null,null,null,null,null,null,null,null,null,null,null,null,null,null,null,null,null,null,null,null,null,"部署英文\n【条件付き書式】",{"$f":"OR($N$79=\"\",$N$79<>\"その他\")","v":true}]
[null,null,null,null,null,null,null,null,null,null,null,null,null,null,null,null,null,null,null,null,null,null,null,null,null,null,null,null,null,null,null,null,null,"半角40桁以内\n※「その他」を選択の場合、記入してください。",null,null,null,null,null,null,null,null,null,null,null,null,null,null,null,null,null,null,null,null,null,null,"部署英文その他\n【条件付き書式】",{"$f":"OR($N$79=\"\",$N$79=\"その他\")","v":true}]
[null,null,null,null,null,null,"肩書和文",null,null,null,null,null,null,null,null,null,null,null,null,null,null,null,null,null,null,null,null,null,null,null,null,null,null,"選択してください\n※\"「担当者グループ情報」での登録を希望する\"を選択の場合は選択不要です。",null,null,null,null,null,null,null,null,null,null,null,null,null,null,null,null,null,null,null,null,null,null,"肩書和文\n【条件付き書式】",{"$f":"$N$66<>\"「担当グループ情報」での登録を希望する\"","v":true}]
[null,null,null,null,null,null,null,null,null,null,null,null,null,null,null,null,null,null,null,null,null,null,null,null,null,null,null,null,null,null,null,null,null,"全角10桁以内\n※「その他」を選択の場合、記入してください。\n※\"「担当者グループ情報」での登録を希望する\"を選択の場合は記入不要です。",null,null,null,null,null,null,null,null,null,null,null,null,null,null,null,null,null,null,null,null,null,null,"肩書和文その他\n【条件付き書式】",{"$f":"AND($N$66<>\"「担当グループ情報」での登録を希望する\",OR($N$83=\"\",$N$83=\"その他\"))","v":true}]
[null,null,null,null,null,null,"肩書英文（Title)",null,null,null,null,null,null,{"$f":"IF(ISERROR(VLOOKUP($N$83,変換!J:K,2,FALSE)),\"\",VLOOKUP($N$83,変換!J:K,2,FALSE))","v":""},null,null,null,null,null,null,null,null,null,null,null,null,null,null,null,null,null,null,null,"記入不要",null,null,null,null,null,null,null,null,null,null,null,null,null,null,null,null,null,null,null,null,null,null,"肩書英文\n【条件付き書式】",{"$f":"AND($N$66<>\"「担当グループ情報」での登録を希望する\",OR($N$83=\"\",$N$83<>\"その他\"))","v":true}]
[null,null,null,null,null,null,null,null,null,null,null,null,null,null,null,null,null,null,null,null,null,null,null,null,null,null,null,null,null,null,null,null,null,"半角40桁以内\n※「その他」を選択の場合、記入してください。\n※\"「担当者グループ情報」での登録を希望する\"を選択の場合は記入不要です。",null,null,null,null,null,null,null,null,null,null,null,null,null,null,null,null,null,null,null,null,null,null,"肩書英文その他\n【条件付き書式】",{"$f":"AND($N$66<>\"「担当グループ情報」での登録を希望する\",OR($N$83=\"\",$N$83=\"その他\"))","v":true}]
["電話番号\n（必須）",null,null,null,null,null,null,null,null,null,null,null,null,null,null,null,null,null,null,null,null,null,null,null,null,null,null,null,null,null,null,null,null,"ハイフンを含む半角10桁～13桁まで（数字、ハイフンのみ）"]
["FAX番号",null,null,null,null,null,null,null,null,null,null,null,null,null,null,null,null,null,null,null,null,null,null,null,null,null,null,null,null,null,null,null,null,"ハイフンを含む半角10桁～13桁まで（数字、ハイフンのみ）"]
["e-mail\n（必須）",null,null,null,null,null,null,null,null,null,null,null,null,null,null,null,null,null,null,null,null,null,null,null,null,null,null,null,null,null,null,null,null,"半角英数80桁以内"]

{"sheet":"list","index":8,"n_rows":370,"n_cols":6,"rows_kept":370,"cut":false,"hidden":true,"merged":[[11,2,20,2],[9,2,10,2]]}
[]
[null,"項目名","条件等","リスト値","名前定義"]
[null,"IP種別","-","IP8","list_Ipaddress"]
[null,null,null,"IP16"]
[null,null,null,"IP32"]
[null,null,null,"IP64"]
[null,"ご利用ドメイン形態","IP8","OCNサブドメインご利用","list_dmainUtilityform_1"]
[null,null,null,"お客様独自ドメインご利用"]
[null,null,null,"ドメイン利用なし"]
[null,null,"IP16\nIP32\nIP64","お客様独自ドメインご利用","list_dmainUtilityform_2"]
[null,null,null,"ドメイン利用なし"]
[null,"アクセスタイプ","IP8\nIP16","フレッツ 光クロス(IPoE 標準プラン)","list_AL_1"]
[null,null,null,"フレッツ 光クロス(IPoE ワイドプラン)"]
[null,null,null,"フレッツ 光クロス(IPoE スーパーワイドプラン)"]
[null,null,null,"フレッツ 光ネクスト(IPoE 標準プラン)"]
[null,null,null,"フレッツ 光ネクスト(IPoE ワイドプラン)"]
[null,null,null,"フレッツ 光ネクスト"]
[null,null,null,"OCN 光サービス(F)「光ネクスト」"]
[null,null,null,"OCN光【光一括提供型】(IPoE 標準プラン)"]
[null,null,null,"OCN光【光一括提供型】(IPoE ワイドプラン)"]
[null,null,null,"OCN光【光一括提供型】"]
[null,null,null,"フレッツ 光ライト",null,"2025/3/21削除（サービス終了の為）"]
[null,null,null,"フレッツ・ISDN",null,"2023年度1Q改版：削除（サービス終了のため）"]
[null,null,null,"フレッツ・ADSL",null,"2024/7/31削除（新規販売停止の為）"]
[null,null,null,"Bフレッツ",null,"2020/11/30削除（サービス終了の為）"]
[null,null,null,"OCN ADSLサービス(F)",null,"2023/7/14削除（新規販売停止の為）"]
[null,null,"IP32,IP64","フレッツ 光ネクスト","list_AL_4"]
[null,null,null,"OCN 光サービス(F)「光ネクスト」"]
[null,null,null,"Bフレッツ",null,"2020/11/30削除（サービス終了の為）"]
[null,"契約タイプ","IP8＋フレッツ・ADSL","1.5Mタイプ","IP8adsl","2024/7/31削除（新規販売停止の為）"]
[null,null,null,"8Mタイプ"]
[null,null,null,"モア(12M)"]
[null,null,null,"モアⅡ(24Mタイプ)/モア24(24タイプ)"]
[null,null,null,"モアⅡ(40M)/モア40(40Mタイプ)"]
[null,null,null,"モアⅢ(47M)・モアスペシャル(47M)"]
[null,null,null,"モアⅢ(47M)・ビジネスタイプ(NTT東日本)"]
[null,null,null,"モアⅡ(24M)・ビジネスタイプ(NTT東日本)"]
[null,null,"IP8＋Bフレッツ","ニューファミリータイプ(NTT東日本)","IP8B","2020/11/30削除（サービス終了の為）"]
[null,null,null,"ベーシックタイプ(NTT東日本/NTT西日本)",null,"2020/11/30削除（サービス終了の為）"]
[null,null,null,"ビジネスタイプ(NTT東日本/NTT西日本)",null,"2020/11/30削除（サービス終了の為）"]
[null,null,null,"ビル・マンションタイプ(NTT東日本/NTT西日本)",null,"2020/11/30削除（サービス終了の為）"]
[null,null,"IP8＋フレッツ 光ネクスト","ファミリータイプ(NTT東日本/NTT西日本)","IP8hn"]
[null,null,null,"ファミリー・ハイスピードタイプ(NTT東日本/NTT西日本)"]
[null,null,null,"マンションタイプ(NTT東日本/NTT西日本)"]
[null,null,null,"マンション・ハイスピードタイプ(NTT東日本/NTT西日本)"]
[null,null,null,"ファミリー・スーパーハイスピードタイプ隼(NTT西日本)"]
[null,null,null,"マンション・スーパーハイスピードタイプ隼(NTT西日本)"]
[null,null,null,"ビジネスタイプ(NTT東日本/NTT西日本)"]
[null,null,null,"プライオ1(NTT東日本)"]
[null,null,null,"プライオ10(NTT東日本)"]
[null,null,null,"ギガファミリー・スマートタイプ(NTT東日本)"]
[null,null,null,"ギガマンション・スマートタイプ(NTT東日本)"]
[null,null,null,"ファミリー・ギガラインタイプ(NTT東日本)"]
[null,null,null,"マンション・ギガラインタイプ(NTT東日本)"]
[null,null,"IP8＋フレッツ 光ライト","ファミリータイプ(NTT東日本/NTT西日本)","IP8hl"]
[null,null,null,"マンションタイプ(NTT東日本/NTT西日本)"]
[null,null,"IP8＋光コラボ（PPPoE/IPoE）","ファミリー 100M(NTT東日本)","IP8hnc"]
[null,null,null,"マンション 100M(NTT東日本)"]
[null,null,null,"ファミリー 100M(NTT西日本)"]
[null,null,null,"マンション 100M(NTT西日本)"]
[null,null,null,"ファミリー 200M(NTT東日本)"]
[null,null,null,"マンション 200M(NTT東日本)"]
[null,null,null,"ファミリー 200M(NTT西日本)"]
[null,null,null,"マンション 200M(NTT西日本)"]
[null,null,null,"ファミリー 1G(NTT東日本)"]
[null,null,null,"マンション 1G(NTT東日本)"]
[null,null,null,"ファミリー 1G(NTT西日本)"]
[null,null,null,"マンション 1G(NTT西日本)"]
[null,null,"IP8＋別契IPoE","NTT東日本","IP8hnIPoE"]
[null,null,"※光クロス含む。","NTT西日本"]
[null,null,"IP8＋OCN ADSLサービス(F)","モアⅢ(47M)(NTT東日本)","IP8adslF","2023/7/14削除（新規販売停止の為）"]
[null,null,null,"モアスペシャル(47M)(NTT西日本)"]
[null,null,null,"モアⅡ(40M)(NTT東日本)"]
[null,null,null,"モア40(40M)(NTT西日本)"]
[null,null,null,"モア24(24M)(NTT西日本)"]
[null,null,null,"モア(12M)(NTT東日本)"]
[null,null,null,"モア(12M)(NTT西日本)"]
[null,null,null,"8M(NTT東日本)"]
[null,null,null,"8M(NTT西日本)"]
[null,null,null,"1.5M(NTT東日本)"]
[null,null,null,"1.5M(NTT西日本)"]
[null,null,null,"モアⅢ(47M)・ビジネスタイプ(NTT東日本)"]
[null,null,null,"モアⅡ(40M)・ビジネスタイプ(NTT東日本)"]
[null,null,"IP8＋OCN 光サービス(F)「光ネクスト」","ファミリータイプ(NTT東日本)","IP8hnF"]
[null,null,null,"ファミリータイプ(NTT西日本)"]
[null,null,null,"ファミリー・ハイスピードタイプ(NTT東日本)"]
[null,null,null,"ファミリー・ハイスピードタイプ(NTT西日本)"]
[null,null,null,"ファミリー・スーパーハイスピードタイプ隼(NTT西日本)"]
[null,null,null,"ビジネスタイプ(NTT東日本)"]
[null,null,null,"ビジネスタイプ(NTT西日本)"]
[null,null,null,"プライオ1(NTT東日本)"]
[null,null,null,"プライオ10(NTT東日本)"]
[null,null,null,"ファミリー・ギガラインタイプ(NTT東日本)"]
[null,null,null,"ギガファミリー・スマートタイプ(NTT東日本)",null,"★ギガスマート新規受付停止に伴う暫定措置。受付再開後は「ファミリー・ギガラインタイプ(NTT東日本)」の上へ戻すこと。"]
[null,null,"IP16＋フレッツ・ADSL","1.5Mタイプ","IP16adsl","2024/7/31削除（新規販売停止の為）"]
[null,null,null,"8Mタイプ"]
[null,null,null,"モア(12M)"]
[null,null,null,"モアⅡ(24Mタイプ)/モア24(24タイプ)"]
[null,null,null,"モアⅡ(40M)/モア40(40Mタイプ)"]
[null,null,null,"モアⅢ(47M)・モアスペシャル(47M)"]
[null,null,null,"モアⅢ(47M)・ビジネスタイプ(NTT東日本)"]
[null,null,null,"モアⅡ(24M)・ビジネスタイプ(NTT東日本)"]
[null,null,"IP16＋Bフレッツ","ベーシックタイプ(NTT東日本/NTT西日本)","IP16B","2020/11/30削除（サービス終了の為）"]
[null,null,null,"ビジネスタイプ(NTT東日本/NTT西日本)",null,"2020/11/30削除（サービス終了の為）"]
[null,null,"IP16＋フレッツ 光ネクスト","ファミリータイプ(NTT東日本/NTT西日本)","IP16hn"]
[null,null,null,"ファミリー・ハイスピードタイプ(NTT東日本/NTT西日本)"]
[null,null,null,"ファミリー・スーパーハイスピードタイプ隼(NTT西日本)"]
[null,null,null,"ビジネスタイプ(NTT東日本/NTT西日本)"]
[null,null,null,"プライオ1(NTT東日本)"]
[null,null,null,"プライオ10(NTT東日本)"]
[null,null,null,"ギガファミリー・スマートタイプ(NTT東日本)"]
[null,null,null,"ギガマンション・スマートタイプ(NTT東日本)"]
[null,null,null,"ファミリー・ギガラインタイプ(NTT東日本)"]
[null,null,null,"マンション・ギガラインタイプ(NTT東日本)"]
[null,null,"IP16＋フレッツ 光ライト","ファミリータイプ(NTT東日本/NTT西日本)","IP16hl"]
[null,null,"IP16＋光コラボ（PPPoE/IPoE）","ファミリー 100M(NTT東日本)","IP16hnc"]
[null,null,null,"ファミリー 100M(NTT西日本)"]
[null,null,null,"ファミリー 200M(NTT東日本)"]
[null,null,null,"ファミリー 200M(NTT西日本)"]
[null,null,null,"ファミリー 1G(NTT東日本)"]
[null,null,null,"マンション 1G(NTT東日本)"]
[null,null,null,"ファミリー 1G(NTT西日本)"]
[null,null,"IP16＋別契IPoE","NTT東日本","IP16hnIPoE"]
[null,null,"※光クロス含む。","NTT西日本"]
[null,null,"IP16＋OCN ADSLサービス(F)","モアⅢ(47M)(NTT東日本)","IP16adslF","2023/7/14削除（新規販売停止の為）"]
[null,null,null,"モアスペシャル(47M)(NTT西日本)"]
[null,null,null,"モアⅡ(40M)(NTT東日本)"]
[null,null,null,"モア40(40M)(NTT西日本)"]
[null,null,null,"モア24(24M)(NTT西日本)"]
[null,null,null,"モア(12M)(NTT東日本)"]
[null,null,null,"モア(12M)(NTT西日本)"]
[null,null,null,"8M(NTT東日本)"]
[null,null,null,"8M(NTT西日本)"]
[null,null,null,"1.5M(NTT東日本)"]
[null,null,null,"1.5M(NTT西日本)"]
[null,null,null,"モアⅢ(47M)・ビジネスタイプ(NTT東日本)"]
[null,null,null,"モアⅡ(40M)・ビジネスタイプ(NTT東日本)"]
[null,null,"IP16＋OCN 光サービス(F)「光ネクスト」","ファミリータイプ(NTT東日本)","IP16hnF"]
[null,null,null,"ファミリータイプ(NTT西日本)"]
[null,null,null,"ファミリー・ハイスピードタイプ(NTT東日本)"]
[null,null,null,"ファミリー・ハイスピードタイプ(NTT西日本)"]
[null,null,null,"ファミリー・スーパーハイスピードタイプ隼(NTT西日本)"]
[null,null,null,"ビジネスタイプ(NTT東日本)"]
[null,null,null,"ビジネスタイプ(NTT西日本)"]
[null,null,null,"プライオ1(NTT東日本)"]
[null,null,null,"プライオ10(NTT東日本)"]
[null,null,null,"ファミリー・ギガラインタイプ(NTT東日本)"]
[null,null,null,"ギガファミリー・スマートタイプ(NTT東日本)",null,"★ギガスマート新規受付停止に伴う暫定措置。受付再開後は「ファミリー・ギガラインタイプ(NTT東日本)」の上へ戻すこと。"]
[null,null,"IP32/64＋Bフレッツ","ビジネスタイプ(NTT東日本/NTT西日本)","IP3264_B","2020/11/30削除（サービス終了の為）"]
[null,null,"IP32/64＋フレッツ 光ネクスト","ビジネスタイプ(NTT東日本/NTT西日本)","IP3264_hn"]
[null,null,null,"プライオ10(NTT東日本)"]
[null,null,"IP32/64＋OCN 光サービス(F)「光ネクスト」","ビジネスタイプ(NTT東日本)","IP3264_hnF"]
[null,null,null,"ビジネスタイプ(NTT西日本)"]
[null,null,null,"プライオ10(NTT東日本)"]
[null,"申込み状況",null,"開通済み","list_FletsApply"]
[null,null,null,"申込済み"]
[null,"ご利用場所",null,"ご契約者住所と同じ","list_locationAddress"]
[null,null,null,"次のとおり"]
[null,"ご利用場所に関する連絡先",null,"お申込みに関する連絡先に同じ","list_locationLiaison"]
[null,null,null,"次のとおり"]
[null,"技術担当者情報",null,"お申込みに関する連絡先と同じ","list_nwTechnology_1"]
[null,null,null,"ご利用場所に関する連絡先と同じ"]
[null,null,null,"次のとおり"]
[null,null,null,"お申込みに関する連絡先と同じ","list_nwTechnology_2"]
[null,null,null,"次のとおり"]
[null,"支払方法",null,"請求書によるお支払","list_paymentOption"]
[null,null,null,"既契約のお支払情報と同一にする"]
[null,"毎月の利用料の請求先",null,"ご契約者住所と同じ","list_billMailingCopylist_1"]
[null,null,null,"ご利用場所住所と同じ"]
[null,null,null,"次のとおり"]
[null,null,null,"ご契約者住所と同じ","list_billMailingCopylist_2"]
[null,null,null,"次のとおり"]
[null,"ご利用案内の送付先",null,"ご契約者住所と同じ","list_kaianMailingAdd_1"]
[null,null,null,"ご利用場所住所と同じ"]
[null,null,null,"毎月の利用料の請求先と同じ"]
[null,null,null,"次のとおり"]
[null,null,null,"ご契約者住所と同じ","list_kaianMailingAdd_2"]
[null,null,null,"毎月の利用料の請求先と同じ"]
[null,null,null,"次のとおり"]
[null,null,null,"ご契約者住所と同じ","list_kaianMailingAdd_3"]
[null,null,null,"ご利用場所住所と同じ"]
[null,null,null,"次のとおり"]
[null,null,null,"ご契約者住所と同じ","list_kaianMailingAdd_4"]
[null,null,null,"次のとおり"]
[null,"回線種別",null,"個人","list_customerDivision"]
[null,null,null,"法人"]
[null,null,null,"外国公館等"]
[null,null,null,"在日米軍"]
[null,null,null,"国・地方自治体"]
[null,null,null,"業務用"]
[null,"料金に関する留意事項",null,"相対申込有","list_individuallyChargeType"]
[null,null,null,"型紙申込有"]
[null,null,null,"無"]
[null,"お客様ご要望記事欄",null,"選択してください","list_demandSectionFlag"]
[null,null,null,"お客様ご要望記事欄を記入する"]
[null,"希望有無",null,"希望する","list_Wish"]
[null,null,null,"希望しない"]
[null,"利用有無",null,"利用する","list_option_1"]
[null,null,null,"利用しない"]
[null,null,null,"利用しない","list_option_2"]
[null,"DNSサービス主契約回線",null,"本申込書で申込みの回線契約を主契約とする","list_DNSselect"]
[null,null,null,"本申込書で申込みの回線契約以外を主契約とする"]
[null,"セキュリティGW",null,"利用する(ルータタイプ)","list_SGW_1"]
[null,null,null,"利用しない"]
[null,null,null,"利用しない","list_SGW_2"]
[null,"保守タイプ",null,"センドバック保守","list_maintenanceType_A"]
[null,null,null,"オンサイト保守(平日9:00-17:00)"]
[null,null,null,"オンサイト保守(24時間365日)"]
[null,null,null,"オンサイト保守(24時間365日)","list_maintenanceType_R"]
[null,"フレッツ・v6オプション代行申込みについて",null,"OCNによる代行申込み登録を承諾する","list_flets_v6op"]
[null,"端末ご利用形態","動的IP(ex)、光クロス別契IPoE以外の場合","レンタル端末利用","list_TerminalUsageForm_1"]
[null,null,null,"自営端末"]
[null,null,"動的IP(ex)の場合","レンタル端末利用","list_TerminalUsageForm_2"]
[null,null,"光クロス別契IPoEの場合","自営端末","list_TerminalUsageForm_3"]
[null,"レンタル端末種別",null,"IPoE対応ルータ01","list_TerminalType"]
[null,null,null,"IPoE対応ルータ02"]
[null,null,null,"IPoE対応ルータ01","list_TerminalType_d"]
[null,"工事区分",null,"お客様設置","list_Construction1"]
[null,null,null,"お客様設置","list_Construction2"]
[null,null,null,"オンサイト設置"]
[null,"コールドスタンバイ",null,"利用する","list_CS"]
[null,null,null,"利用しない"]
[null,"機器設置希望工事時間帯",null,"午前フリー(9:00～12:00)","list_TimeZone"]
[null,null,null,"午後フリー(13:00～17:00)"]
[null,null,null,"終日フリー(9:00～17:00)"]
[null,null,null,"その他"]
[null,"機器設置希望工事時間",null,"00:00","list_preferredTime"]
[null,null,null,"01:00"]
[null,null,null,"02:00"]
[null,null,null,"03:00"]
[null,null,null,"04:00"]
[null,null,null,"05:00"]
[null,null,null,"06:00"]
[null,null,null,"07:00"]
[null,null,null,"08:00"]
[null,null,null,"09:00"]
[null,null,null,"10:00"]
[null,null,null,"11:00"]
[null,null,null,"12:00"]
[null,null,null,"13:00"]
[null,null,null,"14:00"]
[null,null,null,"15:00"]
[null,null,null,"16:00"]
[null,null,null,"17:00"]
[null,null,null,"18:00"]
[null,null,null,"19:00"]
[null,null,null,"20:00"]
[null,null,null,"21:00"]
[null,null,null,"22:00"]
[null,null,null,"23:00"]
[null,"メールサーバ設置有無",null,"メールサーバは設置しない(OCNメールアドレスを使用する)","list_MailsrvReqCd"]
[null,null,null,"お客さまネットワークにメールサーバを設置する"]
[null,"メールサーバ設置台数",null,"1台設置","list_MailsrvUnitNumCd"]
[null,null,null,"複数台設置"]
[null,"メールサーバ形式",null,"アカウント＠ホスト名.サブドメイン名.ocn.ne.jp(ホスト名を省略しない)の形式で設定する","list_MailsrvFormatCd"]
[null,null,null,"アカウント＠サブドメイン名.ocn.ne.jp(ホスト名を省略する)の形式で設定する"]
[null,"使用するドメイン名",null,"新たに申請する(OCNによる代行申請を希望)","list_DomaininfoUsedomainCd"]
[null,null,null,"新たに申請する(お客さまにて申請)"]
[null,null,null,"既得のドメイン名を利用する"]
[null,"ドメイン種別",null,"属性型JPドメイン","list_DomaininfoDtypeCd"]
[null,null,null,"汎用・都道府県型JPドメイン"]
[null,null,null,"gTLDドメイン(.com/.net/.org)"]
[null,"地域・属性型JPドメイン種別",null,"GR.JPドメイン","list_DomaininfoDtypeJpdmCd"]
[null,null,null,"NE.JPドメイン"]
[null,null,null,"GR.JP/NE.JPドメイン以外"]
[null,"正引きDNSご利用形態",null,"DNSサービスDNSアウトソーシングプランを利用する","list_DnsFormatLkupCd"]
[null,null,null,"お客さまにてDNSを用意いただく"]
[null,"逆引きDNSご利用形態",null,"DNSサービスDNSアウトソーシングプランを利用する","list_DnsFormatRevlkupCd"]
[null,null,null,"お客さまにてDNSを用意いただく"]
[null,null,null,"設定しない"]
[null,"プライマリDNSサーバ設置形態",null,"本OCN回線にプライマリDNSサーバを設置する","list_DnsInfoPrimIpFormatCd"]
[null,null,null,"本OCN回線以外にDNSサーバを設置する"]
[null,"セカンダリDNSご利用形態",null,"正引き＆逆引き","list_DnsInfoSecUseformatCd"]
[null,null,null,"正引きのみ"]
[null,null,null,"逆引きのみ"]
[null,"IPアドレス引継ぎ有無",null,"有","list_IpaddrTakeoverReqCd"]
[null,null,null,"無"]
[null,"管理者連絡窓口_組織名",null,"IPアドレス割当申請者(組織)と同じ","list_AdmininfoOrgNm"]
[null,"IPアドレスリナンバ手続きの有無",null,"OCN内リナンバ申請なし","list_IpaddrRenumReqCd"]
[null,null,null,"OCN内リナンバ申請あり"]
[null,"管理者連絡窓口/技術連絡担当者",null,"「担当者情報」での登録を希望する","list_AdmininfoJpnicLiaisonCd"]
[null,null,null,"「担当グループ情報」での登録を希望する"]
[null,"JPNICハンドル/グループハンドル",null,"有(既存の情報に変更無し)","list_AdmininfoJpnicReqCd"]
[null,null,null,"有(既存の情報に変更有り)"]
[null,null,null,"無"]
[null,"IPアドレス割当申請者_組織名",null,"ご契約者名と同じ","list_IpaddrOrgClistCd"]
[null,null,null,"次のとおり"]
[null,"IPアドレス割当申請者_ご住所",null,"ご契約者住所と同じ","list_paddrOrgAddCd_1"]
[null,null,null,"ご利用場所住所と同じ"]
[null,null,null,"ご契約者住所と同じ","list_paddrOrgAddCd_2"]
[null,"部署和文",null,"総務部","list_DeptJpCd"]
[null,null,null,"企画部"]
[null,null,null,"営業部"]
[null,null,null,"開発部"]
[null,null,null,"総務課"]
[null,null,null,"営業課"]
[null,null,null,"企画課"]
[null,null,null,"開発課"]
[null,null,null,"その他"]
[null,"肩書和文",null,"代表取締役会長","list_TitleJpCd"]
[null,null,null,"会長"]
[null,null,null,"代表取締役社長"]
[null,null,null,"社長"]
[null,null,null,"代表取締役"]
[null,null,null,"専務取締役"]
[null,null,null,"常務取締役"]
[null,null,null,"監査役"]
[null,null,null,"事業部長"]
[null,null,null,"副事業部長"]
[null,null,null,"本部長"]
[null,null,null,"副本部長"]
[null,null,null,"推進部長"]
[null,null,null,"統括部長"]
[null,null,null,"部長"]
[null,null,null,"副部長"]
[null,null,null,"担当部長"]
[null,null,null,"営業部長"]
[null,null,null,"技術部長"]
[null,null,null,"所長"]
[null,null,null,"次長"]
[null,null,null,"課長"]
[null,null,null,"課長代理"]
[null,null,null,"担当課長"]
[null,null,null,"係長"]
[null,null,null,"主査"]
[null,null,null,"主任"]
[null,null,null,"室長"]
[null,null,null,"技師"]
[null,null,null,"その他"]
[null,"技術連絡担当者コピーリスト",null,"全て管理者連絡窓口と同じ","list_EnginfoClistCd"]
[null,null,null,"次のとおり"]
[null,"個人名の非公開希望有無",null,"非公開にする","list_IpaddrOrgPrivateWishCd"]
[null,"技術連絡担当者_組織名",null,"IPアドレス割当申請者(組織)と同じ","list_nginfoOrgnmClistCd"]
[null,null,null,"次のとおり"]
[null,"管理者連絡窓口_ご住所",null,"ご契約者住所と同じ","list_AdmininfoAdd_1"]
[null,null,null,"ご利用場所住所と同じ"]
[null,null,null,"毎月の利用料の請求先と同じ"]
[null,null,null,"IPアドレス割当申請者と同じ"]
[null,null,null,"ご契約者住所と同じ","list_AdmininfoAdd_2"]
[null,null,null,"毎月の利用料の請求先と同じ"]
[null,null,null,"IPアドレス割当申請者と同じ"]
[null,null,null,"ご契約者住所と同じ","list_AdmininfoAdd_3"]
[null,null,null,"ご利用場所住所と同じ"]
[null,null,null,"IPアドレス割当申請者と同じ"]
[null,null,null,"ご契約者住所と同じ","list_AdmininfoAdd_4"]
[null,null,null,"IPアドレス割当申請者と同じ"]
[null,"技術連絡担当者_ご住所",null,"ご契約者住所と同じ","list_EnginfoAddClistCd_1"]
[null,null,null,"ご利用場所住所と同じ"]
[null,null,null,"毎月の利用料の請求先と同じ"]
[null,null,null,"IPアドレス割当申請者と同じ"]
[null,null,null,"次のとおり"]
[null,null,null,"ご契約者住所と同じ","list_EnginfoAddClistCd_2"]
[null,null,null,"毎月の利用料の請求先と同じ"]
[null,null,null,"IPアドレス割当申請者と同じ"]
[null,null,null,"次のとおり"]
[null,null,null,"ご契約者住所と同じ","list_EnginfoAddClistCd_3"]
[null,null,null,"ご利用場所住所と同じ"]
[null,null,null,"IPアドレス割当申請者と同じ"]
[null,null,null,"次のとおり"]
[null,null,null,"ご契約者住所と同じ","list_EnginfoAddClistCd_4"]
[null,null,null,"IPアドレス割当申請者と同じ"]
[null,null,null,"次のとおり"]
[null,"保守受付言語",null,"日本語","list_maintenanceWindow"]
[null,null,null,"英語"]
[null,"有/無",null,"有","list_Presence"]
[null,null,null,"無"]
[null,"企画型輻輳抑制機能_同意確認",null,"企画型輻輳抑制機能に関する留意事項について同意する","list_ipoeOpAccept1"]
[null,"アプリコントロールA_同意確認",null,"アプリコントロールAに関する留意事項について同意する","list_ipoeOpAccept2"]
[null,"回線充当区分",null,"(F)転用","list_lineAllotCategory"]
[null,"null","-",null,"null"]

{"sheet":"変換","index":9,"n_rows":88,"n_cols":11,"rows_kept":88,"cut":false,"hidden":true,"merged":[]}
[null,"▼契約タイプ制御用",null,null,null,"▼管理者連絡窓口情報、技術連絡担当者情報（英文：部署/所属）",null,null,null,"▼管理者連絡窓口情報、技術連絡担当者情報（英文：肩書）"]
[null,"IP種別＋アクセスタイプ","変換用",null,null,"部署和文","部署英文",null,null,"肩書和文","肩書英文"]
[null,"forVPN/動的IPフレッツ 光クロス(IPoE 標準プラン)","forVPNhnIPoE",null,null,"総務部","General affairs department",null,null,"代表取締役会長","Chairperson & C.E.O"]
[null,"forVPN/動的IPフレッツ 光クロス(IPoE ワイドプラン)","forVPNhnIPoE",null,null,"企画部","Planning department",null,null,"会長","Chairperson"]
[null,"forVPN/動的IPフレッツ 光ネクスト(IPoE 標準プラン)","forVPNhnIPoE",null,null,"営業部","The sales department",null,null,"代表取締役社長","C.E.O"]
[null,"forVPN/動的IPフレッツ 光ネクスト(IPoE ワイドプラン)","forVPNhnIPoE",null,null,"開発部","The development department",null,null,"社長","President"]
[null,"forVPN/動的IPフレッツ 光ネクスト","forVPNhn",null,null,"総務課","General affairs department",null,null,"代表取締役","C.E.O"]
[null,"forVPN/動的IPフレッツ 光ライト","forVPNhl",null,null,"営業課","Business department",null,null,"専務取締役","Executive Vice President"]
[null,"forVPN/動的IPフレッツ・光プレミアム(NTT西日本)","forVPNhp",null,null,"企画課","Plan department",null,null,"常務取締役","Senior Vice President"]
[null,"forVPN/動的IPBフレッツ","forVPNB",null,null,"開発課","Development department",null,null,"監査役","Auditor"]
[null,"forVPN/動的IPフレッツ・ISDN","null",null,null,"その他",null,null,null,"事業部長","Division Director"]
[null,"forVPN/動的IPフレッツ・ADSL","forVPNadsl",null,null,null,null,null,null,"副事業部長","Deputy Director"]
[null,"forVPN/動的IPOCN 光サービス(F)「光ネクスト」","forVPNhnF",null,null,null,null,null,null,"本部長","General Manager"]
[null,"forVPN/動的IPOCN 光サービス(F)「Bフレッツ」","forVPNbF",null,null,null,null,null,null,"副本部長","Deputy Director"]
[null,"forVPN/動的IPOCN ADSLサービス(F)","forVPNadslF",null,null,null,null,null,null,"推進部長","Executive Manager"]
[null,"forVPN/動的IPOCN光【光一括提供型】(IPoE 標準プラン)","forVPNhnc",null,null,null,null,null,null,"統括部長","Executive Manager"]
[null,"forVPN/動的IPOCN光【光一括提供型】(IPoE ワイドプラン)","forVPNhnc",null,null,null,null,null,null,"部長","Director"]
[null,"forVPN/動的IPOCN光【光一括提供型】","forVPNhnc",null,null,null,null,null,null,"副部長","Deputy Director"]
[null,"IP1フレッツ 光クロス(IPoE 標準プラン)","IP1hnIPoE",null,null,null,null,null,null,"担当部長","Director"]
[null,"IP1フレッツ 光クロス(IPoE ワイドプラン)","IP1hnIPoE",null,null,null,null,null,null,"営業部長","Sales Director"]
[null,"IP1フレッツ 光クロス(IPoE スーパーワイドプラン)","IP1hnIPoE",null,null,null,null,null,null,"技術部長","Technical Director"]
[null,"IP1フレッツ 光ネクスト(IPoE 標準プラン)","IP1hnIPoE",null,null,null,null,null,null,"所長","Executive Manager"]
[null,"IP1フレッツ 光ネクスト(IPoE ワイドプラン)","IP1hnIPoE",null,null,null,null,null,null,"次長","Deputy Director"]
[null,"IP1フレッツ 光ネクスト","IP1hn",null,null,null,null,null,null,"課長","Manager"]
[null,"IP1フレッツ 光ライト","IP1hl",null,null,null,null,null,null,"課長代理","Assistant Manager"]
[null,"IP1フレッツ・光プレミアム(NTT西日本)","IP1hp",null,null,null,null,null,null,"担当課長","Associate Manager"]
[null,"IP1Bフレッツ","IP1B",null,null,null,null,null,null,"係長","Chief"]
[null,"IP1フレッツ・ISDN","null",null,null,null,null,null,null,"主査","Chief"]
[null,"IP1フレッツ・ADSL","IP1adsl",null,null,null,null,null,null,"主任","Chief"]
[null,"IP1OCN 光サービス(F)「光ネクスト」","IP1hnF",null,null,null,null,null,null,"室長","Executive Manager"]
[null,"IP1OCN 光サービス(F)「Bフレッツ」","IP1bF",null,null,null,null,null,null,"技師","Engineer"]
[null,"IP1OCN ADSLサービス(F)","IP1adslF",null,null,null,null,null,null,"その他"]
[null,"IP1OCN光【光一括提供型】(IPoE 標準プラン)","IP1hnc"]
[null,"IP1OCN光【光一括提供型】(IPoE ワイドプラン)","IP1hnc"]
[null,"IP1OCN光【光一括提供型】","IP1hnc"]
[null,"IP8フレッツ 光クロス(IPoE 標準プラン)","IP8hnIPoE"]
[null,"IP8フレッツ 光クロス(IPoE ワイドプラン)","IP8hnIPoE"]
[null,"IP8フレッツ 光クロス(IPoE スーパーワイドプラン)","IP8hnIPoE"]
[null,"IP8フレッツ 光ネクスト(IPoE 標準プラン)","IP8hnIPoE"]
[null,"IP8フレッツ 光ネクスト(IPoE ワイドプラン)","IP8hnIPoE"]
[null,"IP8フレッツ 光ネクスト","IP8hn"]
[null,"IP8フレッツ 光ライト","IP8hl"]
[null,"IP8フレッツ・光プレミアム(NTT西日本)","IP8hp"]
[null,"IP8Bフレッツ","IP8B"]
[null,"IP8フレッツ・ISDN","null"]
[null,"IP8フレッツ・ADSL","IP8adsl"]
[null,"IP8OCN 光サービス(F)「光ネクスト」","IP8hnF"]
[null,"IP8OCN 光サービス(F)「Bフレッツ」","IP8bF"]
[null,"IP8OCN ADSLサービス(F)","IP8adslF"]
[null,"IP8OCN光【光一括提供型】(IPoE 標準プラン)","IP8hnc"]
[null,"IP8OCN光【光一括提供型】(IPoE ワイドプラン)","IP8hnc"]
[null,"IP8OCN光【光一括提供型】","IP8hnc"]
[null,"IP16フレッツ 光クロス(IPoE 標準プラン)","IP16hnIPoE"]
[null,"IP16フレッツ 光クロス(IPoE ワイドプラン)","IP16hnIPoE"]
[null,"IP16フレッツ 光クロス(IPoE スーパーワイドプラン)","IP16hnIPoE"]
[null,"IP16フレッツ 光ネクスト(IPoE 標準プラン)","IP16hnIPoE"]
[null,"IP16フレッツ 光ネクスト(IPoE ワイドプラン)","IP16hnIPoE"]
[null,"IP16フレッツ 光ネクスト","IP16hn"]
[null,"IP16フレッツ 光ライト","IP16hl"]
[null,"IP16フレッツ・光プレミアム(NTT西日本)","IP16hp"]
[null,"IP16Bフレッツ","IP16B"]
[null,"IP16フレッツ・ISDN","null"]
[null,"IP16フレッツ・ADSL","IP16adsl"]
[null,"IP16OCN 光サービス(F)「光ネクスト」","IP16hnF"]
[null,"IP16OCN 光サービス(F)「Bフレッツ」","IP16bF"]
[null,"IP16OCN ADSLサービス(F)","IP16adslF"]
[null,"IP16OCN光【光一括提供型】(IPoE 標準プラン)","IP16hnc"]
[null,"IP16OCN光【光一括提供型】(IPoE ワイドプラン)","IP16hnc"]
[null,"IP16OCN光【光一括提供型】","IP16hnc"]
[null,"動的IP(ex)フレッツ 光ネクスト(IPoE 標準プラン)","dexhnIPoE"]
[null,"動的IP(ex)フレッツ 光ネクスト(IPoE ワイドプラン)","dexhnIPoE"]
[null,"動的IP(ex)OCN光【光一括提供型】(IPoE 標準プラン)","dexhnc"]
[null,"動的IP(ex)OCN光【光一括提供型】(IPoE ワイドプラン)","dexhnc"]
[null,"IP32フレッツ 光ネクスト","IP3264_hn"]
[null,"IP32Bフレッツ","IP3264_B"]
[null,"IP32OCN 光サービス(F)「光ネクスト」","IP3264_hnF"]
[null,"IP32OCN 光サービス(F)「Bフレッツ」","IP3264_bF"]
[null,"IP64フレッツ 光ネクスト","IP3264_hn"]
[null,"IP64Bフレッツ","IP3264_B"]
[null,"IP64OCN 光サービス(F)「光ネクスト」","IP3264_hnF"]
[null,"IP64OCN 光サービス(F)「Bフレッツ」","IP3264_bF"]
[null,"forVPNライトフレッツ 光ネクスト","litehn"]
[null,"forVPNライトフレッツ 光ライト","litehl"]
[null,"forVPNライトフレッツ・光プレミアム(NTT西日本)","litehp"]
[null,"forVPNライトBフレッツ","liteB"]
[null,"forVPNライトフレッツ・ISDN","null"]
[null,"forVPNライトフレッツ・ADSL","liteadsl"]
[null,"forVPNライトOCN光【光一括提供型】","litehnc"]

{"sheet":"OCNメニュー","index":10,"n_rows":430,"n_cols":7,"rows_kept":430,"cut":false,"hidden":true,"merged":[]}
["■OCN提供メニュー/OCN認証ドメイン"]
[null,"IP種別","アクセスタイプ","契約タイプ","IP種別＋アクセスタイプ＋契約タイプの合体名（検索値）","OCN提供メニュー","OCN認証ドメイン"]
[null,"forVPN/動的IP","フレッツ・ADSL","1.5Mタイプ",{"$f":"B3&C3&D3","v":"forVPN/動的IPフレッツ・ADSL1.5Mタイプ"},"OCN ADSLアクセス 「フレッツ」プラン forVPN 1M/1.5M/8M/12M/24M/40M/47Mタイプ","xxx@dfa.ocn.ne.jp"]
[null,"forVPN/動的IP","フレッツ・ADSL","8Mタイプ",{"$f":"B4&C4&D4","v":"forVPN/動的IPフレッツ・ADSL8Mタイプ"},"OCN ADSLアクセス 「フレッツ」プラン forVPN 1M/1.5M/8M/12M/24M/40M/47Mタイプ","xxx@dfa.ocn.ne.jp"]
[null,"forVPN/動的IP","フレッツ・ADSL","モア(12M)","forVPN/動的IPフレッツ・ADSLモア(12M)","OCN ADSLアクセス 「フレッツ」プラン forVPN 1M/1.5M/8M/12M/24M/40M/47Mタイプ","xxx@dfa.ocn.ne.jp"]
[null,"forVPN/動的IP","フレッツ・ADSL","モアⅡ(24Mタイプ)/モア24(24タイプ)","forVPN/動的IPフレッツ・ADSLモアⅡ(24Mタイプ)/モア24(24タイプ)","OCN ADSLアクセス 「フレッツ」プラン forVPN 1M/1.5M/8M/12M/24M/40M/47Mタイプ","xxx@dfa.ocn.ne.jp"]
[null,"forVPN/動的IP","フレッツ・ADSL","モアⅡ(40M)/モア40(40Mタイプ)","forVPN/動的IPフレッツ・ADSLモアⅡ(40M)/モア40(40Mタイプ)","OCN ADSLアクセス 「フレッツ」プラン forVPN 1M/1.5M/8M/12M/24M/40M/47Mタイプ","xxx@dfa.ocn.ne.jp"]
[null,"forVPN/動的IP","フレッツ・ADSL","モアⅢ(47M)・モアスペシャル(47M)","forVPN/動的IPフレッツ・ADSLモアⅢ(47M)・モアスペシャル(47M)","OCN ADSLアクセス 「フレッツ」プラン forVPN 1M/1.5M/8M/12M/24M/40M/47Mタイプ","xxx@dfa.ocn.ne.jp"]
[null,"forVPN/動的IP","フレッツ・ADSL","モアⅢ(47M)・ビジネスタイプ(NTT東日本)","forVPN/動的IPフレッツ・ADSLモアⅢ(47M)・ビジネスタイプ(NTT東日本)","OCN ADSLアクセス 「フレッツ」プラン forVPN ビジネスタイプ","xxx@dfab.ocn.ne.jp"]
[null,"forVPN/動的IP","フレッツ・ADSL","モアⅡ(24M)・ビジネスタイプ(NTT東日本)","forVPN/動的IPフレッツ・ADSLモアⅡ(24M)・ビジネスタイプ(NTT東日本)","OCN ADSLアクセス 「フレッツ」プラン forVPN ビジネスタイプ","xxx@dfab.ocn.ne.jp"]
[null,"forVPN/動的IP","フレッツ・ISDN",null,"forVPN/動的IPフレッツ・ISDN","OCN ISDNアクセス forVPN 「フレッツ」プラン","xxx@dfi.ocn.ne.jp"]
[null,"forVPN/動的IP","Bフレッツ","ニューファミリータイプ(NTT東日本)","forVPN/動的IPBフレッツニューファミリータイプ(NTT東日本)","OCN 光「フレッツ」 forVPN ファミリータイプ","xxx@dbnf.ocn.ne.jp"]
[null,"forVPN/動的IP","Bフレッツ","ベーシックタイプ(NTT東日本/NTT西日本)","forVPN/動的IPBフレッツベーシックタイプ(NTT東日本/NTT西日本)","OCN 光「フレッツ」 forVPN ベーシックタイプ","xxx@dbfb.ocn.ne.jp"]
[null,"forVPN/動的IP","Bフレッツ","ビル・マンションタイプ(NTT東日本/NTT西日本)","forVPN/動的IPBフレッツビル・マンションタイプ(NTT東日本/NTT西日本)","OCN 光「フレッツ」 forVPN マンションタイプ","xxx@dbfm.ocn.ne.jp"]
[null,"forVPN/動的IP","フレッツ・光プレミアム(NTT西日本)","ファミリータイプ","forVPN/動的IPフレッツ・光プレミアム(NTT西日本)ファミリータイプ","OCN 光「フレッツ」 forVPN ファミリータイプ","xxx@dbnf.ocn.ne.jp"]
[null,"forVPN/動的IP","フレッツ・光プレミアム(NTT西日本)","マンションタイプ","forVPN/動的IPフレッツ・光プレミアム(NTT西日本)マンションタイプ","OCN 光「フレッツ」 forVPN マンションタイプ","xxx@dbfm.ocn.ne.jp"]
[null,"forVPN/動的IP","フレッツ 光ネクスト","ファミリータイプ(NTT東日本/NTT西日本)","forVPN/動的IPフレッツ 光ネクストファミリータイプ(NTT東日本/NTT西日本)","OCN 光「フレッツ」 forVPN ファミリータイプ","xxx@bizd.ocn.ne.jp"]
[null,"forVPN/動的IP","フレッツ 光ネクスト","ファミリー・ハイスピードタイプ(NTT東日本/NTT西日本)","forVPN/動的IPフレッツ 光ネクストファミリー・ハイスピードタイプ(NTT東日本/NTT西日本)","OCN 光「フレッツ」 forVPN ファミリータイプ","xxx@bizd.ocn.ne.jp"]
[null,"forVPN/動的IP","フレッツ 光ネクスト","マンションタイプ(NTT東日本/NTT西日本)","forVPN/動的IPフレッツ 光ネクストマンションタイプ(NTT東日本/NTT西日本)","OCN 光「フレッツ」 forVPN マンションタイプ","xxx@bizd.ocn.ne.jp"]
[null,"forVPN/動的IP","フレッツ 光ネクスト","マンション・ハイスピードタイプ(NTT東日本/NTT西日本)","forVPN/動的IPフレッツ 光ネクストマンション・ハイスピードタイプ(NTT東日本/NTT西日本)","OCN 光「フレッツ」 forVPN マンションタイプ","xxx@bizd.ocn.ne.jp"]
[null,"forVPN/動的IP","フレッツ 光ネクスト","ファミリー・スーパーハイスピードタイプ隼(NTT西日本)","forVPN/動的IPフレッツ 光ネクストファミリー・スーパーハイスピードタイプ隼(NTT西日本)","OCN 光「フレッツ」 forVPN ファミリータイプ","xxx@bizd.ocn.ne.jp"]
[null,"forVPN/動的IP","フレッツ 光ネクスト","マンション・スーパーハイスピードタイプ隼(NTT西日本)","forVPN/動的IPフレッツ 光ネクストマンション・スーパーハイスピードタイプ隼(NTT西日本)","OCN 光「フレッツ」 forVPN マンションタイプ","xxx@bizd.ocn.ne.jp"]
[null,"forVPN/動的IP","フレッツ 光ネクスト","プライオ1(NTT東日本)","forVPN/動的IPフレッツ 光ネクストプライオ1(NTT東日本)","OCN 光「フレッツ」 forVPN プライオ1","xxx@bizd.ocn.ne.jp"]
[null,"forVPN/動的IP","フレッツ 光ネクスト","ギガファミリー・スマートタイプ(NTT東日本)","forVPN/動的IPフレッツ 光ネクストギガファミリー・スマートタイプ(NTT東日本)","OCN 光「フレッツ」 forVPN ギガファミリー","xxx@bizd.ocn.ne.jp"]
[null,"forVPN/動的IP","フレッツ 光ネクスト","ギガマンション・スマートタイプ(NTT東日本)","forVPN/動的IPフレッツ 光ネクストギガマンション・スマートタイプ(NTT東日本)","OCN 光「フレッツ」 forVPN ギガファミリー","xxx@bizd.ocn.ne.jp"]
[null,"forVPN/動的IP","フレッツ 光ネクスト","ファミリー・ギガラインタイプ(NTT東日本)","forVPN/動的IPフレッツ 光ネクストファミリー・ギガラインタイプ(NTT東日本)","OCN 光「フレッツ」 forVPN ギガファミリー","xxx@bizd.ocn.ne.jp"]
[null,"forVPN/動的IP","フレッツ 光ネクスト","マンション・ギガラインタイプ(NTT東日本)","forVPN/動的IPフレッツ 光ネクストマンション・ギガラインタイプ(NTT東日本)","OCN 光「フレッツ」 forVPN ギガファミリー","xxx@bizd.ocn.ne.jp"]
[null,"forVPN/動的IP","フレッツ 光ライト","ファミリータイプ","forVPN/動的IPフレッツ 光ライトファミリータイプ","OCN 光「フレッツ」 forVPN ファミリータイプ","xxx@bizd.ocn.ne.jp"]
[null,"forVPN/動的IP","フレッツ 光ライト","マンションタイプ","forVPN/動的IPフレッツ 光ライトマンションタイプ","OCN 光「フレッツ」 forVPN マンションタイプ","xxx@bizd.ocn.ne.jp"]
[null,"forVPN/動的IP","OCN光【光一括提供型】","ファミリー 100M(NTT東日本)","forVPN/動的IPOCN光【光一括提供型】ファミリー 100M(NTT東日本)","OCN 光 ファミリー 100M forVPN","xxx@bizd.ocn.ne.jp"]
[null,"forVPN/動的IP","OCN光【光一括提供型】","マンション 100M(NTT東日本)","forVPN/動的IPOCN光【光一括提供型】マンション 100M(NTT東日本)","OCN 光 マンション 100M forVPN","xxx@bizd.ocn.ne.jp"]
[null,"forVPN/動的IP","OCN光【光一括提供型】","ファミリー 100M(NTT西日本)","forVPN/動的IPOCN光【光一括提供型】ファミリー 100M(NTT西日本)","OCN 光 ファミリー 100M forVPN","xxx@bizd.ocn.ne.jp"]
[null,"forVPN/動的IP","OCN光【光一括提供型】","マンション 100M(NTT西日本)","forVPN/動的IPOCN光【光一括提供型】マンション 100M(NTT西日本)","OCN 光 マンション 100M forVPN","xxx@bizd.ocn.ne.jp"]
[null,"forVPN/動的IP","OCN光【光一括提供型】","ファミリー 200M(NTT東日本)","forVPN/動的IPOCN光【光一括提供型】ファミリー 200M(NTT東日本)","OCN 光 ファミリー 200M forVPN","xxx@bizd.ocn.ne.jp"]
[null,"forVPN/動的IP","OCN光【光一括提供型】","マンション 200M(NTT東日本)","forVPN/動的IPOCN光【光一括提供型】マンション 200M(NTT東日本)","OCN 光 マンション 200M forVPN","xxx@bizd.ocn.ne.jp"]
[null,"forVPN/動的IP","OCN光【光一括提供型】","ファミリー 200M(NTT西日本)","forVPN/動的IPOCN光【光一括提供型】ファミリー 200M(NTT西日本)","OCN 光 ファミリー 200M forVPN","xxx@bizd.ocn.ne.jp"]
[null,"forVPN/動的IP","OCN光【光一括提供型】","マンション 200M(NTT西日本)","forVPN/動的IPOCN光【光一括提供型】マンション 200M(NTT西日本)","OCN 光 マンション 200M forVPN","xxx@bizd.ocn.ne.jp"]
[null,"forVPN/動的IP","OCN光【光一括提供型】","ファミリー 1G(NTT東日本)","forVPN/動的IPOCN光【光一括提供型】ファミリー 1G(NTT東日本)","OCN 光 ファミリー 1G forVPN","xxx@bizd.ocn.ne.jp"]
[null,"forVPN/動的IP","OCN光【光一括提供型】","マンション 1G(NTT東日本)","forVPN/動的IPOCN光【光一括提供型】マンション 1G(NTT東日本)","OCN 光 マンション 1G forVPN","xxx@bizd.ocn.ne.jp"]
[null,"forVPN/動的IP","OCN光【光一括提供型】","ファミリー 1G(NTT西日本)","forVPN/動的IPOCN光【光一括提供型】ファミリー 1G(NTT西日本)","OCN 光 ファミリー 1G forVPN","xxx@bizd.ocn.ne.jp"]
[null,"forVPN/動的IP","OCN光【光一括提供型】","マンション 1G(NTT西日本)","forVPN/動的IPOCN光【光一括提供型】マンション 1G(NTT西日本)","OCN 光 マンション 1G forVPN","xxx@bizd.ocn.ne.jp"]
[null,"forVPN/動的IP","フレッツ 光クロス(IPoE 標準プラン)","NTT東日本","forVPN/動的IPフレッツ 光クロス(IPoE 標準プラン)NTT東日本","OCN 光「フレッツ」 IPoE クロス 標準プラン 動的IP","-"]
[null,"forVPN/動的IP","フレッツ 光クロス(IPoE 標準プラン)","NTT西日本","forVPN/動的IPフレッツ 光クロス(IPoE 標準プラン)NTT西日本","OCN 光「フレッツ」 IPoE クロス 標準プラン 動的IP","-"]
[null,"forVPN/動的IP","フレッツ 光クロス(IPoE ワイドプラン)","NTT東日本","forVPN/動的IPフレッツ 光クロス(IPoE ワイドプラン)NTT東日本","OCN 光「フレッツ」 IPoE クロス ワイドプラン 動的IP","-"]
[null,"forVPN/動的IP","フレッツ 光クロス(IPoE ワイドプラン)","NTT西日本","forVPN/動的IPフレッツ 光クロス(IPoE ワイドプラン)NTT西日本","OCN 光「フレッツ」 IPoE クロス ワイドプラン 動的IP","-"]
[null,"forVPN/動的IP","フレッツ 光ネクスト(IPoE 標準プラン)","NTT東日本","forVPN/動的IPフレッツ 光ネクスト(IPoE 標準プラン)NTT東日本","OCN 光「フレッツ」 IPoE 標準プラン 動的IP","-"]
[null,"forVPN/動的IP","フレッツ 光ネクスト(IPoE 標準プラン)","NTT西日本","forVPN/動的IPフレッツ 光ネクスト(IPoE 標準プラン)NTT西日本","OCN 光「フレッツ」 IPoE 標準プラン 動的IP","-"]
[null,"forVPN/動的IP","フレッツ 光ネクスト(IPoE ワイドプラン)","NTT東日本","forVPN/動的IPフレッツ 光ネクスト(IPoE ワイドプラン)NTT東日本","OCN 光「フレッツ」 IPoE ワイドプラン 動的IP","-"]
[null,"forVPN/動的IP","フレッツ 光ネクスト(IPoE ワイドプラン)","NTT西日本","forVPN/動的IPフレッツ 光ネクスト(IPoE ワイドプラン)NTT西日本","OCN 光「フレッツ」 IPoE ワイドプラン 動的IP","-"]
[null,"forVPN/動的IP","OCN光【光一括提供型】(IPoE 標準プラン)","ファミリー 100M(NTT東日本)","forVPN/動的IPOCN光【光一括提供型】(IPoE 標準プラン)ファミリー 100M(NTT東日本)","OCN 光 IPoE 標準プラン ファミリー 100M 動的IP","-"]
[null,"forVPN/動的IP","OCN光【光一括提供型】(IPoE 標準プラン)","マンション 100M(NTT東日本)","forVPN/動的IPOCN光【光一括提供型】(IPoE 標準プラン)マンション 100M(NTT東日本)","OCN 光 IPoE 標準プラン マンション 100M 動的IP","-"]
[null,"forVPN/動的IP","OCN光【光一括提供型】(IPoE 標準プラン)","ファミリー 100M(NTT西日本)","forVPN/動的IPOCN光【光一括提供型】(IPoE 標準プラン)ファミリー 100M(NTT西日本)","OCN 光 IPoE 標準プラン ファミリー 100M 動的IP","-"]
[null,"forVPN/動的IP","OCN光【光一括提供型】(IPoE 標準プラン)","マンション 100M(NTT西日本)","forVPN/動的IPOCN光【光一括提供型】(IPoE 標準プラン)マンション 100M(NTT西日本)","OCN 光 IPoE 標準プラン マンション 100M 動的IP","-"]
[null,"forVPN/動的IP","OCN光【光一括提供型】(IPoE 標準プラン)","ファミリー 200M(NTT東日本)","forVPN/動的IPOCN光【光一括提供型】(IPoE 標準プラン)ファミリー 200M(NTT東日本)","OCN 光 IPoE 標準プラン ファミリー 200M 動的IP","-"]
[null,"forVPN/動的IP","OCN光【光一括提供型】(IPoE 標準プラン)","マンション 200M(NTT東日本)","forVPN/動的IPOCN光【光一括提供型】(IPoE 標準プラン)マンション 200M(NTT東日本)","OCN 光 IPoE 標準プラン マンション 200M 動的IP","-"]
[null,"forVPN/動的IP","OCN光【光一括提供型】(IPoE 標準プラン)","ファミリー 200M(NTT西日本)","forVPN/動的IPOCN光【光一括提供型】(IPoE 標準プラン)ファミリー 200M(NTT西日本)","OCN 光 IPoE 標準プラン ファミリー 200M 動的IP","-"]
[null,"forVPN/動的IP","OCN光【光一括提供型】(IPoE 標準プラン)","マンション 200M(NTT西日本)","forVPN/動的IPOCN光【光一括提供型】(IPoE 標準プラン)マンション 200M(NTT西日本)","OCN 光 IPoE 標準プラン マンション 200M 動的IP","-"]
[null,"forVPN/動的IP","OCN光【光一括提供型】(IPoE 標準プラン)","ファミリー 1G(NTT東日本)","forVPN/動的IPOCN光【光一括提供型】(IPoE 標準プラン)ファミリー 1G(NTT東日本)","OCN 光 IPoE 標準プラン ファミリー 1G 動的IP","-"]
[null,"forVPN/動的IP","OCN光【光一括提供型】(IPoE 標準プラン)","マンション 1G(NTT東日本)","forVPN/動的IPOCN光【光一括提供型】(IPoE 標準プラン)マンション 1G(NTT東日本)","OCN 光 IPoE 標準プラン マンション 1G 動的IP","-"]
[null,"forVPN/動的IP","OCN光【光一括提供型】(IPoE 標準プラン)","ファミリー 1G(NTT西日本)","forVPN/動的IPOCN光【光一括提供型】(IPoE 標準プラン)ファミリー 1G(NTT西日本)","OCN 光 IPoE 標準プラン ファミリー 1G 動的IP","-"]
[null,"forVPN/動的IP","OCN光【光一括提供型】(IPoE 標準プラン)","マンション 1G(NTT西日本)","forVPN/動的IPOCN光【光一括提供型】(IPoE 標準プラン)マンション 1G(NTT西日本)","OCN 光 IPoE 標準プラン マンション 1G 動的IP","-"]
[null,"forVPN/動的IP","OCN光【光一括提供型】(IPoE ワイドプラン)","ファミリー 100M(NTT東日本)","forVPN/動的IPOCN光【光一括提供型】(IPoE ワイドプラン)ファミリー 100M(NTT東日本)","OCN 光 IPoE ワイドプラン ファミリー 100M 動的IP","-"]
[null,"forVPN/動的IP","OCN光【光一括提供型】(IPoE ワイドプラン)","マンション 100M(NTT東日本)","forVPN/動的IPOCN光【光一括提供型】(IPoE ワイドプラン)マンション 100M(NTT東日本)","OCN 光 IPoE ワイドプラン マンション 100M 動的IP","-"]
[null,"forVPN/動的IP","OCN光【光一括提供型】(IPoE ワイドプラン)","ファミリー 100M(NTT西日本)","forVPN/動的IPOCN光【光一括提供型】(IPoE ワイドプラン)ファミリー 100M(NTT西日本)","OCN 光 IPoE ワイドプラン ファミリー 100M 動的IP","-"]
[null,"forVPN/動的IP","OCN光【光一括提供型】(IPoE ワイドプラン)","マンション 100M(NTT西日本)","forVPN/動的IPOCN光【光一括提供型】(IPoE ワイドプラン)マンション 100M(NTT西日本)","OCN 光 IPoE ワイドプラン マンション 100M 動的IP","-"]
[null,"forVPN/動的IP","OCN光【光一括提供型】(IPoE ワイドプラン)","ファミリー 200M(NTT東日本)","forVPN/動的IPOCN光【光一括提供型】(IPoE ワイドプラン)ファミリー 200M(NTT東日本)","OCN 光 IPoE ワイドプラン ファミリー 200M 動的IP","-"]
[null,"forVPN/動的IP","OCN光【光一括提供型】(IPoE ワイドプラン)","マンション 200M(NTT東日本)","forVPN/動的IPOCN光【光一括提供型】(IPoE ワイドプラン)マンション 200M(NTT東日本)","OCN 光 IPoE ワイドプラン マンション 200M 動的IP","-"]
[null,"forVPN/動的IP","OCN光【光一括提供型】(IPoE ワイドプラン)","ファミリー 200M(NTT西日本)","forVPN/動的IPOCN光【光一括提供型】(IPoE ワイドプラン)ファミリー 200M(NTT西日本)","OCN 光 IPoE ワイドプラン ファミリー 200M 動的IP","-"]
[null,"forVPN/動的IP","OCN光【光一括提供型】(IPoE ワイドプラン)","マンション 200M(NTT西日本)","forVPN/動的IPOCN光【光一括提供型】(IPoE ワイドプラン)マンション 200M(NTT西日本)","OCN 光 IPoE ワイドプラン マンション 200M 動的IP","-"]
[null,"forVPN/動的IP","OCN光【光一括提供型】(IPoE ワイドプラン)","ファミリー 1G(NTT東日本)","forVPN/動的IPOCN光【光一括提供型】(IPoE ワイドプラン)ファミリー 1G(NTT東日本)","OCN 光 IPoE ワイドプラン ファミリー 1G 動的IP","-"]
[null,"forVPN/動的IP","OCN光【光一括提供型】(IPoE ワイドプラン)","マンション 1G(NTT東日本)","forVPN/動的IPOCN光【光一括提供型】(IPoE ワイドプラン)マンション 1G(NTT東日本)","OCN 光 IPoE ワイドプラン マンション 1G 動的IP","-"]
[null,"forVPN/動的IP","OCN光【光一括提供型】(IPoE ワイドプラン)","ファミリー 1G(NTT西日本)",{"$f":"B72&C72&D72","v":"forVPN/動的IPOCN光【光一括提供型】(IPoE ワイドプラン)ファミリー 1G(NTT西日本)"},"OCN 光 IPoE ワイドプラン ファミリー 1G 動的IP","-"]
[null,"forVPN/動的IP","OCN光【光一括提供型】(IPoE ワイドプラン)","マンション 1G(NTT西日本)","forVPN/動的IPOCN光【光一括提供型】(IPoE ワイドプラン)マンション 1G(NTT西日本)","OCN 光 IPoE ワイドプラン マンション 1G 動的IP","-"]
[null,"forVPN/動的IP","OCN ADSLサービス(F)","モアⅢ(47M)(NTT東日本)","forVPN/動的IPOCN ADSLサービス(F)モアⅢ(47M)(NTT東日本)","OCN ADSLサービス forVPN(F)47M 東タイプ","xxx@dfa.ocn.ne.jp"]
[null,"forVPN/動的IP","OCN ADSLサービス(F)","モアスペシャル(47M)(NTT西日本)","forVPN/動的IPOCN ADSLサービス(F)モアスペシャル(47M)(NTT西日本)","OCN ADSLサービス forVPN(F)47M 西タイプ","xxx@dfa.ocn.ne.jp"]
[null,"forVPN/動的IP","OCN ADSLサービス(F)","モアⅡ(40M)(NTT東日本)","forVPN/動的IPOCN ADSLサービス(F)モアⅡ(40M)(NTT東日本)","OCN ADSLサービス forVPN(F)40M 東タイプ","xxx@dfa.ocn.ne.jp"]
[null,"forVPN/動的IP","OCN ADSLサービス(F)","モア40(40M)(NTT西日本)","forVPN/動的IPOCN ADSLサービス(F)モア40(40M)(NTT西日本)","OCN ADSLサービス forVPN(F)40M 西タイプ","xxx@dfa.ocn.ne.jp"]
[null,"forVPN/動的IP","OCN ADSLサービス(F)","モア24(24M)(NTT西日本)","forVPN/動的IPOCN ADSLサービス(F)モア24(24M)(NTT西日本)","OCN ADSLサービス forVPN(F)24M 西タイプ","xxx@dfa.ocn.ne.jp"]
[null,"forVPN/動的IP","OCN ADSLサービス(F)","モア(12M)(NTT東日本)","forVPN/動的IPOCN ADSLサービス(F)モア(12M)(NTT東日本)","OCN ADSLサービス forVPN(F)12M 東タイプ","xxx@dfa.ocn.ne.jp"]
[null,"forVPN/動的IP","OCN ADSLサービス(F)","モア(12M)(NTT西日本)","forVPN/動的IPOCN ADSLサービス(F)モア(12M)(NTT西日本)","OCN ADSLサービス forVPN(F)12M 西タイプ","xxx@dfa.ocn.ne.jp"]
[null,"forVPN/動的IP","OCN ADSLサービス(F)","8M(NTT東日本)","forVPN/動的IPOCN ADSLサービス(F)8M(NTT東日本)","OCN ADSLサービス forVPN(F)8M 東タイプ","xxx@dfa.ocn.ne.jp"]
[null,"forVPN/動的IP","OCN ADSLサービス(F)","8M(NTT西日本)","forVPN/動的IPOCN ADSLサービス(F)8M(NTT西日本)","OCN ADSLサービス forVPN(F)8M 西タイプ","xxx@dfa.ocn.ne.jp"]
[null,"forVPN/動的IP","OCN ADSLサービス(F)","1.5M(NTT東日本)","forVPN/動的IPOCN ADSLサービス(F)1.5M(NTT東日本)","OCN ADSLサービス forVPN(F)1.5M 東タイプ","xxx@dfa.ocn.ne.jp"]
[null,"forVPN/動的IP","OCN ADSLサービス(F)","1.5M(NTT西日本)","forVPN/動的IPOCN ADSLサービス(F)1.5M(NTT西日本)","OCN ADSLサービス forVPN(F)1.5M 西タイプ","xxx@dfa.ocn.ne.jp"]
[null,"forVPN/動的IP","OCN ADSLサービス(F)","モアⅢ(47M)・ビジネスタイプ(NTT東日本)","forVPN/動的IPOCN ADSLサービス(F)モアⅢ(47M)・ビジネスタイプ(NTT東日本)","OCN ADSLサービス forVPN(F)ビジネス47M 東タイプ","xxx@dfab.ocn.ne.jp"]
[null,"forVPN/動的IP","OCN ADSLサービス(F)","モアⅡ(40M)・ビジネスタイプ(NTT東日本)","forVPN/動的IPOCN ADSLサービス(F)モアⅡ(40M)・ビジネスタイプ(NTT東日本)","OCN ADSLサービス forVPN(F)ビジネス40M 東タイプ","xxx@dfab.ocn.ne.jp"]
[null,"forVPN/動的IP","OCN 光サービス(F)「光ネクスト」","ファミリータイプ(NTT東日本)","forVPN/動的IPOCN 光サービス(F)「光ネクスト」ファミリータイプ(NTT東日本)","OCN 光サービス forVPN(F) 「光ネクスト」ファミリータイプ 東タイプ","xxx@bizd.ocn.ne.jp"]
[null,"forVPN/動的IP","OCN 光サービス(F)「光ネクスト」","ファミリータイプ(NTT西日本)","forVPN/動的IPOCN 光サービス(F)「光ネクスト」ファミリータイプ(NTT西日本)","OCN 光サービス forVPN(F) 「光ネクスト」ファミリータイプ 西タイプ","xxx@bizd.ocn.ne.jp"]
[null,"forVPN/動的IP","OCN 光サービス(F)「光ネクスト」","ファミリー・ハイスピードタイプ(NTT東日本)","forVPN/動的IPOCN 光サービス(F)「光ネクスト」ファミリー・ハイスピードタイプ(NTT東日本)","OCN 光サービス forVPN(F) 「光ネクスト」ファミリー･ハイスピードタイプ","xxx@bizd.ocn.ne.jp"]
[null,"forVPN/動的IP","OCN 光サービス(F)「光ネクスト」","ファミリー・ハイスピードタイプ(NTT西日本)","forVPN/動的IPOCN 光サービス(F)「光ネクスト」ファミリー・ハイスピードタイプ(NTT西日本)","OCN 光サービス forVPN(F) 「光ネクスト」ファミリー･ハイスピードタイプ 西タイプ","xxx@bizd.ocn.ne.jp"]
[null,"forVPN/動的IP","OCN 光サービス(F)「光ネクスト」","ファミリー・スーパーハイスピードタイプ隼(NTT西日本)","forVPN/動的IPOCN 光サービス(F)「光ネクスト」ファミリー・スーパーハイスピードタイプ隼(NTT西日本)","OCN 光サービス forVPN(F) 「光ネクスト」ファミリー･スーパーハイスピード隼 西タイプ","xxx@bizd.ocn.ne.jp"]
[null,"forVPN/動的IP","OCN 光サービス(F)「光ネクスト」","プライオ1(NTT東日本)","forVPN/動的IPOCN 光サービス(F)「光ネクスト」プライオ1(NTT東日本)","OCN 光サービス forVPN(F) 「光ネクスト」プライオ1 東タイプ","xxx@bizd.ocn.ne.jp"]
[null,"forVPN/動的IP","OCN 光サービス(F)「光ネクスト」","ギガファミリー・スマートタイプ(NTT東日本)","forVPN/動的IPOCN 光サービス(F)「光ネクスト」ギガファミリー・スマートタイプ(NTT東日本)","OCN 光サービス forVPN(F) 「光ネクスト」ギガファミリー 東タイプ","xxx@bizd.ocn.ne.jp"]
[null,"forVPN/動的IP","OCN 光サービス(F)「光ネクスト」","ファミリー・ギガラインタイプ(NTT東日本)","forVPN/動的IPOCN 光サービス(F)「光ネクスト」ファミリー・ギガラインタイプ(NTT東日本)","OCN 光サービス forVPN(F) 「光ネクスト」ファミリー･ギガライン 東タイプ","xxx@bizd.ocn.ne.jp"]
[null,"動的IP(ex)","フレッツ 光ネクスト(IPoE 標準プラン)","NTT東日本","動的IP(ex)フレッツ 光ネクスト(IPoE 標準プラン)NTT東日本","OCN 光「フレッツ」 IPoE 標準プラン 動的IP(ex)","-"]
[null,"動的IP(ex)","フレッツ 光ネクスト(IPoE 標準プラン)","NTT西日本","動的IP(ex)フレッツ 光ネクスト(IPoE 標準プラン)NTT西日本","OCN 光「フレッツ」 IPoE 標準プラン 動的IP(ex)","-"]
[null,"動的IP(ex)","フレッツ 光ネクスト(IPoE ワイドプラン)","NTT東日本","動的IP(ex)フレッツ 光ネクスト(IPoE ワイドプラン)NTT東日本","OCN 光「フレッツ」 IPoE ワイドプラン 動的IP(ex)","-"]
[null,"動的IP(ex)","フレッツ 光ネクスト(IPoE ワイドプラン)","NTT西日本","動的IP(ex)フレッツ 光ネクスト(IPoE ワイドプラン)NTT西日本","OCN 光「フレッツ」 IPoE ワイドプラン 動的IP(ex)","-"]
[null,"動的IP(ex)","OCN光【光一括提供型】(IPoE 標準プラン)","ファミリー 100M(NTT東日本)","動的IP(ex)OCN光【光一括提供型】(IPoE 標準プラン)ファミリー 100M(NTT東日本)","OCN 光 IPoE 標準プラン ファミリー 100M 動的IP(ex)","-"]
[null,"動的IP(ex)","OCN光【光一括提供型】(IPoE 標準プラン)","マンション 100M(NTT東日本)","動的IP(ex)OCN光【光一括提供型】(IPoE 標準プラン)マンション 100M(NTT東日本)","OCN 光 IPoE 標準プラン マンション 100M 動的IP(ex)","-"]
[null,"動的IP(ex)","OCN光【光一括提供型】(IPoE 標準プラン)","ファミリー 100M(NTT西日本)","動的IP(ex)OCN光【光一括提供型】(IPoE 標準プラン)ファミリー 100M(NTT西日本)","OCN 光 IPoE 標準プラン ファミリー 100M 動的IP(ex)","-"]
[null,"動的IP(ex)","OCN光【光一括提供型】(IPoE 標準プラン)","マンション 100M(NTT西日本)","動的IP(ex)OCN光【光一括提供型】(IPoE 標準プラン)マンション 100M(NTT西日本)","OCN 光 IPoE 標準プラン マンション 100M 動的IP(ex)","-"]
[null,"動的IP(ex)","OCN光【光一括提供型】(IPoE 標準プラン)","ファミリー 200M(NTT東日本)","動的IP(ex)OCN光【光一括提供型】(IPoE 標準プラン)ファミリー 200M(NTT東日本)","OCN 光 IPoE 標準プラン ファミリー 200M 動的IP(ex)","-"]
[null,"動的IP(ex)","OCN光【光一括提供型】(IPoE 標準プラン)","マンション 200M(NTT東日本)","動的IP(ex)OCN光【光一括提供型】(IPoE 標準プラン)マンション 200M(NTT東日本)","OCN 光 IPoE 標準プラン マンション 200M 動的IP(ex)","-"]
[null,"動的IP(ex)","OCN光【光一括提供型】(IPoE 標準プラン)","ファミリー 200M(NTT西日本)","動的IP(ex)OCN光【光一括提供型】(IPoE 標準プラン)ファミリー 200M(NTT西日本)","OCN 光 IPoE 標準プラン ファミリー 200M 動的IP(ex)","-"]
[null,"動的IP(ex)","OCN光【光一括提供型】(IPoE 標準プラン)","マンション 200M(NTT西日本)","動的IP(ex)OCN光【光一括提供型】(IPoE 標準プラン)マンション 200M(NTT西日本)","OCN 光 IPoE 標準プラン マンション 200M 動的IP(ex)","-"]
[null,"動的IP(ex)","OCN光【光一括提供型】(IPoE 標準プラン)","ファミリー 1G(NTT東日本)","動的IP(ex)OCN光【光一括提供型】(IPoE 標準プラン)ファミリー 1G(NTT東日本)","OCN 光 IPoE 標準プラン ファミリー 1G 動的IP(ex)","-"]
[null,"動的IP(ex)","OCN光【光一括提供型】(IPoE 標準プラン)","マンション 1G(NTT東日本)","動的IP(ex)OCN光【光一括提供型】(IPoE 標準プラン)マンション 1G(NTT東日本)","OCN 光 IPoE 標準プラン マンション 1G 動的IP(ex)","-"]
[null,"動的IP(ex)","OCN光【光一括提供型】(IPoE 標準プラン)","ファミリー 1G(NTT西日本)","動的IP(ex)OCN光【光一括提供型】(IPoE 標準プラン)ファミリー 1G(NTT西日本)","OCN 光 IPoE 標準プラン ファミリー 1G 動的IP(ex)","-"]
[null,"動的IP(ex)","OCN光【光一括提供型】(IPoE 標準プラン)","マンション 1G(NTT西日本)","動的IP(ex)OCN光【光一括提供型】(IPoE 標準プラン)マンション 1G(NTT西日本)","OCN 光 IPoE 標準プラン マンション 1G 動的IP(ex)","-"]
[null,"動的IP(ex)","OCN光【光一括提供型】(IPoE ワイドプラン)","ファミリー 100M(NTT東日本)","動的IP(ex)OCN光【光一括提供型】(IPoE ワイドプラン)ファミリー 100M(NTT東日本)","OCN 光 IPoE ワイドプラン ファミリー 100M 動的IP(ex)","-"]
[null,"動的IP(ex)","OCN光【光一括提供型】(IPoE ワイドプラン)","マンション 100M(NTT東日本)","動的IP(ex)OCN光【光一括提供型】(IPoE ワイドプラン)マンション 100M(NTT東日本)","OCN 光 IPoE ワイドプラン マンション 100M 動的IP(ex)","-"]
[null,"動的IP(ex)","OCN光【光一括提供型】(IPoE ワイドプラン)","ファミリー 100M(NTT西日本)","動的IP(ex)OCN光【光一括提供型】(IPoE ワイドプラン)ファミリー 100M(NTT西日本)","OCN 光 IPoE ワイドプラン ファミリー 100M 動的IP(ex)","-"]
[null,"動的IP(ex)","OCN光【光一括提供型】(IPoE ワイドプラン)","マンション 100M(NTT西日本)","動的IP(ex)OCN光【光一括提供型】(IPoE ワイドプラン)マンション 100M(NTT西日本)","OCN 光 IPoE ワイドプラン マンション 100M 動的IP(ex)","-"]
[null,"動的IP(ex)","OCN光【光一括提供型】(IPoE ワイドプラン)","ファミリー 200M(NTT東日本)","動的IP(ex)OCN光【光一括提供型】(IPoE ワイドプラン)ファミリー 200M(NTT東日本)","OCN 光 IPoE ワイドプラン ファミリー 200M 動的IP(ex)","-"]
[null,"動的IP(ex)","OCN光【光一括提供型】(IPoE ワイドプラン)","マンション 200M(NTT東日本)","動的IP(ex)OCN光【光一括提供型】(IPoE ワイドプラン)マンション 200M(NTT東日本)","OCN 光 IPoE ワイドプラン マンション 200M 動的IP(ex)","-"]
[null,"動的IP(ex)","OCN光【光一括提供型】(IPoE ワイドプラン)","ファミリー 200M(NTT西日本)","動的IP(ex)OCN光【光一括提供型】(IPoE ワイドプラン)ファミリー 200M(NTT西日本)","OCN 光 IPoE ワイドプラン ファミリー 200M 動的IP(ex)","-"]
[null,"動的IP(ex)","OCN光【光一括提供型】(IPoE ワイドプラン)","マンション 200M(NTT西日本)","動的IP(ex)OCN光【光一括提供型】(IPoE ワイドプラン)マンション 200M(NTT西日本)","OCN 光 IPoE ワイドプラン マンション 200M 動的IP(ex)","-"]
[null,"動的IP(ex)","OCN光【光一括提供型】(IPoE ワイドプラン)","ファミリー 1G(NTT東日本)","動的IP(ex)OCN光【光一括提供型】(IPoE ワイドプラン)ファミリー 1G(NTT東日本)","OCN 光 IPoE ワイドプラン ファミリー 1G 動的IP(ex)","-"]
[null,"動的IP(ex)","OCN光【光一括提供型】(IPoE ワイドプラン)","マンション 1G(NTT東日本)","動的IP(ex)OCN光【光一括提供型】(IPoE ワイドプラン)マンション 1G(NTT東日本)","OCN 光 IPoE ワイドプラン マンション 1G 動的IP(ex)","-"]
[null,"動的IP(ex)","OCN光【光一括提供型】(IPoE ワイドプラン)","ファミリー 1G(NTT西日本)","動的IP(ex)OCN光【光一括提供型】(IPoE ワイドプラン)ファミリー 1G(NTT西日本)","OCN 光 IPoE ワイドプラン ファミリー 1G 動的IP(ex)","-"]
[null,"動的IP(ex)","OCN光【光一括提供型】(IPoE ワイドプラン)","マンション 1G(NTT西日本)","動的IP(ex)OCN光【光一括提供型】(IPoE ワイドプラン)マンション 1G(NTT西日本)","OCN 光 IPoE ワイドプラン マンション 1G 動的IP(ex)","-"]
[null,"IP1","フレッツ・ADSL","1.5Mタイプ","IP1フレッツ・ADSL1.5Mタイプ","OCN ADSLアクセス IP1 「フレッツ」プラン 1M/1.5M/8M/12M/24M/40M/47Mタイプ","xxx@ffa.ocn.ne.jp"]
[null,"IP1","フレッツ・ADSL","8Mタイプ","IP1フレッツ・ADSL8Mタイプ","OCN ADSLアクセス IP1 「フレッツ」プラン 1M/1.5M/8M/12M/24M/40M/47Mタイプ","xxx@ffa.ocn.ne.jp"]
[null,"IP1","フレッツ・ADSL","モア(12M)","IP1フレッツ・ADSLモア(12M)","OCN ADSLアクセス IP1 「フレッツ」プラン 1M/1.5M/8M/12M/24M/40M/47Mタイプ","xxx@ffa.ocn.ne.jp"]
[null,"IP1","フレッツ・ADSL","モアⅡ(24Mタイプ)/モア24(24タイプ)","IP1フレッツ・ADSLモアⅡ(24Mタイプ)/モア24(24タイプ)","OCN ADSLアクセス IP1 「フレッツ」プラン 1M/1.5M/8M/12M/24M/40M/47Mタイプ","xxx@ffa.ocn.ne.jp"]
[null,"IP1","フレッツ・ADSL","モアⅡ(40M)/モア40(40Mタイプ)","IP1フレッツ・ADSLモアⅡ(40M)/モア40(40Mタイプ)","OCN ADSLアクセス IP1 「フレッツ」プラン 1M/1.5M/8M/12M/24M/40M/47Mタイプ","xxx@ffa.ocn.ne.jp"]
[null,"IP1","フレッツ・ADSL","モアⅢ(47M)・モアスペシャル(47M)","IP1フレッツ・ADSLモアⅢ(47M)・モアスペシャル(47M)","OCN ADSLアクセス IP1 「フレッツ」プラン 1M/1.5M/8M/12M/24M/40M/47Mタイプ","xxx@ffa.ocn.ne.jp"]
[null,"IP1","フレッツ・ADSL","モアⅢ(47M)・ビジネスタイプ(NTT東日本)","IP1フレッツ・ADSLモアⅢ(47M)・ビジネスタイプ(NTT東日本)","OCN ADSLアクセス IP1 「フレッツ」プラン ビジネスタイプ","xxx@ffab.ocn.ne.jp"]
[null,"IP1","フレッツ・ADSL","モアⅡ(24M)・ビジネスタイプ(NTT東日本)","IP1フレッツ・ADSLモアⅡ(24M)・ビジネスタイプ(NTT東日本)","OCN ADSLアクセス IP1 「フレッツ」プラン ビジネスタイプ","xxx@ffab.ocn.ne.jp"]
[null,"IP1","フレッツ・ISDN",null,"IP1フレッツ・ISDN","OCN ISDNアクセス IP1 「フレッツ」プラン","xxx@ffi.ocn.ne.jp"]
[null,"IP1","Bフレッツ","ニューファミリータイプ(NTT東日本)","IP1Bフレッツニューファミリータイプ(NTT東日本)","OCN 光「フレッツ」 IP1 ファミリータイプ","xxx@fbnf2.ocn.ne.jp"]
[null,"IP1","Bフレッツ","ベーシックタイプ(NTT東日本/NTT西日本)","IP1Bフレッツベーシックタイプ(NTT東日本/NTT西日本)","OCN 光「フレッツ」 IP1 ベーシックタイプ","xxx@fbfb2.ocn.ne.jp"]
[null,"IP1","Bフレッツ","ビジネスタイプ(NTT東日本/NTT西日本)","IP1Bフレッツビジネスタイプ(NTT東日本/NTT西日本)","OCN 光「フレッツ」 IP1 ビジネスタイプ","xxx@fbfh2.ocn.ne.jp"]
[null,"IP1","Bフレッツ","ビル・マンションタイプ(NTT東日本/NTT西日本)","IP1Bフレッツビル・マンションタイプ(NTT東日本/NTT西日本)","OCN 光「フレッツ」 IP1 マンションタイプ","xxx@fbfm2.ocn.ne.jp"]
[null,"IP1","フレッツ 光ネクスト","ファミリータイプ(NTT東日本/NTT西日本)",{"$f":"B136&C136&D136","v":"IP1フレッツ 光ネクストファミリータイプ(NTT東日本/NTT西日本)"},"OCN 光「フレッツ」 IP1 ファミリータイプ","xxx@bizf.ocn.ne.jp"]
[null,"IP1","フレッツ 光ネクスト","ファミリー・ハイスピードタイプ(NTT東日本/NTT西日本)","IP1フレッツ 光ネクストファミリー・ハイスピードタイプ(NTT東日本/NTT西日本)","OCN 光「フレッツ」 IP1 ファミリータイプ","xxx@bizf.ocn.ne.jp"]
[null,"IP1","フレッツ 光ネクスト","マンションタイプ(NTT東日本/NTT西日本)","IP1フレッツ 光ネクストマンションタイプ(NTT東日本/NTT西日本)","OCN 光「フレッツ」 IP1 マンションタイプ","xxx@bizf.ocn.ne.jp"]
[null,"IP1","フレッツ 光ネクスト","マンション・ハイスピードタイプ(NTT東日本/NTT西日本)","IP1フレッツ 光ネクストマンション・ハイスピードタイプ(NTT東日本/NTT西日本)","OCN 光「フレッツ」 IP1 マンションタイプ","xxx@bizf.ocn.ne.jp"]
[null,"IP1","フレッツ 光ネクスト","ファミリー・スーパーハイスピードタイプ隼(NTT西日本)","IP1フレッツ 光ネクストファミリー・スーパーハイスピードタイプ隼(NTT西日本)","OCN 光「フレッツ」 IP1 ファミリータイプ","xxx@bizf.ocn.ne.jp"]
[null,"IP1","フレッツ 光ネクスト","マンション・スーパーハイスピードタイプ隼(NTT西日本)","IP1フレッツ 光ネクストマンション・スーパーハイスピードタイプ隼(NTT西日本)","OCN 光「フレッツ」 IP1 マンションタイプ","xxx@bizf.ocn.ne.jp"]
[null,"IP1","フレッツ 光ネクスト","ビジネスタイプ(NTT東日本/NTT西日本)","IP1フレッツ 光ネクストビジネスタイプ(NTT東日本/NTT西日本)","OCN 光「フレッツ」 IP1 ビジネスタイプ","xxx@bizf.ocn.ne.jp"]
[null,"IP1","フレッツ 光ネクスト","プライオ1(NTT東日本)","IP1フレッツ 光ネクストプライオ1(NTT東日本)","OCN 光「フレッツ」 IP1 プライオ1","xxx@bizf.ocn.ne.jp"]
[null,"IP1","フレッツ 光ネクスト","プライオ10(NTT東日本)","IP1フレッツ 光ネクストプライオ10(NTT東日本)","OCN 光「フレッツ」 IP1 プライオ10","xxx@bizf.ocn.ne.jp"]
[null,"IP1","フレッツ 光ネクスト","ギガファミリー・スマートタイプ(NTT東日本)","IP1フレッツ 光ネクストギガファミリー・スマートタイプ(NTT東日本)","OCN 光「フレッツ」 IP1 ギガファミリー","xxx@bizf.ocn.ne.jp"]
[null,"IP1","フレッツ 光ネクスト","ギガマンション・スマートタイプ(NTT東日本)","IP1フレッツ 光ネクストギガマンション・スマートタイプ(NTT東日本)","OCN 光「フレッツ」 IP1 ギガファミリー","xxx@bizf.ocn.ne.jp"]
[null,"IP1","フレッツ 光ネクスト","ファミリー・ギガラインタイプ(NTT東日本)","IP1フレッツ 光ネクストファミリー・ギガラインタイプ(NTT東日本)","OCN 光「フレッツ」 IP1 ギガファミリー","xxx@bizf.ocn.ne.jp"]
[null,"IP1","フレッツ 光ネクスト","マンション・ギガラインタイプ(NTT東日本)","IP1フレッツ 光ネクストマンション・ギガラインタイプ(NTT東日本)","OCN 光「フレッツ」 IP1 ギガファミリー","xxx@bizf.ocn.ne.jp"]
[null,"IP1","フレッツ 光ライト","ファミリータイプ","IP1フレッツ 光ライトファミリータイプ","OCN 光「フレッツ」 IP1 ファミリータイプ","xxx@bizf.ocn.ne.jp"]
[null,"IP1","フレッツ 光ライト","マンションタイプ","IP1フレッツ 光ライトマンションタイプ","OCN 光「フレッツ」 IP1 マンションタイプ","xxx@bizf.ocn.ne.jp"]
[null,"IP1","OCN光【光一括提供型】","ファミリー 100M(NTT東日本)","IP1OCN光【光一括提供型】ファミリー 100M(NTT東日本)","OCN 光 ファミリー 100M IP1","xxx@bizf.ocn.ne.jp"]
[null,"IP1","OCN光【光一括提供型】","マンション 100M(NTT東日本)","IP1OCN光【光一括提供型】マンション 100M(NTT東日本)","OCN 光 マンション 100M IP1","xxx@bizf.ocn.ne.jp"]
[null,"IP1","OCN光【光一括提供型】","ファミリー 100M(NTT西日本)","IP1OCN光【光一括提供型】ファミリー 100M(NTT西日本)","OCN 光 ファミリー 100M IP1","xxx@bizf.ocn.ne.jp"]
[null,"IP1","OCN光【光一括提供型】","マンション 100M(NTT西日本)","IP1OCN光【光一括提供型】マンション 100M(NTT西日本)","OCN 光 マンション 100M IP1","xxx@bizf.ocn.ne.jp"]
[null,"IP1","OCN光【光一括提供型】","ファミリー 200M(NTT東日本)","IP1OCN光【光一括提供型】ファミリー 200M(NTT東日本)","OCN 光 ファミリー 200M IP1","xxx@bizf.ocn.ne.jp"]
[null,"IP1","OCN光【光一括提供型】","マンション 200M(NTT東日本)","IP1OCN光【光一括提供型】マンション 200M(NTT東日本)","OCN 光 マンション 200M IP1","xxx@bizf.ocn.ne.jp"]
[null,"IP1","OCN光【光一括提供型】","ファミリー 200M(NTT西日本)","IP1OCN光【光一括提供型】ファミリー 200M(NTT西日本)","OCN 光 ファミリー 200M IP1","xxx@bizf.ocn.ne.jp"]
[null,"IP1","OCN光【光一括提供型】","マンション 200M(NTT西日本)","IP1OCN光【光一括提供型】マンション 200M(NTT西日本)","OCN 光 マンション 200M IP1","xxx@bizf.ocn.ne.jp"]
[null,"IP1","OCN光【光一括提供型】","ファミリー 1G(NTT東日本)","IP1OCN光【光一括提供型】ファミリー 1G(NTT東日本)","OCN 光 ファミリー 1G IP1","xxx@bizf.ocn.ne.jp"]
[null,"IP1","OCN光【光一括提供型】","マンション 1G(NTT東日本)","IP1OCN光【光一括提供型】マンション 1G(NTT東日本)","OCN 光 マンション 1G IP1","xxx@bizf.ocn.ne.jp"]
[null,"IP1","OCN光【光一括提供型】","ファミリー 1G(NTT西日本)","IP1OCN光【光一括提供型】ファミリー 1G(NTT西日本)","OCN 光 ファミリー 1G IP1","xxx@bizf.ocn.ne.jp"]
[null,"IP1","OCN光【光一括提供型】","マンション 1G(NTT西日本)","IP1OCN光【光一括提供型】マンション 1G(NTT西日本)","OCN 光 マンション 1G IP1","xxx@bizf.ocn.ne.jp"]
[null,"IP1","フレッツ 光クロス(IPoE 標準プラン)","NTT東日本","IP1フレッツ 光クロス(IPoE 標準プラン)NTT東日本","OCN 光「フレッツ」 IPoE クロス 標準プラン IP1","-"]
[null,"IP1","フレッツ 光クロス(IPoE 標準プラン)","NTT西日本","IP1フレッツ 光クロス(IPoE 標準プラン)NTT西日本","OCN 光「フレッツ」 IPoE クロス 標準プラン IP1","-"]
[null,"IP1","フレッツ 光クロス(IPoE ワイドプラン)","NTT東日本","IP1フレッツ 光クロス(IPoE ワイドプラン)NTT東日本","OCN 光「フレッツ」 IPoE クロス ワイドプラン IP1","-"]
[null,"IP1","フレッツ 光クロス(IPoE ワイドプラン)","NTT西日本","IP1フレッツ 光クロス(IPoE ワイドプラン)NTT西日本","OCN 光「フレッツ」 IPoE クロス ワイドプラン IP1","-"]
[null,"IP1","フレッツ 光クロス(IPoE スーパーワイドプラン)","NTT東日本","IP1フレッツ 光クロス(IPoE スーパーワイドプラン)NTT東日本","OCN 光「フレッツ」 IPoE クロス スーパーワイドプラン IP1","-"]
[null,"IP1","フレッツ 光クロス(IPoE スーパーワイドプラン)","NTT西日本","IP1フレッツ 光クロス(IPoE スーパーワイドプラン)NTT西日本","OCN 光「フレッツ」 IPoE クロス スーパーワイドプラン IP1","-"]
[null,"IP1","フレッツ 光ネクスト(IPoE 標準プラン)","NTT東日本","IP1フレッツ 光ネクスト(IPoE 標準プラン)NTT東日本","OCN 光「フレッツ」 IPoE 標準プラン IP1","-"]
[null,"IP1","フレッツ 光ネクスト(IPoE 標準プラン)","NTT西日本","IP1フレッツ 光ネクスト(IPoE 標準プラン)NTT西日本","OCN 光「フレッツ」 IPoE 標準プラン IP1","-"]
[null,"IP1","フレッツ 光ネクスト(IPoE ワイドプラン)","NTT東日本","IP1フレッツ 光ネクスト(IPoE ワイドプラン)NTT東日本","OCN 光「フレッツ」 IPoE ワイドプラン IP1","-"]
[null,"IP1","フレッツ 光ネクスト(IPoE ワイドプラン)","NTT西日本","IP1フレッツ 光ネクスト(IPoE ワイドプラン)NTT西日本","OCN 光「フレッツ」 IPoE ワイドプラン IP1","-"]
[null,"IP1","OCN光【光一括提供型】(IPoE 標準プラン)","ファミリー 100M(NTT東日本)","IP1OCN光【光一括提供型】(IPoE 標準プラン)ファミリー 100M(NTT東日本)","OCN 光 IPoE 標準プラン ファミリー 100M IP1","-"]
[null,"IP1","OCN光【光一括提供型】(IPoE 標準プラン)","マンション 100M(NTT東日本)","IP1OCN光【光一括提供型】(IPoE 標準プラン)マンション 100M(NTT東日本)","OCN 光 IPoE 標準プラン マンション 100M IP1","-"]
[null,"IP1","OCN光【光一括提供型】(IPoE 標準プラン)","ファミリー 100M(NTT西日本)","IP1OCN光【光一括提供型】(IPoE 標準プラン)ファミリー 100M(NTT西日本)","OCN 光 IPoE 標準プラン ファミリー 100M IP1","-"]
[null,"IP1","OCN光【光一括提供型】(IPoE 標準プラン)","マンション 100M(NTT西日本)","IP1OCN光【光一括提供型】(IPoE 標準プラン)マンション 100M(NTT西日本)","OCN 光 IPoE 標準プラン マンション 100M IP1","-"]
[null,"IP1","OCN光【光一括提供型】(IPoE 標準プラン)","ファミリー 200M(NTT東日本)","IP1OCN光【光一括提供型】(IPoE 標準プラン)ファミリー 200M(NTT東日本)","OCN 光 IPoE 標準プラン ファミリー 200M IP1","-"]
[null,"IP1","OCN光【光一括提供型】(IPoE 標準プラン)","マンション 200M(NTT東日本)","IP1OCN光【光一括提供型】(IPoE 標準プラン)マンション 200M(NTT東日本)","OCN 光 IPoE 標準プラン マンション 200M IP1","-"]
[null,"IP1","OCN光【光一括提供型】(IPoE 標準プラン)","ファミリー 200M(NTT西日本)","IP1OCN光【光一括提供型】(IPoE 標準プラン)ファミリー 200M(NTT西日本)","OCN 光 IPoE 標準プラン ファミリー 200M IP1","-"]
[null,"IP1","OCN光【光一括提供型】(IPoE 標準プラン)","マンション 200M(NTT西日本)","IP1OCN光【光一括提供型】(IPoE 標準プラン)マンション 200M(NTT西日本)","OCN 光 IPoE 標準プラン マンション 200M IP1","-"]
[null,"IP1","OCN光【光一括提供型】(IPoE 標準プラン)","ファミリー 1G(NTT東日本)","IP1OCN光【光一括提供型】(IPoE 標準プラン)ファミリー 1G(NTT東日本)","OCN 光 IPoE 標準プラン ファミリー 1G IP1","-"]
[null,"IP1","OCN光【光一括提供型】(IPoE 標準プラン)","マンション 1G(NTT東日本)","IP1OCN光【光一括提供型】(IPoE 標準プラン)マンション 1G(NTT東日本)","OCN 光 IPoE 標準プラン マンション 1G IP1","-"]
[null,"IP1","OCN光【光一括提供型】(IPoE 標準プラン)","ファミリー 1G(NTT西日本)","IP1OCN光【光一括提供型】(IPoE 標準プラン)ファミリー 1G(NTT西日本)","OCN 光 IPoE 標準プラン ファミリー 1G IP1","-"]
[null,"IP1","OCN光【光一括提供型】(IPoE 標準プラン)","マンション 1G(NTT西日本)","IP1OCN光【光一括提供型】(IPoE 標準プラン)マンション 1G(NTT西日本)","OCN 光 IPoE 標準プラン マンション 1G IP1","-"]
[null,"IP1","OCN光【光一括提供型】(IPoE ワイドプラン)","ファミリー 100M(NTT東日本)","IP1OCN光【光一括提供型】(IPoE ワイドプラン)ファミリー 100M(NTT東日本)","OCN 光 IPoE ワイドプラン ファミリー 100M IP1","-"]
[null,"IP1","OCN光【光一括提供型】(IPoE ワイドプラン)","マンション 100M(NTT東日本)","IP1OCN光【光一括提供型】(IPoE ワイドプラン)マンション 100M(NTT東日本)","OCN 光 IPoE ワイドプラン マンション 100M IP1","-"]
[null,"IP1","OCN光【光一括提供型】(IPoE ワイドプラン)","ファミリー 100M(NTT西日本)","IP1OCN光【光一括提供型】(IPoE ワイドプラン)ファミリー 100M(NTT西日本)","OCN 光 IPoE ワイドプラン ファミリー 100M IP1","-"]
[null,"IP1","OCN光【光一括提供型】(IPoE ワイドプラン)","マンション 100M(NTT西日本)","IP1OCN光【光一括提供型】(IPoE ワイドプラン)マンション 100M(NTT西日本)","OCN 光 IPoE ワイドプラン マンション 100M IP1","-"]
[null,"IP1","OCN光【光一括提供型】(IPoE ワイドプラン)","ファミリー 200M(NTT東日本)","IP1OCN光【光一括提供型】(IPoE ワイドプラン)ファミリー 200M(NTT東日本)","OCN 光 IPoE ワイドプラン ファミリー 200M IP1","-"]
[null,"IP1","OCN光【光一括提供型】(IPoE ワイドプラン)","マンション 200M(NTT東日本)","IP1OCN光【光一括提供型】(IPoE ワイドプラン)マンション 200M(NTT東日本)","OCN 光 IPoE ワイドプラン マンション 200M IP1","-"]
[null,"IP1","OCN光【光一括提供型】(IPoE ワイドプラン)","ファミリー 200M(NTT西日本)","IP1OCN光【光一括提供型】(IPoE ワイドプラン)ファミリー 200M(NTT西日本)","OCN 光 IPoE ワイドプラン ファミリー 200M IP1","-"]
[null,"IP1","OCN光【光一括提供型】(IPoE ワイドプラン)","マンション 200M(NTT西日本)","IP1OCN光【光一括提供型】(IPoE ワイドプラン)マンション 200M(NTT西日本)","OCN 光 IPoE ワイドプラン マンション 200M IP1","-"]
[null,"IP1","OCN光【光一括提供型】(IPoE ワイドプラン)","ファミリー 1G(NTT東日本)","IP1OCN光【光一括提供型】(IPoE ワイドプラン)ファミリー 1G(NTT東日本)","OCN 光 IPoE ワイドプラン ファミリー 1G IP1","-"]
[null,"IP1","OCN光【光一括提供型】(IPoE ワイドプラン)","マンション 1G(NTT東日本)","IP1OCN光【光一括提供型】(IPoE ワイドプラン)マンション 1G(NTT東日本)","OCN 光 IPoE ワイドプラン マンション 1G IP1","-"]
[null,"IP1","OCN光【光一括提供型】(IPoE ワイドプラン)","ファミリー 1G(NTT西日本)","IP1OCN光【光一括提供型】(IPoE ワイドプラン)ファミリー 1G(NTT西日本)","OCN 光 IPoE ワイドプラン ファミリー 1G IP1","-"]
[null,"IP1","OCN光【光一括提供型】(IPoE ワイドプラン)","マンション 1G(NTT西日本)","IP1OCN光【光一括提供型】(IPoE ワイドプラン)マンション 1G(NTT西日本)","OCN 光 IPoE ワイドプラン マンション 1G IP1","-"]
[null,"IP1","OCN ADSLサービス(F)","モアⅢ(47M)(NTT東日本)","IP1OCN ADSLサービス(F)モアⅢ(47M)(NTT東日本)","OCN ADSLサービス IP1(F)47M 東タイプ","xxx@ffa.ocn.ne.jp"]
[null,"IP1","OCN ADSLサービス(F)","モアスペシャル(47M)(NTT西日本)","IP1OCN ADSLサービス(F)モアスペシャル(47M)(NTT西日本)","OCN ADSLサービス IP1(F)47M 西タイプ","xxx@ffa.ocn.ne.jp"]
[null,"IP1","OCN ADSLサービス(F)","モアⅡ(40M)(NTT東日本)","IP1OCN ADSLサービス(F)モアⅡ(40M)(NTT東日本)","OCN ADSLサービス IP1(F)40M 東タイプ","xxx@ffa.ocn.ne.jp"]
[null,"IP1","OCN ADSLサービス(F)","モア40(40M)(NTT西日本)","IP1OCN ADSLサービス(F)モア40(40M)(NTT西日本)","OCN ADSLサービス IP1(F)40M 西タイプ","xxx@ffa.ocn.ne.jp"]
[null,"IP1","OCN ADSLサービス(F)","モア24(24M)(NTT西日本)","IP1OCN ADSLサービス(F)モア24(24M)(NTT西日本)","OCN ADSLサービス IP1(F)24M 西タイプ","xxx@ffa.ocn.ne.jp"]
[null,"IP1","OCN ADSLサービス(F)","モア(12M)(NTT東日本)","IP1OCN ADSLサービス(F)モア(12M)(NTT東日本)","OCN ADSLサービス IP1(F)12M 東タイプ","xxx@ffa.ocn.ne.jp"]
[null,"IP1","OCN ADSLサービス(F)","モア(12M)(NTT西日本)","IP1OCN ADSLサービス(F)モア(12M)(NTT西日本)","OCN ADSLサービス IP1(F)12M 西タイプ","xxx@ffa.ocn.ne.jp"]
[null,"IP1","OCN ADSLサービス(F)","8M(NTT東日本)","IP1OCN ADSLサービス(F)8M(NTT東日本)","OCN ADSLサービス IP1(F)8M 東タイプ","xxx@ffa.ocn.ne.jp"]
[null,"IP1","OCN ADSLサービス(F)","8M(NTT西日本)","IP1OCN ADSLサービス(F)8M(NTT西日本)","OCN ADSLサービス IP1(F)8M 西タイプ","xxx@ffa.ocn.ne.jp"]
[null,"IP1","OCN ADSLサービス(F)","1.5M(NTT東日本)",{"$f":"B206&C206&D206","v":"IP1OCN ADSLサービス(F)1.5M(NTT東日本)"},"OCN ADSLサービス IP1(F)1.5M 東タイプ","xxx@ffa.ocn.ne.jp"]
[null,"IP1","OCN ADSLサービス(F)","1.5M(NTT西日本)","IP1OCN ADSLサービス(F)1.5M(NTT西日本)","OCN ADSLサービス IP1(F)1.5M 西タイプ","xxx@ffa.ocn.ne.jp"]
[null,"IP1","OCN ADSLサービス(F)","モアⅢ(47M)・ビジネスタイプ(NTT東日本)","IP1OCN ADSLサービス(F)モアⅢ(47M)・ビジネスタイプ(NTT東日本)","OCN ADSLサービス IP1(F)ビジネス47M 東タイプ","xxx@ffab.ocn.ne.jp"]
[null,"IP1","OCN ADSLサービス(F)","モアⅡ(40M)・ビジネスタイプ(NTT東日本)","IP1OCN ADSLサービス(F)モアⅡ(40M)・ビジネスタイプ(NTT東日本)","OCN ADSLサービス IP1(F)ビジネス40M 東タイプ","xxx@ffab.ocn.ne.jp"]
[null,"IP1","OCN 光サービス(F)「光ネクスト」","ファミリータイプ(NTT東日本)","IP1OCN 光サービス(F)「光ネクスト」ファミリータイプ(NTT東日本)","OCN 光サービス IP1(F) 「光ネクスト」ファミリータイプ 東タイプ","xxx@bizf.ocn.ne.jp"]
[null,"IP1","OCN 光サービス(F)「光ネクスト」","ファミリータイプ(NTT西日本)","IP1OCN 光サービス(F)「光ネクスト」ファミリータイプ(NTT西日本)","OCN 光サービス IP1(F) 「光ネクスト」ファミリータイプ 西タイプ","xxx@bizf.ocn.ne.jp"]
[null,"IP1","OCN 光サービス(F)「光ネクスト」","ファミリー・ハイスピードタイプ(NTT東日本)","IP1OCN 光サービス(F)「光ネクスト」ファミリー・ハイスピードタイプ(NTT東日本)","OCN 光サービス IP1(F) 「光ネクスト」ファミリー･ハイスピードタイプ 東タイプ","xxx@bizf.ocn.ne.jp"]
[null,"IP1","OCN 光サービス(F)「光ネクスト」","ファミリー・ハイスピードタイプ(NTT西日本)","IP1OCN 光サービス(F)「光ネクスト」ファミリー・ハイスピードタイプ(NTT西日本)","OCN 光サービス IP1(F) 「光ネクスト」ファミリー･ハイスピードタイプ 西タイプ","xxx@bizf.ocn.ne.jp"]
[null,"IP1","OCN 光サービス(F)「光ネクスト」","ファミリー・スーパーハイスピードタイプ隼(NTT西日本)","IP1OCN 光サービス(F)「光ネクスト」ファミリー・スーパーハイスピードタイプ隼(NTT西日本)","OCN 光サービス IP1(F) 「光ネクスト」ファミリー･スーパーハイスピード隼 西タイプ","xxx@bizf.ocn.ne.jp"]
[null,"IP1","OCN 光サービス(F)「光ネクスト」","ビジネスタイプ(NTT東日本)","IP1OCN 光サービス(F)「光ネクスト」ビジネスタイプ(NTT東日本)","OCN 光サービス IP1(F) 「光ネクスト」ビジネスタイプ 東タイプ","xxx@bizf.ocn.ne.jp"]
[null,"IP1","OCN 光サービス(F)「光ネクスト」","ビジネスタイプ(NTT西日本)","IP1OCN 光サービス(F)「光ネクスト」ビジネスタイプ(NTT西日本)","OCN 光サービス IP1(F) 「光ネクスト」ビジネスタイプ 西タイプ","xxx@bizf.ocn.ne.jp"]
[null,"IP1","OCN 光サービス(F)「光ネクスト」","プライオ1(NTT東日本)","IP1OCN 光サービス(F)「光ネクスト」プライオ1(NTT東日本)","OCN 光サービス IP1(F) 「光ネクスト」プライオ1 東タイプ","xxx@bizf.ocn.ne.jp"]
[null,"IP1","OCN 光サービス(F)「光ネクスト」","プライオ10(NTT東日本)","IP1OCN 光サービス(F)「光ネクスト」プライオ10(NTT東日本)","OCN 光サービス IP1(F) 「光ネクスト」プライオ10 東タイプ","xxx@bizf.ocn.ne.jp"]
[null,"IP1","OCN 光サービス(F)「光ネクスト」","ギガファミリー・スマートタイプ(NTT東日本)","IP1OCN 光サービス(F)「光ネクスト」ギガファミリー・スマートタイプ(NTT東日本)","OCN 光サービス IP1(F) 「光ネクスト」ギガファミリー 東タイプ","xxx@bizf.ocn.ne.jp"]
[null,"IP1","OCN 光サービス(F)「光ネクスト」","ファミリー・ギガラインタイプ(NTT東日本)","IP1OCN 光サービス(F)「光ネクスト」ファミリー・ギガラインタイプ(NTT東日本)","OCN 光サービス IP1(F) 「光ネクスト」ファミリー･ギガライン 東タイプ","xxx@bizf.ocn.ne.jp"]
[null,"IP8","フレッツ・ADSL","1.5Mタイプ","IP8フレッツ・ADSL1.5Mタイプ","OCN ADSLアクセス IP8 「フレッツ」プラン 1M/1.5M/8M/12M/24M/40M/47Mタイプ","xxx@ffa.ocn.ne.jp"]
[null,"IP8","フレッツ・ADSL","8Mタイプ","IP8フレッツ・ADSL8Mタイプ","OCN ADSLアクセス IP8 「フレッツ」プラン 1M/1.5M/8M/12M/24M/40M/47Mタイプ","xxx@ffa.ocn.ne.jp"]
[null,"IP8","フレッツ・ADSL","モア(12M)","IP8フレッツ・ADSLモア(12M)","OCN ADSLアクセス IP8 「フレッツ」プラン 1M/1.5M/8M/12M/24M/40M/47Mタイプ","xxx@ffa.ocn.ne.jp"]
[null,"IP8","フレッツ・ADSL","モアⅡ(24Mタイプ)/モア24(24タイプ)","IP8フレッツ・ADSLモアⅡ(24Mタイプ)/モア24(24タイプ)","OCN ADSLアクセス IP8 「フレッツ」プラン 1M/1.5M/8M/12M/24M/40M/47Mタイプ","xxx@ffa.ocn.ne.jp"]
[null,"IP8","フレッツ・ADSL","モアⅡ(40M)/モア40(40Mタイプ)","IP8フレッツ・ADSLモアⅡ(40M)/モア40(40Mタイプ)","OCN ADSLアクセス IP8 「フレッツ」プラン 1M/1.5M/8M/12M/24M/40M/47Mタイプ","xxx@ffa.ocn.ne.jp"]
[null,"IP8","フレッツ・ADSL","モアⅢ(47M)・モアスペシャル(47M)","IP8フレッツ・ADSLモアⅢ(47M)・モアスペシャル(47M)","OCN ADSLアクセス IP8 「フレッツ」プラン 1M/1.5M/8M/12M/24M/40M/47Mタイプ","xxx@ffa.ocn.ne.jp"]
[null,"IP8","フレッツ・ADSL","モアⅢ(47M)・ビジネスタイプ(NTT東日本)","IP8フレッツ・ADSLモアⅢ(47M)・ビジネスタイプ(NTT東日本)","OCN ADSLアクセス IP8 「フレッツ」プラン ビジネスタイプ","xxx@ffab.ocn.ne.jp"]
[null,"IP8","フレッツ・ADSL","モアⅡ(24M)・ビジネスタイプ(NTT東日本)","IP8フレッツ・ADSLモアⅡ(24M)・ビジネスタイプ(NTT東日本)","OCN ADSLアクセス IP8 「フレッツ」プラン ビジネスタイプ","xxx@ffab.ocn.ne.jp"]
[null,"IP8","フレッツ・ISDN",null,"IP8フレッツ・ISDN","OCN ISDNアクセス IP8 「フレッツ」プラン","xxx@ffi.ocn.ne.jp"]
[null,"IP8","Bフレッツ","ニューファミリータイプ(NTT東日本)","IP8Bフレッツニューファミリータイプ(NTT東日本)","OCN 光「フレッツ」 IP8 ファミリータイプ","xxx@fbnf2.ocn.ne.jp"]
[null,"IP8","Bフレッツ","ベーシックタイプ(NTT東日本/NTT西日本)","IP8Bフレッツベーシックタイプ(NTT東日本/NTT西日本)","OCN 光「フレッツ」 IP8 ベーシックタイプ","xxx@fbfb2.ocn.ne.jp"]
[null,"IP8","Bフレッツ","ビジネスタイプ(NTT東日本/NTT西日本)","IP8Bフレッツビジネスタイプ(NTT東日本/NTT西日本)","OCN 光「フレッツ」 IP8 ビジネスタイプ","xxx@fbfh2.ocn.ne.jp"]
[null,"IP8","Bフレッツ","ビル・マンションタイプ(NTT東日本/NTT西日本)","IP8Bフレッツビル・マンションタイプ(NTT東日本/NTT西日本)","OCN 光「フレッツ」 IP8 マンションタイプ","xxx@fbfm2.ocn.ne.jp"]
[null,"IP8","フレッツ 光ネクスト","ファミリータイプ(NTT東日本/NTT西日本)","IP8フレッツ 光ネクストファミリータイプ(NTT東日本/NTT西日本)","OCN 光「フレッツ」 IP8 ファミリータイプ","xxx@bizf.ocn.ne.jp"]
[null,"IP8","フレッツ 光ネクスト","ファミリー・ハイスピードタイプ(NTT東日本/NTT西日本)","IP8フレッツ 光ネクストファミリー・ハイスピードタイプ(NTT東日本/NTT西日本)","OCN 光「フレッツ」 IP8 ファミリータイプ","xxx@bizf.ocn.ne.jp"]
[null,"IP8","フレッツ 光ネクスト","マンションタイプ(NTT東日本/NTT西日本)","IP8フレッツ 光ネクストマンションタイプ(NTT東日本/NTT西日本)","OCN 光「フレッツ」 IP8 マンションタイプ","xxx@bizf.ocn.ne.jp"]
[null,"IP8","フレッツ 光ネクスト","マンション・ハイスピードタイプ(NTT東日本/NTT西日本)","IP8フレッツ 光ネクストマンション・ハイスピードタイプ(NTT東日本/NTT西日本)","OCN 光「フレッツ」 IP8 マンションタイプ","xxx@bizf.ocn.ne.jp"]
[null,"IP8","フレッツ 光ネクスト","ファミリー・スーパーハイスピードタイプ隼(NTT西日本)","IP8フレッツ 光ネクストファミリー・スーパーハイスピードタイプ隼(NTT西日本)","OCN 光「フレッツ」 IP8 ファミリータイプ","xxx@bizf.ocn.ne.jp"]
[null,"IP8","フレッツ 光ネクスト","マンション・スーパーハイスピードタイプ隼(NTT西日本)","IP8フレッツ 光ネクストマンション・スーパーハイスピードタイプ隼(NTT西日本)","OCN 光「フレッツ」 IP8 マンションタイプ","xxx@bizf.ocn.ne.jp"]
[null,"IP8","フレッツ 光ネクスト","ビジネスタイプ(NTT東日本/NTT西日本)","IP8フレッツ 光ネクストビジネスタイプ(NTT東日本/NTT西日本)","OCN 光「フレッツ」 IP8 ビジネスタイプ","xxx@bizf.ocn.ne.jp"]
[null,"IP8","フレッツ 光ネクスト","プライオ1(NTT東日本)","IP8フレッツ 光ネクストプライオ1(NTT東日本)","OCN 光「フレッツ」 IP8 プライオ1","xxx@bizf.ocn.ne.jp"]
[null,"IP8","フレッツ 光ネクスト","プライオ10(NTT東日本)","IP8フレッツ 光ネクストプライオ10(NTT東日本)","OCN 光「フレッツ」 IP8 プライオ10","xxx@bizf.ocn.ne.jp"]
[null,"IP8","フレッツ 光ネクスト","ギガファミリー・スマートタイプ(NTT東日本)","IP8フレッツ 光ネクストギガファミリー・スマートタイプ(NTT東日本)","OCN 光「フレッツ」 IP8 ギガファミリー","xxx@bizf.ocn.ne.jp"]
[null,"IP8","フレッツ 光ネクスト","ギガマンション・スマートタイプ(NTT東日本)","IP8フレッツ 光ネクストギガマンション・スマートタイプ(NTT東日本)","OCN 光「フレッツ」 IP8 ギガファミリー","xxx@bizf.ocn.ne.jp"]
[null,"IP8","フレッツ 光ネクスト","ファミリー・ギガラインタイプ(NTT東日本)","IP8フレッツ 光ネクストファミリー・ギガラインタイプ(NTT東日本)","OCN 光「フレッツ」 IP8 ギガファミリー","xxx@bizf.ocn.ne.jp"]
[null,"IP8","フレッツ 光ネクスト","マンション・ギガラインタイプ(NTT東日本)","IP8フレッツ 光ネクストマンション・ギガラインタイプ(NTT東日本)","OCN 光「フレッツ」 IP8 ギガファミリー","xxx@bizf.ocn.ne.jp"]
[null,"IP8","フレッツ 光ライト","ファミリータイプ(NTT東日本/NTT西日本)","IP8フレッツ 光ライトファミリータイプ(NTT東日本/NTT西日本)","OCN 光「フレッツ」 IP8 ファミリータイプ","xxx@bizf.ocn.ne.jp"]
[null,"IP8","フレッツ 光ライト","マンションタイプ(NTT東日本/NTT西日本)","IP8フレッツ 光ライトマンションタイプ(NTT東日本/NTT西日本)","OCN 光「フレッツ」 IP8 マンションタイプ","xxx@bizf.ocn.ne.jp"]
[null,"IP8","OCN光【光一括提供型】","ファミリー 100M(NTT東日本)","IP8OCN光【光一括提供型】ファミリー 100M(NTT東日本)","OCN 光 ファミリー 100M IP8","xxx@bizf.ocn.ne.jp"]
[null,"IP8","OCN光【光一括提供型】","マンション 100M(NTT東日本)","IP8OCN光【光一括提供型】マンション 100M(NTT東日本)","OCN 光 マンション 100M IP8","xxx@bizf.ocn.ne.jp"]
[null,"IP8","OCN光【光一括提供型】","ファミリー 100M(NTT西日本)","IP8OCN光【光一括提供型】ファミリー 100M(NTT西日本)","OCN 光 ファミリー 100M IP8","xxx@bizf.ocn.ne.jp"]
[null,"IP8","OCN光【光一括提供型】","マンション 100M(NTT西日本)","IP8OCN光【光一括提供型】マンション 100M(NTT西日本)","OCN 光 マンション 100M IP8","xxx@bizf.ocn.ne.jp"]
[null,"IP8","OCN光【光一括提供型】","ファミリー 200M(NTT東日本)","IP8OCN光【光一括提供型】ファミリー 200M(NTT東日本)","OCN 光 ファミリー 200M IP8","xxx@bizf.ocn.ne.jp"]
[null,"IP8","OCN光【光一括提供型】","マンション 200M(NTT東日本)","IP8OCN光【光一括提供型】マンション 200M(NTT東日本)","OCN 光 マンション 200M IP8","xxx@bizf.ocn.ne.jp"]
[null,"IP8","OCN光【光一括提供型】","ファミリー 200M(NTT西日本)","IP8OCN光【光一括提供型】ファミリー 200M(NTT西日本)","OCN 光 ファミリー 200M IP8","xxx@bizf.ocn.ne.jp"]
[null,"IP8","OCN光【光一括提供型】","マンション 200M(NTT西日本)","IP8OCN光【光一括提供型】マンション 200M(NTT西日本)","OCN 光 マンション 200M IP8","xxx@bizf.ocn.ne.jp"]
[null,"IP8","OCN光【光一括提供型】","ファミリー 1G(NTT西日本)","IP8OCN光【光一括提供型】ファミリー 1G(NTT西日本)","OCN 光 ファミリー 1G IP8","xxx@bizf.ocn.ne.jp"]
[null,"IP8","OCN光【光一括提供型】","マンション 1G(NTT西日本)","IP8OCN光【光一括提供型】マンション 1G(NTT西日本)","OCN 光 マンション 1G IP8","xxx@bizf.ocn.ne.jp"]
[null,"IP8","OCN光【光一括提供型】","ファミリー 1G(NTT東日本)","IP8OCN光【光一括提供型】ファミリー 1G(NTT東日本)","OCN 光 ファミリー 1G IP8","xxx@bizf.ocn.ne.jp"]
[null,"IP8","OCN光【光一括提供型】","マンション 1G(NTT東日本)","IP8OCN光【光一括提供型】マンション 1G(NTT東日本)","OCN 光 マンション 1G IP8","xxx@bizf.ocn.ne.jp"]
[null,"IP8","フレッツ 光クロス(IPoE 標準プラン)","NTT東日本","IP8フレッツ 光クロス(IPoE 標準プラン)NTT東日本","OCN 光「フレッツ」 IPoE クロス 標準プラン IP8","-"]
[null,"IP8","フレッツ 光クロス(IPoE 標準プラン)","NTT西日本","IP8フレッツ 光クロス(IPoE 標準プラン)NTT西日本","OCN 光「フレッツ」 IPoE クロス 標準プラン IP8","-"]
[null,"IP8","フレッツ 光クロス(IPoE ワイドプラン)","NTT東日本","IP8フレッツ 光クロス(IPoE ワイドプラン)NTT東日本","OCN 光「フレッツ」 IPoE クロス ワイドプラン IP8","-"]
[null,"IP8","フレッツ 光クロス(IPoE ワイドプラン)","NTT西日本","IP8フレッツ 光クロス(IPoE ワイドプラン)NTT西日本","OCN 光「フレッツ」 IPoE クロス ワイドプラン IP8","-"]
[null,"IP8","フレッツ 光クロス(IPoE スーパーワイドプラン)","NTT東日本","IP8フレッツ 光クロス(IPoE スーパーワイドプラン)NTT東日本","OCN 光「フレッツ」 IPoE クロス スーパーワイドプラン IP8","-"]
[null,"IP8","フレッツ 光クロス(IPoE スーパーワイドプラン)","NTT西日本","IP8フレッツ 光クロス(IPoE スーパーワイドプラン)NTT西日本","OCN 光「フレッツ」 IPoE クロス スーパーワイドプラン IP8","-"]
[null,"IP8","フレッツ 光ネクスト(IPoE 標準プラン)","NTT東日本","IP8フレッツ 光ネクスト(IPoE 標準プラン)NTT東日本","OCN 光「フレッツ」 IPoE 標準プラン IP8","-"]
[null,"IP8","フレッツ 光ネクスト(IPoE 標準プラン)","NTT西日本","IP8フレッツ 光ネクスト(IPoE 標準プラン)NTT西日本","OCN 光「フレッツ」 IPoE 標準プラン IP8","-"]
[null,"IP8","フレッツ 光ネクスト(IPoE ワイドプラン)","NTT東日本","IP8フレッツ 光ネクスト(IPoE ワイドプラン)NTT東日本","OCN 光「フレッツ」 IPoE ワイドプラン IP8","-"]
[null,"IP8","フレッツ 光ネクスト(IPoE ワイドプラン)","NTT西日本","IP8フレッツ 光ネクスト(IPoE ワイドプラン)NTT西日本","OCN 光「フレッツ」 IPoE ワイドプラン IP8","-"]
[null,"IP8","OCN光【光一括提供型】(IPoE 標準プラン)","ファミリー 100M(NTT東日本)","IP8OCN光【光一括提供型】(IPoE 標準プラン)ファミリー 100M(NTT東日本)","OCN 光 IPoE 標準プラン ファミリー 100M  IP8","-"]
[null,"IP8","OCN光【光一括提供型】(IPoE 標準プラン)","マンション 100M(NTT東日本)","IP8OCN光【光一括提供型】(IPoE 標準プラン)マンション 100M(NTT東日本)","OCN 光 IPoE 標準プラン マンション 100M  IP8","-"]
[null,"IP8","OCN光【光一括提供型】(IPoE 標準プラン)","ファミリー 100M(NTT西日本)","IP8OCN光【光一括提供型】(IPoE 標準プラン)ファミリー 100M(NTT西日本)","OCN 光 IPoE 標準プラン ファミリー 100M  IP8","-"]
[null,"IP8","OCN光【光一括提供型】(IPoE 標準プラン)","マンション 100M(NTT西日本)","IP8OCN光【光一括提供型】(IPoE 標準プラン)マンション 100M(NTT西日本)","OCN 光 IPoE 標準プラン マンション 100M  IP8","-"]
[null,"IP8","OCN光【光一括提供型】(IPoE 標準プラン)","ファミリー 200M(NTT東日本)","IP8OCN光【光一括提供型】(IPoE 標準プラン)ファミリー 200M(NTT東日本)","OCN 光 IPoE 標準プラン ファミリー 200M  IP8","-"]
[null,"IP8","OCN光【光一括提供型】(IPoE 標準プラン)","マンション 200M(NTT東日本)",{"$f":"B276&C276&D276","v":"IP8OCN光【光一括提供型】(IPoE 標準プラン)マンション 200M(NTT東日本)"},"OCN 光 IPoE 標準プラン マンション 200M  IP8","-"]
[null,"IP8","OCN光【光一括提供型】(IPoE 標準プラン)","ファミリー 200M(NTT西日本)","IP8OCN光【光一括提供型】(IPoE 標準プラン)ファミリー 200M(NTT西日本)","OCN 光 IPoE 標準プラン ファミリー 200M  IP8","-"]
[null,"IP8","OCN光【光一括提供型】(IPoE 標準プラン)","マンション 200M(NTT西日本)","IP8OCN光【光一括提供型】(IPoE 標準プラン)マンション 200M(NTT西日本)","OCN 光 IPoE 標準プラン マンション 200M  IP8","-"]
[null,"IP8","OCN光【光一括提供型】(IPoE 標準プラン)","ファミリー 1G(NTT西日本)","IP8OCN光【光一括提供型】(IPoE 標準プラン)ファミリー 1G(NTT西日本)","OCN 光 IPoE 標準プラン ファミリー 1G  IP8","-"]
[null,"IP8","OCN光【光一括提供型】(IPoE 標準プラン)","マンション 1G(NTT西日本)","IP8OCN光【光一括提供型】(IPoE 標準プラン)マンション 1G(NTT西日本)","OCN 光 IPoE 標準プラン マンション 1G  IP8","-"]
[null,"IP8","OCN光【光一括提供型】(IPoE 標準プラン)","ファミリー 1G(NTT東日本)","IP8OCN光【光一括提供型】(IPoE 標準プラン)ファミリー 1G(NTT東日本)","OCN 光 IPoE 標準プラン ファミリー 1G  IP8","-"]
[null,"IP8","OCN光【光一括提供型】(IPoE 標準プラン)","マンション 1G(NTT東日本)","IP8OCN光【光一括提供型】(IPoE 標準プラン)マンション 1G(NTT東日本)","OCN 光 IPoE 標準プラン マンション 1G  IP8","-"]
[null,"IP8","OCN光【光一括提供型】(IPoE ワイドプラン)","ファミリー 100M(NTT東日本)","IP8OCN光【光一括提供型】(IPoE ワイドプラン)ファミリー 100M(NTT東日本)","OCN 光 IPoE ワイドプラン ファミリー 100M  IP8","-"]
[null,"IP8","OCN光【光一括提供型】(IPoE ワイドプラン)","マンション 100M(NTT東日本)","IP8OCN光【光一括提供型】(IPoE ワイドプラン)マンション 100M(NTT東日本)","OCN 光 IPoE ワイドプラン マンション 100M  IP8","-"]
[null,"IP8","OCN光【光一括提供型】(IPoE ワイドプラン)","ファミリー 100M(NTT西日本)","IP8OCN光【光一括提供型】(IPoE ワイドプラン)ファミリー 100M(NTT西日本)","OCN 光 IPoE ワイドプラン ファミリー 100M  IP8","-"]
[null,"IP8","OCN光【光一括提供型】(IPoE ワイドプラン)","マンション 100M(NTT西日本)","IP8OCN光【光一括提供型】(IPoE ワイドプラン)マンション 100M(NTT西日本)","OCN 光 IPoE ワイドプラン マンション 100M  IP8","-"]
[null,"IP8","OCN光【光一括提供型】(IPoE ワイドプラン)","ファミリー 200M(NTT東日本)","IP8OCN光【光一括提供型】(IPoE ワイドプラン)ファミリー 200M(NTT東日本)","OCN 光 IPoE ワイドプラン ファミリー 200M  IP8","-"]
[null,"IP8","OCN光【光一括提供型】(IPoE ワイドプラン)","マンション 200M(NTT東日本)","IP8OCN光【光一括提供型】(IPoE ワイドプラン)マンション 200M(NTT東日本)","OCN 光 IPoE ワイドプラン マンション 200M  IP8","-"]
[null,"IP8","OCN光【光一括提供型】(IPoE ワイドプラン)","ファミリー 200M(NTT西日本)","IP8OCN光【光一括提供型】(IPoE ワイドプラン)ファミリー 200M(NTT西日本)","OCN 光 IPoE ワイドプラン ファミリー 200M  IP8","-"]
[null,"IP8","OCN光【光一括提供型】(IPoE ワイドプラン)","マンション 200M(NTT西日本)","IP8OCN光【光一括提供型】(IPoE ワイドプラン)マンション 200M(NTT西日本)","OCN 光 IPoE ワイドプラン マンション 200M  IP8","-"]
[null,"IP8","OCN光【光一括提供型】(IPoE ワイドプラン)","ファミリー 1G(NTT西日本)","IP8OCN光【光一括提供型】(IPoE ワイドプラン)ファミリー 1G(NTT西日本)","OCN 光 IPoE ワイドプラン ファミリー 1G  IP8","-"]
[null,"IP8","OCN光【光一括提供型】(IPoE ワイドプラン)","マンション 1G(NTT西日本)","IP8OCN光【光一括提供型】(IPoE ワイドプラン)マンション 1G(NTT西日本)","OCN 光 IPoE ワイドプラン マンション 1G  IP8","-"]
[null,"IP8","OCN光【光一括提供型】(IPoE ワイドプラン)","ファミリー 1G(NTT東日本)","IP8OCN光【光一括提供型】(IPoE ワイドプラン)ファミリー 1G(NTT東日本)","OCN 光 IPoE ワイドプラン ファミリー 1G  IP8","-"]
[null,"IP8","OCN光【光一括提供型】(IPoE ワイドプラン)","マンション 1G(NTT東日本)","IP8OCN光【光一括提供型】(IPoE ワイドプラン)マンション 1G(NTT東日本)","OCN 光 IPoE ワイドプラン マンション 1G  IP8","-"]
[null,"IP8","OCN ADSLサービス(F)","モアⅢ(47M)(NTT東日本)","IP8OCN ADSLサービス(F)モアⅢ(47M)(NTT東日本)","OCN ADSLサービス IP8(F)47M 東タイプ","xxx@ffa.ocn.ne.jp"]
[null,"IP8","OCN ADSLサービス(F)","モアスペシャル(47M)(NTT西日本)","IP8OCN ADSLサービス(F)モアスペシャル(47M)(NTT西日本)","OCN ADSLサービス IP8(F)47M 西タイプ","xxx@ffa.ocn.ne.jp"]
[null,"IP8","OCN ADSLサービス(F)","モアⅡ(40M)(NTT東日本)","IP8OCN ADSLサービス(F)モアⅡ(40M)(NTT東日本)","OCN ADSLサービス IP8(F)40M 東タイプ","xxx@ffa.ocn.ne.jp"]
[null,"IP8","OCN ADSLサービス(F)","モア40(40M)(NTT西日本)","IP8OCN ADSLサービス(F)モア40(40M)(NTT西日本)","OCN ADSLサービス IP8(F)40M 西タイプ","xxx@ffa.ocn.ne.jp"]
[null,"IP8","OCN ADSLサービス(F)","モア24(24M)(NTT西日本)","IP8OCN ADSLサービス(F)モア24(24M)(NTT西日本)","OCN ADSLサービス IP8(F)24M 西タイプ","xxx@ffa.ocn.ne.jp"]
[null,"IP8","OCN ADSLサービス(F)","モア(12M)(NTT東日本)","IP8OCN ADSLサービス(F)モア(12M)(NTT東日本)","OCN ADSLサービス IP8(F)12M 東タイプ","xxx@ffa.ocn.ne.jp"]
[null,"IP8","OCN ADSLサービス(F)","モア(12M)(NTT西日本)","IP8OCN ADSLサービス(F)モア(12M)(NTT西日本)","OCN ADSLサービス IP8(F)12M 西タイプ","xxx@ffa.ocn.ne.jp"]
[null,"IP8","OCN ADSLサービス(F)","8M(NTT東日本)","IP8OCN ADSLサービス(F)8M(NTT東日本)","OCN ADSLサービス IP8(F)8M 東タイプ","xxx@ffa.ocn.ne.jp"]
[null,"IP8","OCN ADSLサービス(F)","8M(NTT西日本)","IP8OCN ADSLサービス(F)8M(NTT西日本)","OCN ADSLサービス IP8(F)8M 西タイプ","xxx@ffa.ocn.ne.jp"]
[null,"IP8","OCN ADSLサービス(F)","1.5M(NTT東日本)","IP8OCN ADSLサービス(F)1.5M(NTT東日本)","OCN ADSLサービス IP8(F)1.5M 東タイプ","xxx@ffa.ocn.ne.jp"]
[null,"IP8","OCN ADSLサービス(F)","1.5M(NTT西日本)","IP8OCN ADSLサービス(F)1.5M(NTT西日本)","OCN ADSLサービス IP8(F)1.5M 西タイプ","xxx@ffa.ocn.ne.jp"]
[null,"IP8","OCN ADSLサービス(F)","モアⅢ(47M)・ビジネスタイプ(NTT東日本)","IP8OCN ADSLサービス(F)モアⅢ(47M)・ビジネスタイプ(NTT東日本)","OCN ADSLサービス IP8(F)ビジネス47M 東タイプ","xxx@ffab.ocn.ne.jp"]
[null,"IP8","OCN ADSLサービス(F)","モアⅡ(40M)・ビジネスタイプ(NTT東日本)","IP8OCN ADSLサービス(F)モアⅡ(40M)・ビジネスタイプ(NTT東日本)","OCN ADSLサービス IP8(F)ビジネス40M 東タイプ","xxx@ffab.ocn.ne.jp"]
[null,"IP8","OCN 光サービス(F)「光ネクスト」","ファミリータイプ(NTT東日本)","IP8OCN 光サービス(F)「光ネクスト」ファミリータイプ(NTT東日本)","OCN 光サービス IP8(F) 「光ネクスト」ファミリータイプ 東タイプ","xxx@bizf.ocn.ne.jp"]
[null,"IP8","OCN 光サービス(F)「光ネクスト」","ファミリータイプ(NTT西日本)","IP8OCN 光サービス(F)「光ネクスト」ファミリータイプ(NTT西日本)","OCN 光サービス IP8(F) 「光ネクスト」ファミリータイプ 西タイプ","xxx@bizf.ocn.ne.jp"]
[null,"IP8","OCN 光サービス(F)「光ネクスト」","ファミリー・ハイスピードタイプ(NTT東日本)","IP8OCN 光サービス(F)「光ネクスト」ファミリー・ハイスピードタイプ(NTT東日本)","OCN 光サービス IP8(F) 「光ネクスト」ファミリー･ハイスピードタイプ","xxx@bizf.ocn.ne.jp"]
[null,"IP8","OCN 光サービス(F)「光ネクスト」","ファミリー・ハイスピードタイプ(NTT西日本)","IP8OCN 光サービス(F)「光ネクスト」ファミリー・ハイスピードタイプ(NTT西日本)","OCN 光サービス IP8(F) 「光ネクスト」ファミリー･ハイスピードタイプ 西タイプ","xxx@bizf.ocn.ne.jp"]
[null,"IP8","OCN 光サービス(F)「光ネクスト」","ファミリー・スーパーハイスピードタイプ隼(NTT西日本)","IP8OCN 光サービス(F)「光ネクスト」ファミリー・スーパーハイスピードタイプ隼(NTT西日本)","OCN 光サービス IP8(F) 「光ネクスト」ファミリー･スーパーハイスピード隼 西タイプ","xxx@bizf.ocn.ne.jp"]
[null,"IP8","OCN 光サービス(F)「光ネクスト」","ビジネスタイプ(NTT東日本)","IP8OCN 光サービス(F)「光ネクスト」ビジネスタイプ(NTT東日本)","OCN 光サービス IP8(F) 「光ネクスト」ビジネスタイプ 東タイプ","xxx@bizf.ocn.ne.jp"]
[null,"IP8","OCN 光サービス(F)「光ネクスト」","ビジネスタイプ(NTT西日本)","IP8OCN 光サービス(F)「光ネクスト」ビジネスタイプ(NTT西日本)","OCN 光サービス IP8(F) 「光ネクスト」ビジネスタイプ 西タイプ","xxx@bizf.ocn.ne.jp"]
[null,"IP8","OCN 光サービス(F)「光ネクスト」","プライオ1(NTT東日本)","IP8OCN 光サービス(F)「光ネクスト」プライオ1(NTT東日本)","OCN 光サービス IP8(F) 「光ネクスト」プライオ1 東タイプ","xxx@bizf.ocn.ne.jp"]
[null,"IP8","OCN 光サービス(F)「光ネクスト」","プライオ10(NTT東日本)","IP8OCN 光サービス(F)「光ネクスト」プライオ10(NTT東日本)","OCN 光サービス IP8(F) 「光ネクスト」プライオ10 東タイプ","xxx@bizf.ocn.ne.jp"]
[null,"IP8","OCN 光サービス(F)「光ネクスト」","ギガファミリー・スマートタイプ(NTT東日本)","IP8OCN 光サービス(F)「光ネクスト」ギガファミリー・スマートタイプ(NTT東日本)","OCN 光サービス IP8(F) 「光ネクスト」ギガファミリー 東タイプ","xxx@bizf.ocn.ne.jp"]
[null,"IP8","OCN 光サービス(F)「光ネクスト」","ファミリー・ギガラインタイプ(NTT東日本)","IP8OCN 光サービス(F)「光ネクスト」ファミリー・ギガラインタイプ(NTT東日本)","OCN 光サービス IP8(F) 「光ネクスト」ファミリー･ギガライン 東タイプ","xxx@bizf.ocn.ne.jp"]
[null,"IP16","フレッツ・ADSL","1.5Mタイプ","IP16フレッツ・ADSL1.5Mタイプ","OCN ADSLアクセス IP16 「フレッツ」プラン 1M/1.5M/8M/12M/24M/40M/47Mタイプ","xxx@ffa.ocn.ne.jp"]
[null,"IP16","フレッツ・ADSL","8Mタイプ","IP16フレッツ・ADSL8Mタイプ","OCN ADSLアクセス IP16 「フレッツ」プラン 1M/1.5M/8M/12M/24M/40M/47Mタイプ","xxx@ffa.ocn.ne.jp"]
[null,"IP16","フレッツ・ADSL","モア(12M)","IP16フレッツ・ADSLモア(12M)","OCN ADSLアクセス IP16 「フレッツ」プラン 1M/1.5M/8M/12M/24M/40M/47Mタイプ","xxx@ffa.ocn.ne.jp"]
[null,"IP16","フレッツ・ADSL","モアⅡ(24Mタイプ)/モア24(24タイプ)","IP16フレッツ・ADSLモアⅡ(24Mタイプ)/モア24(24タイプ)","OCN ADSLアクセス IP16 「フレッツ」プラン 1M/1.5M/8M/12M/24M/40M/47Mタイプ","xxx@ffa.ocn.ne.jp"]
[null,"IP16","フレッツ・ADSL","モアⅡ(40M)/モア40(40Mタイプ)","IP16フレッツ・ADSLモアⅡ(40M)/モア40(40Mタイプ)","OCN ADSLアクセス IP16 「フレッツ」プラン 1M/1.5M/8M/12M/24M/40M/47Mタイプ","xxx@ffa.ocn.ne.jp"]
[null,"IP16","フレッツ・ADSL","モアⅢ(47M)・モアスペシャル(47M)","IP16フレッツ・ADSLモアⅢ(47M)・モアスペシャル(47M)","OCN ADSLアクセス IP16 「フレッツ」プラン 1M/1.5M/8M/12M/24M/40M/47Mタイプ","xxx@ffa.ocn.ne.jp"]
[null,"IP16","フレッツ・ADSL","モアⅢ(47M)・ビジネスタイプ(NTT東日本)","IP16フレッツ・ADSLモアⅢ(47M)・ビジネスタイプ(NTT東日本)","OCN ADSLアクセス IP16 「フレッツ」プラン ビジネスタイプ","xxx@ffab.ocn.ne.jp"]
[null,"IP16","フレッツ・ADSL","モアⅡ(24M)・ビジネスタイプ(NTT東日本)","IP16フレッツ・ADSLモアⅡ(24M)・ビジネスタイプ(NTT東日本)","OCN ADSLアクセス IP16 「フレッツ」プラン ビジネスタイプ","xxx@ffab.ocn.ne.jp"]
[null,"IP16","Bフレッツ","ベーシックタイプ(NTT東日本/NTT西日本)","IP16Bフレッツベーシックタイプ(NTT東日本/NTT西日本)","OCN 光「フレッツ」 IP16 ベーシックタイプ","xxx@fbfb2.ocn.ne.jp"]
[null,"IP16","Bフレッツ","ビジネスタイプ(NTT東日本/NTT西日本)","IP16Bフレッツビジネスタイプ(NTT東日本/NTT西日本)","OCN 光「フレッツ」 IP16 ビジネスタイプ","xxx@fbfh2.ocn.ne.jp"]
[null,"IP16","フレッツ 光ネクスト","ファミリータイプ(NTT東日本/NTT西日本)","IP16フレッツ 光ネクストファミリータイプ(NTT東日本/NTT西日本)","OCN 光「フレッツ」 IP16 ファミリータイプ","xxx@bizf.ocn.ne.jp"]
[null,"IP16","フレッツ 光ネクスト","ファミリー・ハイスピードタイプ(NTT東日本/NTT西日本)","IP16フレッツ 光ネクストファミリー・ハイスピードタイプ(NTT東日本/NTT西日本)","OCN 光「フレッツ」 IP16 ファミリータイプ","xxx@bizf.ocn.ne.jp"]
[null,"IP16","フレッツ 光ネクスト","ファミリー・スーパーハイスピードタイプ隼(NTT西日本)","IP16フレッツ 光ネクストファミリー・スーパーハイスピードタイプ隼(NTT西日本)","OCN 光「フレッツ」 IP16 ファミリータイプ","xxx@bizf.ocn.ne.jp"]
[null,"IP16","フレッツ 光ネクスト","ビジネスタイプ(NTT東日本/NTT西日本)","IP16フレッツ 光ネクストビジネスタイプ(NTT東日本/NTT西日本)","OCN 光「フレッツ」 IP16 ビジネスタイプ","xxx@bizf.ocn.ne.jp"]
[null,"IP16","フレッツ 光ネクスト","プライオ1(NTT東日本)","IP16フレッツ 光ネクストプライオ1(NTT東日本)","OCN 光「フレッツ」 IP16 プライオ1","xxx@bizf.ocn.ne.jp"]
[null,"IP16","フレッツ 光ネクスト","プライオ10(NTT東日本)","IP16フレッツ 光ネクストプライオ10(NTT東日本)","OCN 光「フレッツ」 IP16 プライオ10","xxx@bizf.ocn.ne.jp"]
[null,"IP16","フレッツ 光ネクスト","ギガファミリー・スマートタイプ(NTT東日本)","IP16フレッツ 光ネクストギガファミリー・スマートタイプ(NTT東日本)","OCN 光「フレッツ」 IP16 ギガファミリー","xxx@bizf.ocn.ne.jp"]
[null,"IP16","フレッツ 光ネクスト","ギガマンション・スマートタイプ(NTT東日本)","IP16フレッツ 光ネクストギガマンション・スマートタイプ(NTT東日本)","OCN 光「フレッツ」 IP16 ギガファミリー","xxx@bizf.ocn.ne.jp"]
[null,"IP16","フレッツ 光ネクスト","ファミリー・ギガラインタイプ(NTT東日本)","IP16フレッツ 光ネクストファミリー・ギガラインタイプ(NTT東日本)","OCN 光「フレッツ」 IP16 ギガファミリー","xxx@bizf.ocn.ne.jp"]
[null,"IP16","フレッツ 光ネクスト","マンション・ギガラインタイプ(NTT東日本)","IP16フレッツ 光ネクストマンション・ギガラインタイプ(NTT東日本)","OCN 光「フレッツ」 IP16 ギガファミリー","xxx@bizf.ocn.ne.jp"]
[null,"IP16","フレッツ 光ライト","ファミリータイプ(NTT東日本/NTT西日本)","IP16フレッツ 光ライトファミリータイプ(NTT東日本/NTT西日本)","OCN 光「フレッツ」 IP16 ファミリータイプ","xxx@bizf.ocn.ne.jp"]
[null,"IP16","OCN光【光一括提供型】","ファミリー 100M(NTT東日本)",{"$f":"B340&C340&D340","v":"IP16OCN光【光一括提供型】ファミリー 100M(NTT東日本)"},"OCN 光 ファミリー 100M IP16","xxx@bizf.ocn.ne.jp"]
[null,"IP16","OCN光【光一括提供型】","ファミリー 100M(NTT西日本)","IP16OCN光【光一括提供型】ファミリー 100M(NTT西日本)","OCN 光 ファミリー 100M IP16","xxx@bizf.ocn.ne.jp"]
[null,"IP16","OCN光【光一括提供型】","ファミリー 200M(NTT東日本)","IP16OCN光【光一括提供型】ファミリー 200M(NTT東日本)","OCN 光 ファミリー 200M IP16","xxx@bizf.ocn.ne.jp"]
[null,"IP16","OCN光【光一括提供型】","ファミリー 200M(NTT西日本)","IP16OCN光【光一括提供型】ファミリー 200M(NTT西日本)","OCN 光 ファミリー 200M IP16","xxx@bizf.ocn.ne.jp"]
[null,"IP16","OCN光【光一括提供型】","ファミリー 1G(NTT西日本)","IP16OCN光【光一括提供型】ファミリー 1G(NTT西日本)","OCN 光 ファミリー 1G IP16","xxx@bizf.ocn.ne.jp"]
[null,"IP16","OCN光【光一括提供型】","ファミリー 1G(NTT東日本)","IP16OCN光【光一括提供型】ファミリー 1G(NTT東日本)","OCN 光 ファミリー 1G IP16","xxx@bizf.ocn.ne.jp"]
[null,"IP16","OCN光【光一括提供型】","マンション 1G(NTT東日本)","IP16OCN光【光一括提供型】マンション 1G(NTT東日本)","OCN 光 マンション 1G IP16","xxx@bizf.ocn.ne.jp"]
[null,"IP16","フレッツ 光クロス(IPoE 標準プラン)","NTT東日本","IP16フレッツ 光クロス(IPoE 標準プラン)NTT東日本","OCN 光「フレッツ」 IPoE クロス 標準プラン IP16","-"]
[null,"IP16","フレッツ 光クロス(IPoE 標準プラン)","NTT西日本","IP16フレッツ 光クロス(IPoE 標準プラン)NTT西日本","OCN 光「フレッツ」 IPoE クロス 標準プラン IP16","-"]
[null,"IP16","フレッツ 光クロス(IPoE ワイドプラン)","NTT東日本","IP16フレッツ 光クロス(IPoE ワイドプラン)NTT東日本","OCN 光「フレッツ」 IPoE クロス ワイドプラン IP16","-"]
[null,"IP16","フレッツ 光クロス(IPoE ワイドプラン)","NTT西日本","IP16フレッツ 光クロス(IPoE ワイドプラン)NTT西日本","OCN 光「フレッツ」 IPoE クロス ワイドプラン IP16","-"]
[null,"IP16","フレッツ 光クロス(IPoE スーパーワイドプラン)","NTT東日本","IP16フレッツ 光クロス(IPoE スーパーワイドプラン)NTT東日本","OCN 光「フレッツ」 IPoE クロス スーパーワイドプラン IP16","-"]
[null,"IP16","フレッツ 光クロス(IPoE スーパーワイドプラン)","NTT西日本","IP16フレッツ 光クロス(IPoE スーパーワイドプラン)NTT西日本","OCN 光「フレッツ」 IPoE クロス スーパーワイドプラン IP16","-"]
[null,"IP16","フレッツ 光ネクスト(IPoE 標準プラン)","NTT東日本","IP16フレッツ 光ネクスト(IPoE 標準プラン)NTT東日本","OCN 光「フレッツ」 IPoE 標準プラン IP16","-"]
[null,"IP16","フレッツ 光ネクスト(IPoE 標準プラン)","NTT西日本","IP16フレッツ 光ネクスト(IPoE 標準プラン)NTT西日本","OCN 光「フレッツ」 IPoE 標準プラン IP16","-"]
[null,"IP16","フレッツ 光ネクスト(IPoE ワイドプラン)","NTT東日本","IP16フレッツ 光ネクスト(IPoE ワイドプラン)NTT東日本","OCN 光「フレッツ」 IPoE ワイドプラン IP16","-"]
[null,"IP16","フレッツ 光ネクスト(IPoE ワイドプラン)","NTT西日本","IP16フレッツ 光ネクスト(IPoE ワイドプラン)NTT西日本","OCN 光「フレッツ」 IPoE ワイドプラン IP16","-"]
[null,"IP16","OCN光【光一括提供型】(IPoE 標準プラン)","ファミリー 100M(NTT東日本)","IP16OCN光【光一括提供型】(IPoE 標準プラン)ファミリー 100M(NTT東日本)","OCN 光 IPoE 標準プラン ファミリー 100M  IP16","-"]
[null,"IP16","OCN光【光一括提供型】(IPoE 標準プラン)","ファミリー 100M(NTT西日本)","IP16OCN光【光一括提供型】(IPoE 標準プラン)ファミリー 100M(NTT西日本)","OCN 光 IPoE 標準プラン ファミリー 100M  IP16","-"]
[null,"IP16","OCN光【光一括提供型】(IPoE 標準プラン)","ファミリー 200M(NTT東日本)","IP16OCN光【光一括提供型】(IPoE 標準プラン)ファミリー 200M(NTT東日本)","OCN 光 IPoE 標準プラン ファミリー 200M  IP16","-"]
[null,"IP16","OCN光【光一括提供型】(IPoE 標準プラン)","ファミリー 200M(NTT西日本)","IP16OCN光【光一括提供型】(IPoE 標準プラン)ファミリー 200M(NTT西日本)","OCN 光 IPoE 標準プラン ファミリー 200M  IP16","-"]
[null,"IP16","OCN光【光一括提供型】(IPoE 標準プラン)","ファミリー 1G(NTT西日本)","IP16OCN光【光一括提供型】(IPoE 標準プラン)ファミリー 1G(NTT西日本)","OCN 光 IPoE 標準プラン ファミリー 1G  IP16","-"]
[null,"IP16","OCN光【光一括提供型】(IPoE 標準プラン)","ファミリー 1G(NTT東日本)","IP16OCN光【光一括提供型】(IPoE 標準プラン)ファミリー 1G(NTT東日本)","OCN 光 IPoE 標準プラン ファミリー 1G  IP16","-"]
[null,"IP16","OCN光【光一括提供型】(IPoE 標準プラン)","マンション 1G(NTT東日本)","IP16OCN光【光一括提供型】(IPoE 標準プラン)マンション 1G(NTT東日本)","OCN 光 IPoE 標準プラン マンション 1G  IP16","-"]
[null,"IP16","OCN光【光一括提供型】(IPoE ワイドプラン)","ファミリー 100M(NTT東日本)","IP16OCN光【光一括提供型】(IPoE ワイドプラン)ファミリー 100M(NTT東日本)","OCN 光 IPoE ワイドプラン ファミリー 100M  IP16","-"]
[null,"IP16","OCN光【光一括提供型】(IPoE ワイドプラン)","ファミリー 100M(NTT西日本)","IP16OCN光【光一括提供型】(IPoE ワイドプラン)ファミリー 100M(NTT西日本)","OCN 光 IPoE ワイドプラン ファミリー 100M  IP16","-"]
[null,"IP16","OCN光【光一括提供型】(IPoE ワイドプラン)","ファミリー 200M(NTT東日本)","IP16OCN光【光一括提供型】(IPoE ワイドプラン)ファミリー 200M(NTT東日本)","OCN 光 IPoE ワイドプラン ファミリー 200M  IP16","-"]
[null,"IP16","OCN光【光一括提供型】(IPoE ワイドプラン)","ファミリー 200M(NTT西日本)","IP16OCN光【光一括提供型】(IPoE ワイドプラン)ファミリー 200M(NTT西日本)","OCN 光 IPoE ワイドプラン ファミリー 200M  IP16","-"]
[null,"IP16","OCN光【光一括提供型】(IPoE ワイドプラン)","ファミリー 1G(NTT西日本)","IP16OCN光【光一括提供型】(IPoE ワイドプラン)ファミリー 1G(NTT西日本)","OCN 光 IPoE ワイドプラン ファミリー 1G  IP16","-"]
[null,"IP16","OCN光【光一括提供型】(IPoE ワイドプラン)","ファミリー 1G(NTT東日本)","IP16OCN光【光一括提供型】(IPoE ワイドプラン)ファミリー 1G(NTT東日本)","OCN 光 IPoE ワイドプラン ファミリー 1G  IP16","-"]
[null,"IP16","OCN光【光一括提供型】(IPoE ワイドプラン)","マンション 1G(NTT東日本)","IP16OCN光【光一括提供型】(IPoE ワイドプラン)マンション 1G(NTT東日本)","OCN 光 IPoE ワイドプラン マンション 1G  IP16","-"]
[null,"IP16","OCN ADSLサービス(F)","モアⅢ(47M)(NTT東日本)","IP16OCN ADSLサービス(F)モアⅢ(47M)(NTT東日本)","OCN ADSLサービス IP16(F)47M 東タイプ","xxx@ffa.ocn.ne.jp"]
[null,"IP16","OCN ADSLサービス(F)","モアスペシャル(47M)(NTT西日本)","IP16OCN ADSLサービス(F)モアスペシャル(47M)(NTT西日本)","OCN ADSLサービス IP16(F)47M 西タイプ","xxx@ffa.ocn.ne.jp"]
[null,"IP16","OCN ADSLサービス(F)","モアⅡ(40M)(NTT東日本)","IP16OCN ADSLサービス(F)モアⅡ(40M)(NTT東日本)","OCN ADSLサービス IP16(F)40M 東タイプ","xxx@ffa.ocn.ne.jp"]
[null,"IP16","OCN ADSLサービス(F)","モア40(40M)(NTT西日本)","IP16OCN ADSLサービス(F)モア40(40M)(NTT西日本)","OCN ADSLサービス IP16(F)40M 西タイプ","xxx@ffa.ocn.ne.jp"]
[null,"IP16","OCN ADSLサービス(F)","モア24(24M)(NTT西日本)","IP16OCN ADSLサービス(F)モア24(24M)(NTT西日本)","OCN ADSLサービス IP16(F)24M 西タイプ","xxx@ffa.ocn.ne.jp"]
[null,"IP16","OCN ADSLサービス(F)","モア(12M)(NTT東日本)","IP16OCN ADSLサービス(F)モア(12M)(NTT東日本)","OCN ADSLサービス IP16(F)12M 東タイプ","xxx@ffa.ocn.ne.jp"]
[null,"IP16","OCN ADSLサービス(F)","モア(12M)(NTT西日本)","IP16OCN ADSLサービス(F)モア(12M)(NTT西日本)","OCN ADSLサービス IP16(F)12M 西タイプ","xxx@ffa.ocn.ne.jp"]
[null,"IP16","OCN ADSLサービス(F)","8M(NTT東日本)","IP16OCN ADSLサービス(F)8M(NTT東日本)","OCN ADSLサービス IP16(F)8M 東タイプ","xxx@ffa.ocn.ne.jp"]
[null,"IP16","OCN ADSLサービス(F)","8M(NTT西日本)","IP16OCN ADSLサービス(F)8M(NTT西日本)","OCN ADSLサービス IP16(F)8M 西タイプ","xxx@ffa.ocn.ne.jp"]
[null,"IP16","OCN ADSLサービス(F)","1.5M(NTT東日本)","IP16OCN ADSLサービス(F)1.5M(NTT東日本)","OCN ADSLサービス IP16(F)1.5M 東タイプ","xxx@ffa.ocn.ne.jp"]
[null,"IP16","OCN ADSLサービス(F)","1.5M(NTT西日本)","IP16OCN ADSLサービス(F)1.5M(NTT西日本)","OCN ADSLサービス IP16(F)1.5M 西タイプ","xxx@ffa.ocn.ne.jp"]
[null,"IP16","OCN ADSLサービス(F)","モアⅢ(47M)・ビジネスタイプ(NTT東日本)","IP16OCN ADSLサービス(F)モアⅢ(47M)・ビジネスタイプ(NTT東日本)","OCN ADSLサービス IP16(F)ビジネス47M 東タイプ","xxx@ffab.ocn.ne.jp"]
[null,"IP16","OCN ADSLサービス(F)","モアⅡ(40M)・ビジネスタイプ(NTT東日本)","IP16OCN ADSLサービス(F)モアⅡ(40M)・ビジネスタイプ(NTT東日本)","OCN ADSLサービス IP16(F)ビジネス40M 東タイプ","xxx@ffab.ocn.ne.jp"]
[null,"IP16","OCN 光サービス(F)「光ネクスト」","ファミリータイプ(NTT東日本)","IP16OCN 光サービス(F)「光ネクスト」ファミリータイプ(NTT東日本)","OCN 光サービス IP16(F) 「光ネクスト」ファミリータイプ","xxx@bizf.ocn.ne.jp"]
[null,"IP16","OCN 光サービス(F)「光ネクスト」","ファミリータイプ(NTT西日本)","IP16OCN 光サービス(F)「光ネクスト」ファミリータイプ(NTT西日本)","OCN 光サービス IP16(F) 「光ネクスト」ファミリータイプ","xxx@bizf.ocn.ne.jp"]
[null,"IP16","OCN 光サービス(F)「光ネクスト」","ファミリー・ハイスピードタイプ(NTT東日本)","IP16OCN 光サービス(F)「光ネクスト」ファミリー・ハイスピードタイプ(NTT東日本)","OCN 光サービス IP16(F) 「光ネクスト」ファミリー･ハイスピードタイプ","xxx@bizf.ocn.ne.jp"]
[null,"IP16","OCN 光サービス(F)「光ネクスト」","ファミリー・ハイスピードタイプ(NTT西日本)","IP16OCN 光サービス(F)「光ネクスト」ファミリー・ハイスピードタイプ(NTT西日本)","OCN 光サービス IP16(F) 「光ネクスト」ファミリー･ハイスピードタイプ 西タイプ","xxx@bizf.ocn.ne.jp"]
[null,"IP16","OCN 光サービス(F)「光ネクスト」","ファミリー・スーパーハイスピードタイプ隼(NTT西日本)","IP16OCN 光サービス(F)「光ネクスト」ファミリー・スーパーハイスピードタイプ隼(NTT西日本)","OCN 光サービス IP16(F) 「光ネクスト」ファミリー･スーパーハイスピード隼 西タイプ","xxx@bizf.ocn.ne.jp"]
[null,"IP16","OCN 光サービス(F)「光ネクスト」","ビジネスタイプ(NTT東日本)","IP16OCN 光サービス(F)「光ネクスト」ビジネスタイプ(NTT東日本)","OCN 光サービス IP16(F) 「光ネクスト」ビジネスタイプ 東タイプ","xxx@bizf.ocn.ne.jp"]
[null,"IP16","OCN 光サービス(F)「光ネクスト」","ビジネスタイプ(NTT西日本)","IP16OCN 光サービス(F)「光ネクスト」ビジネスタイプ(NTT西日本)","OCN 光サービス IP16(F) 「光ネクスト」ビジネスタイプ 西タイプ","xxx@bizf.ocn.ne.jp"]
[null,"IP16","OCN 光サービス(F)「光ネクスト」","プライオ1(NTT東日本)","IP16OCN 光サービス(F)「光ネクスト」プライオ1(NTT東日本)","OCN 光サービス IP16(F) 「光ネクスト」プライオ1 東タイプ","xxx@bizf.ocn.ne.jp"]
[null,"IP16","OCN 光サービス(F)「光ネクスト」","プライオ10(NTT東日本)","IP16OCN 光サービス(F)「光ネクスト」プライオ10(NTT東日本)","OCN 光サービス IP16(F) 「光ネクスト」プライオ10 東タイプ","xxx@bizf.ocn.ne.jp"]
[null,"IP16","OCN 光サービス(F)「光ネクスト」","ギガファミリー・スマートタイプ(NTT東日本)","IP16OCN 光サービス(F)「光ネクスト」ギガファミリー・スマートタイプ(NTT東日本)","OCN 光サービス IP16(F) 「光ネクスト」ギガファミリー 東タイプ","xxx@bizf.ocn.ne.jp"]
[null,"IP16","OCN 光サービス(F)「光ネクスト」","ファミリー・ギガラインタイプ(NTT東日本)","IP16OCN 光サービス(F)「光ネクスト」ファミリー・ギガラインタイプ(NTT東日本)","OCN 光サービス IP16(F) 「光ネクスト」ファミリー･ギガライン 東タイプ","xxx@bizf.ocn.ne.jp"]
[null,"IP32","Bフレッツ","ビジネスタイプ(NTT東日本/NTT西日本)","IP32Bフレッツビジネスタイプ(NTT東日本/NTT西日本)","OCN 光「フレッツ」 IP32 ビジネスタイプ","xxx@fbfh2.ocn.ne.jp"]
[null,"IP32","フレッツ 光ネクスト","ビジネスタイプ(NTT東日本/NTT西日本)","IP32フレッツ 光ネクストビジネスタイプ(NTT東日本/NTT西日本)","OCN 光「フレッツ」 IP32 ビジネスタイプ","xxx@bizf.ocn.ne.jp"]
[null,"IP32","フレッツ 光ネクスト","プライオ10(NTT東日本)","IP32フレッツ 光ネクストプライオ10(NTT東日本)","OCN 光「フレッツ」 IP32 プライオ10","xxx@bizf.ocn.ne.jp"]
[null,"IP32","OCN 光サービス(F)「光ネクスト」","ビジネスタイプ(NTT東日本)","IP32OCN 光サービス(F)「光ネクスト」ビジネスタイプ(NTT東日本)","OCN 光サービス IP32(F) 「光ネクスト」ビジネスタイプ 東タイプ","xxx@bizf.ocn.ne.jp"]
[null,"IP32","OCN 光サービス(F)「光ネクスト」","ビジネスタイプ(NTT西日本)","IP32OCN 光サービス(F)「光ネクスト」ビジネスタイプ(NTT西日本)","OCN 光サービス IP32(F) 「光ネクスト」ビジネスタイプ 西タイプ","xxx@bizf.ocn.ne.jp"]
[null,"IP32","OCN 光サービス(F)「光ネクスト」","プライオ10(NTT東日本)","IP32OCN 光サービス(F)「光ネクスト」プライオ10(NTT東日本)","OCN 光サービス IP32(F) 「光ネクスト」プライオ10 東タイプ","xxx@bizf.ocn.ne.jp"]
[null,"IP64","Bフレッツ","ビジネスタイプ(NTT東日本/NTT西日本)","IP64Bフレッツビジネスタイプ(NTT東日本/NTT西日本)","OCN 光「フレッツ」 IP64 ビジネスタイプ","xxx@fbfh2.ocn.ne.jp"]
[null,"IP64","フレッツ 光ネクスト","ビジネスタイプ(NTT東日本/NTT西日本)","IP64フレッツ 光ネクストビジネスタイプ(NTT東日本/NTT西日本)","OCN 光「フレッツ」 IP64 ビジネスタイプ","xxx@bizf.ocn.ne.jp"]
[null,"IP64","フレッツ 光ネクスト","プライオ10(NTT東日本)","IP64フレッツ 光ネクストプライオ10(NTT東日本)","OCN 光「フレッツ」 IP64 プライオ10","xxx@bizf.ocn.ne.jp"]
[null,"IP64","OCN 光サービス(F)「光ネクスト」","ビジネスタイプ(NTT東日本)","IP64OCN 光サービス(F)「光ネクスト」ビジネスタイプ(NTT東日本)","OCN 光サービス IP64(F) 「光ネクスト」ビジネスタイプ 東タイプ","xxx@bizf.ocn.ne.jp"]
[null,"IP64","OCN 光サービス(F)「光ネクスト」","ビジネスタイプ(NTT西日本)","IP64OCN 光サービス(F)「光ネクスト」ビジネスタイプ(NTT西日本)","OCN 光サービス IP64(F) 「光ネクスト」ビジネスタイプ 西タイプ","xxx@bizf.ocn.ne.jp"]
[null,"IP64","OCN 光サービス(F)「光ネクスト」","プライオ10(NTT東日本)","IP64OCN 光サービス(F)「光ネクスト」プライオ10(NTT東日本)","OCN 光サービス IP64(F) 「光ネクスト」プライオ10 東タイプ","xxx@bizf.ocn.ne.jp"]
[null,"forVPNライト","フレッツ・ADSL","1.5Mタイプ","forVPNライトフレッツ・ADSL1.5Mタイプ","OCN ADSLアクセス 「フレッツ」プラン forVPNライト 1M/1.5M/8M/12M/24M/40M/47Mタイプ","xxx@dfa.ocn.ne.jp"]
[null,"forVPNライト","フレッツ・ADSL","8Mタイプ","forVPNライトフレッツ・ADSL8Mタイプ","OCN ADSLアクセス 「フレッツ」プラン forVPNライト 1M/1.5M/8M/12M/24M/40M/47Mタイプ","xxx@dfa.ocn.ne.jp"]
[null,"forVPNライト","フレッツ・ADSL","モア(12M)","forVPNライトフレッツ・ADSLモア(12M)","OCN ADSLアクセス 「フレッツ」プラン forVPNライト 1M/1.5M/8M/12M/24M/40M/47Mタイプ","xxx@dfa.ocn.ne.jp"]
[null,"forVPNライト","フレッツ・ADSL","モアⅡ(24Mタイプ)/モア24(24タイプ)",{"$f":"B410&C410&D410","v":"forVPNライトフレッツ・ADSLモアⅡ(24Mタイプ)/モア24(24タイプ)"},"OCN ADSLアクセス 「フレッツ」プラン forVPNライト 1M/1.5M/8M/12M/24M/40M/47Mタイプ","xxx@dfa.ocn.ne.jp"]
[null,"forVPNライト","フレッツ・ADSL","モアⅡ(40M)/モア40(40Mタイプ)","forVPNライトフレッツ・ADSLモアⅡ(40M)/モア40(40Mタイプ)","OCN ADSLアクセス 「フレッツ」プラン forVPNライト 1M/1.5M/8M/12M/24M/40M/47Mタイプ","xxx@dfa.ocn.ne.jp"]
[null,"forVPNライト","フレッツ・ADSL","モアⅢ(47M)・モアスペシャル(47M)","forVPNライトフレッツ・ADSLモアⅢ(47M)・モアスペシャル(47M)","OCN ADSLアクセス 「フレッツ」プラン forVPNライト 1M/1.5M/8M/12M/24M/40M/47Mタイプ","xxx@dfa.ocn.ne.jp"]
[null,"forVPNライト","フレッツ・ADSL","モアⅢ(47M)・ビジネスタイプ(NTT東日本)","forVPNライトフレッツ・ADSLモアⅢ(47M)・ビジネスタイプ(NTT東日本)","OCN ADSLアクセス 「フレッツ」プラン forVPNライト ビジネスタイプ","xxx@dfab.ocn.ne.jp"]
[null,"forVPNライト","フレッツ・ADSL","モアⅡ(24M)・ビジネスタイプ(NTT東日本)","forVPNライトフレッツ・ADSLモアⅡ(24M)・ビジネスタイプ(NTT東日本)","OCN ADSLアクセス 「フレッツ」プラン forVPNライト ビジネスタイプ","xxx@dfab.ocn.ne.jp"]
[null,"forVPNライト","フレッツ・ISDN",null,"forVPNライトフレッツ・ISDN","OCN ISDNアクセス 「フレッツ」プラン forVPNライト","xxx@dfi.ocn.ne.jp"]
[null,"forVPNライト","Bフレッツ","ニューファミリータイプ(NTT東日本)","forVPNライトBフレッツニューファミリータイプ(NTT東日本)","OCN 光「フレッツ」 forVPNライト ファミリータイプ","xxx@dbnf.ocn.ne.jp"]
[null,"forVPNライト","Bフレッツ","ベーシックタイプ(NTT東日本/NTT西日本)","forVPNライトBフレッツベーシックタイプ(NTT東日本/NTT西日本)","OCN 光「フレッツ」 forVPNライト ベーシックタイプ","xxx@dbfb.ocn.ne.jp"]
[null,"forVPNライト","Bフレッツ","ビル・マンションタイプ(NTT東日本/NTT西日本)","forVPNライトBフレッツビル・マンションタイプ(NTT東日本/NTT西日本)","OCN 光「フレッツ」 forVPNライト マンションタイプ","xxx@dbfm.ocn.ne.jp"]
[null,"forVPNライト","フレッツ 光ネクスト","ファミリータイプ(NTT東日本/NTT西日本)","forVPNライトフレッツ 光ネクストファミリータイプ(NTT東日本/NTT西日本)","OCN 光「フレッツ」 forVPNライト ファミリータイプ","xxx@bizd.ocn.ne.jp"]
[null,"forVPNライト","フレッツ 光ネクスト","ファミリー・ハイスピードタイプ(NTT東日本/NTT西日本)","forVPNライトフレッツ 光ネクストファミリー・ハイスピードタイプ(NTT東日本/NTT西日本)","OCN 光「フレッツ」 forVPNライト ファミリータイプ","xxx@bizd.ocn.ne.jp"]
[null,"forVPNライト","フレッツ 光ネクスト","マンションタイプ(NTT東日本/NTT西日本)","forVPNライトフレッツ 光ネクストマンションタイプ(NTT東日本/NTT西日本)","OCN 光「フレッツ」 forVPNライト マンションタイプ","xxx@bizd.ocn.ne.jp"]
[null,"forVPNライト","フレッツ 光ネクスト","マンション・ハイスピードタイプ(NTT東日本/NTT西日本)","forVPNライトフレッツ 光ネクストマンション・ハイスピードタイプ(NTT東日本/NTT西日本)","OCN 光「フレッツ」 forVPNライト マンションタイプ","xxx@bizd.ocn.ne.jp"]
[null,"forVPNライト","フレッツ 光ネクスト","ファミリー・スーパーハイスピードタイプ隼(NTT西日本)","forVPNライトフレッツ 光ネクストファミリー・スーパーハイスピードタイプ隼(NTT西日本)","OCN 光「フレッツ」 forVPNライト ファミリータイプ","xxx@bizd.ocn.ne.jp"]
[null,"forVPNライト","フレッツ 光ネクスト","マンション・スーパーハイスピードタイプ隼(NTT西日本)","forVPNライトフレッツ 光ネクストマンション・スーパーハイスピードタイプ隼(NTT西日本)","OCN 光「フレッツ」 forVPNライト マンションタイプ","xxx@bizd.ocn.ne.jp"]
[null,"forVPNライト","フレッツ 光ネクスト","ギガファミリー・スマートタイプ(NTT東日本)","forVPNライトフレッツ 光ネクストギガファミリー・スマートタイプ(NTT東日本)","OCN 光「フレッツ」 forVPNライト ギガファミリー","xxx@bizd.ocn.ne.jp"]
[null,"forVPNライト","フレッツ 光ネクスト","ギガマンション・スマートタイプ(NTT東日本)","forVPNライトフレッツ 光ネクストギガマンション・スマートタイプ(NTT東日本)","OCN 光「フレッツ」 forVPNライト ギガファミリー","xxx@bizd.ocn.ne.jp"]
[null,"forVPNライト","フレッツ 光ネクスト","ファミリー・ギガラインタイプ(NTT東日本)","forVPNライトフレッツ 光ネクストファミリー・ギガラインタイプ(NTT東日本)","OCN 光「フレッツ」 forVPNライト ギガファミリー","xxx@bizd.ocn.ne.jp"]
[null,"forVPNライト","フレッツ 光ネクスト","マンション・ギガラインタイプ(NTT東日本)","forVPNライトフレッツ 光ネクストマンション・ギガラインタイプ(NTT東日本)","OCN 光「フレッツ」 forVPNライト ギガファミリー","xxx@bizd.ocn.ne.jp"]
[null,"forVPNライト","フレッツ 光ライト","ファミリータイプ","forVPNライトフレッツ 光ライトファミリータイプ","OCN 光「フレッツ」 forVPNライト ファミリータイプ","xxx@bizd.ocn.ne.jp"]
[null,"forVPNライト","フレッツ 光ライト","マンションタイプ","forVPNライトフレッツ 光ライトマンションタイプ","OCN 光「フレッツ」 forVPNライト マンションタイプ","xxx@bizd.ocn.ne.jp"]

{"sheet":"改版履歴","index":11,"n_rows":72,"n_cols":9,"rows_kept":72,"cut":false,"hidden":true,"merged":[]}
["改版履歴"]
[null,"No.","更新日","更新者","Ver.","シート名","概要","詳細","備考"]
[null,1,"2020-03-18","石田香織","Ver.1.00A","-","初版",null,"Webエントリリリース：2020/3/18"]
[null,2,"2020-03-25","石田香織","Ver.1.00B","IPアドレス割当申請書","管理者連絡窓口_ハンドル名のグレーアウト修正","管理者連絡窓口_JPNICハンドル/グループハンドル有無で「無」を選択した場合、ハンドル名欄がグレーアウトするよう修正"]
[null,3,"2020-04-22","石田香織","Ver.1.00C","留意事項","留意事項シート追加","留意事項を最新化し、シート追加"]
[null,4,"2020-04-22","石田香織","Ver.1.00C","基本情報\n付加サービス情報","\"（必須）\"表記の追加","条件付きにて必須となる項目について、項目名横に\"（必須）\"の表記が漏れている箇所があったため追記"]
[null,5,"2020-05-14","石田香織","Ver.1.00D","付加サービス情報","セキュリティゲートウェイのプルダウン値制御の修正","アクセスタイプ：IPoEの時、「利用する(ルータタイプ)」を非表示とする条件を追加"]
[null,6,"2020-05-20","石田香織","Ver.1.00E","IPoE申込情報","端末開放フラグの値修正","端末開放フラグのプルダウン値を「1」のみへ修正\n※端末開放の標準化に伴う対応","Webエントリリリース：2020/6/12\n※SO-infoは6/1より掲載"]
[null,7,"2020-06-15","石田香織","Ver.1.00F","基本情報","ご利用場所に関する連絡先コピーリストの条件付き書式修正","アクセスタイプが(F)の時、グレーアウトするよう条件付き書式を設定"]
[null,8,"2020-07-15","石田香織","Ver.1.00G","IPアドレス割当申請書","技術連絡担当者ご住所_番地等の表示形式修正","表示形式がユーザ定義となっていたため、文字列へ修正"]
[null,9,"2020-09-07","石田香織","Ver.1.01A","IPoE申込情報","端末開放フラグの名前定義削除","Webエントリからの制御削除に伴い、名前定義削除\n⇒これに伴い、端末ご利用形態のプルダウン制御用関数を修正\n　（端末開放フラグを条件から削除）","Webエントリリリース：2020年2Q"]
[null,10,"2020-09-07","石田香織","Ver.1.01A","付加サービス情報","OCN IWSaaSサービスの項目名変更","サービス名称変更に伴い、項目名を以下へ変更\n■変更後項目名：OCN TMWSaaSサービス","Webエントリリリース：2020年2Q"]
[null,11,"2020-11-30","石田香織","Ver.1.01B","list","アクセスタイプの削除","Bフレッツサービス終了に伴い、アクセスタイプのプルダウン値から以下を削除\n\"Bフレッツ\""]
[null,12,"2021-01-29","石田香織","Ver.1.01C","基本情報","お支払いに関する情報の注意事項修正","口振・クレカ払い希望時の手続き方法について修正（URL誘導）"]
[null,13,"2021-02-26","石田香織","Ver.1.01D","お客さまDNS設定情報","逆引き権限委譲追加他DNSサーバ名の条件付き書式修正","逆引き用DNSご利用形態が「お客さまにてDNSを用意いただく」以外の場合、逆引き権限委譲追加他DNSサーバ名1,2がグレーアウトするよう修正"]
[null,14,"2021-02-01","石田香織","Ver.1.02A","IPoE申込情報","項目追加（新サービス対応）","IPoEプラン専用オプションのカテゴリに、「アプリコントロールA」を追加","Webエントリリリース：2020年4Q\n※サービス開始は2021年1Q頃予定"]
[null,15,"2021-04-01","石田香織","Ver.1.02B","基本情報","ご利用案内に関する情報の注意事項修正","開案送信元アドレスのドメイン名変更に伴い記載を修正\n旧）customer@info.ocn.ne.jp\n新）customer@mail.kaian.ntt.com"]
[null,16,"2021-05-31","石田香織","Ver.1.02C","付加サービス情報\nlist","OCNセキュリティゲートウェイのリスト値削除","OCNセキュリティゲートウェイ(ブリッジタイプ)の新規受付停止に伴い、以下のリスト値を削除\n\"利用する(ブリッジタイプ)\""]
[null,17,"2021-05-19","石田香織","Ver.1.03A","基本情報","項目追加（CPQ番号）","新項目：CPQ番号を追加\n※NPCRMの後継システム用項目\n※利用開始までは項目非表示とする（8月開始予定）","Webエントリ：2021年2Q改修"]
[null,18,"2021-05-19","石田香織","Ver.1.03A","IPoE申込情報","項目再表示とプルダウン制御修正（アプリコントロールA）","6月末提供開始の為、固定値設定の関数を削除しプルダウン表示するよう制御修正","Webエントリ：2021年2Q改修"]
[null,19,"2021-05-19","石田香織","Ver.1.03A","OCNサブドメイン情報","メールサーバ設置有無のプルダウン値修正","メールサーバ設置有無のプルダウン値を以下のとおり文言修正\n　変更前）メールサーバは設置しない(OCNのメールアドレスも使用しない)\n　変更後）メールサーバは設置しない(OCNメールアドレスを使用する)","Webエントリ：2021年2Q改修"]
[null,20,"2021-06-01","石田香織","Ver.1.03A","IPoE申込情報","フレッツ・v6オプションに関する留意文修正","フレッツ・v6オプションに関する留意文から、西日本から開通案内が送付される旨の表記を削除\n＃西日本においてもフレッツ・v6オプションが標準提供となったことに伴い、開通案内が送付されなくなったとのこと。\n\n■削除した文言：\n\"※西日本のお客さまには、西日本からフレッツv6オプションの開通案内が直接お客さまに発送されます。予めご了承ください。\""]
[null,21,"2021-06-29","石田香織","Ver.1.03A","基本情報","CID/住所検索マクロ削除","セキュリティ対策のため、CID/住所検索マクロを削除","※バージョン変更なし（日付部分含む）、掲載ファイル名のみ変更"]
[null,22,"2021-07-09","石田香織","Ver.1.03B","IPoE申込情報","アプリコントロールA提供開始に伴う項目追加対応","以下2項目を追加\n・企画型輻輳抑制機能に関する留意事項への同意確認\n・アプリコントロールAに関する留意事項への同意確認\n※Excelのみ項目追加。Webエントリ対応は2021年2Q予定。"]
[null,23,"2021-07-09","石田香織","Ver.1.03B","IPoE申込情報","アプリコントロールA提供開始に伴う項目再表示対応","以下2項目を再表示\n・企画型輻輳抑制機能\n・アプリコントロールA\n※企画型輻輳抑制機能はExcelのみ再表示。Webエントリ対応は2021年2Q予定。"]
[null,24,"2021-07-20","石田香織","Ver.1.03B","list","リスト値の名前定義修正","以下2項目のリスト値の名前定義を修正\n・企画型輻輳抑制機能に関する留意事項への同意確認\n・アプリコントロールAに関する留意事項への同意確認","※バージョン：日付のみ変更\n　・2021/7/13⇒　2021/7/20"]
[null,25,"2021-07-20","石田香織","Ver.1.03B","IPoE申込情報","ページ設定修正","1ページ→2ページへ改ページ設定を修正","※バージョン：日付のみ変更\n　・2021/7/13⇒　2021/7/20"]
[null,26,"2021-08-27","石田香織","Ver.1.04A","付加サービス情報","OCNセキュリティゲートウェイの条件付き書式修正","アクセスタイプがIPoEの場合、グレーアウトするよう条件付き書式を修正\n※OCNセキュリティゲートウェイ(ブリッジタイプ)新規販売停止のWebエントリ対応にあわせた修正","Webエントリ：2021年2Q改修"]
[null,27,"2021-08-27","石田香織","Ver.1.04A","IPoE申込情報","企画型輻輳抑制機能とアプリコントロールAの同意確認項目へ名前定義設定","以下2項目に名前定義を設定\n・企画型輻輳抑制機能に関する留意事項への同意確認\n・アプリコントロールAに関する留意事項への同意確認","Webエントリ：2021年2Q改修"]
[null,28,"2021-12-22","石田香織","Ver.1.04A","付加サービス情報","ウイルスバスタービジネスセキュリティ、OCN TMWSaaSサービスの「ライセンス数」欄の書式修正","ウイルスバスタービジネスセキュリティ、OCN TMWSaaSサービスの「ライセンス数」について、形式を以下のとおり修正\n・文字列 ⇒ 標準\n※入力エラー解消の為。","※バージョン：日付のみ変更\n　・2021/9/24 ⇒ 2021/12/22"]
[null,29,"2022-01-27","石田香織","Ver.1.05A","基本情報","【(F)→コラボ充当対応】\nアクセス充当項目の名称・制御変更","(F)→コラボ充当の仕様化に伴い以下のとおり変更\n・項目名称：アクセス回線充当有無→アクセス充当へ変更（UNOとそろえる）\n・光コラボかつ申込パターン：新規申込みの場合に入力必須とする制御を追加","Webエントリ：2022年4Q改修"]
[null,30,"2022-01-27","石田香織","Ver.1.05A","基本情報","【(F)→コラボ充当対応】\n項目追加（回線充当区分）（充当元回線情報）","新項目：回線充当区分、充当元回線情報を追加\n・(F)→光コラボへの回線充当時、入力必須","Webエントリ：2022年4Q改修"]
[null,31,"2022-01-27","石田香織","Ver.1.05A","付加サービス情報","項目追加（24時間出張修理オプション）","新項目：24時間出張修理オプションを追加\n※サービス提供開始は2022/5/9予定。\n※リリース~提供開始までは本項目は選択不可予定","Webエントリ：2022年4Q改修"]
[null,32,"2022-03-28","石田香織","Ver.1.05B","IPoE申込情報","【RTX830枯渇に伴うSO規制対応】\nレンタル端末種別のリスト値修正","以下のリスト値を非表示対応\n\"IPoE対応ルータ02\""]
[null,33,"2022-04-11","石田香織","Ver.1.05C","付加サービス情報","24時間出張修理オプション項目の固定値設定追加","24時間出張修理オプションが活性化する場合のみ「利用しない」を表示\n※4/18（項目活性のリリース有）～5/9提供開始までの措置。"]
[null,34,"2022-04-14","石田香織","Ver.1.05D","付加サービス情報","24時間出張修理オプションの2022/5/9提供開始対応","24時間出張修理オプションについて以下のとおり修正\n・固定値設定を削除\n・リスト値を設定\n・セルのロックを解除\n・留意事項を修正"]
[null,35,"2022-05-30","石田香織","Ver.1.05E","list","【ギガスマート新規受付停止対応】\n契約タイプのリスト値修正","アクセスタイプ：\"OCN 光サービス(F)「光ネクスト」\"選択時、契約タイプのリスト値に以下を表示しないよう修正\n\"ギガファミリー・スマートタイプ(NTT東日本)\"","※NTT東日本で受付再開後は表示対象に戻す予定。"]
[null,36,"2022-06-27","石田香織","Ver.1.05E","OCNメールアカウント情報","【BC分離（レゾナントへの事業移管）対応】\n2種OCN関連の留意事項修正・追記","・第2種OCNからのメール引継ぎに関する留意文修正、追記","バージョン変更なし、日付のみ更新\n※2022/5/31→2022/6/30"]
[null,37,"2022-10-05","石田香織","Ver.1.05E","基本情報","保守受付言語のデフォルト表示対応","保守受付言語について以下のとおり修正\n・「日本語」をデフォルト表示しておくこととする\n・下記の留意文を追記\n　【留意文】\n　　※英語保守をご希望の場合は、「英語」をご選択ください。","※バージョン：日付のみ変更\n　・2022/6/30 ⇒ 2022/10/5"]
[null,38,"2023-03-07","石田香織","Ver.1.06A","IPoE申込情報","【RTX830のSO規制解除対応】\nレンタル端末種別のリスト表示修正","以下のリスト値を表示するよう修正\n\"IPoE対応ルータ02\""]
[null,39,"2023-04-25","石田香織","Ver.1.07A","list","【ISDN新規販売停止対応】\nアクセスタイプのリスト値削除","フレッツ・ISDNサービス終了に伴い、アクセスタイプのプルダウン値から以下を削除\n\"フレッツ・ISDN\"","Webエントリ：2023年度1Q改修"]
[null,40,"2023-06-23","石田香織","Ver.1.07B","OCNメールアカウント情報","【レゾナント・ドコモ合併対応】\n2種OCN関連の留意事項修正・追記","・第2種OCNからのメール引継ぎに関する留意文修正\n※「NTTレゾナント」⇒「NTTドコモ」へ修正"]
[null,41,"2023-07-14","石田香織","Ver.1.07C","list","【ADSL(F)新規販売停止対応】\nアクセスタイプのリスト値削除","ADSL(F)新規販売停止に伴い、アクセスタイプのプルダウン値から以下を削除\n\"OCN ADSLサービス(F)\"","Webエントリ改修は未定"]
[null,42,"2023-07-14","石田香織","Ver.1.07C","基本情報","【ADSL(F)新規販売停止対応】\nアクセスタイプ項目の留意事項修正","「アクセスタイプ」の留意事項から\"OCN ADSLサービス(F)\"に関する記述を削除"]
[null,43,"2023-07-14","石田香織","Ver.1.07C","留意事項","【ADSL(F)新規販売停止対応】\n留意事項修正","留意事項シート全体から\"OCN ADSLサービス(F)\"に関する記述を削除\n※アクセスライン別対応表は○⇒×へ修正"]
[null,44,"2023-12-14","石田香織","Ver.1.08A","list","【光クロス対応】\nリスト値／表示パターン追加","◆「アクセスタイプ」のリスト値に以下を追加（list_AL_3）\n\"フレッツ 光クロス(IPoE ワイドプラン)\"\n※表示パターンは「list_AL_1」をforVPN/動的IP用とし、「list_AL_3」をIP1用として追加\n\n◆「端末ご利用形態」に\"フレッツ 光クロス(IPoE ワイドプラン)\"用のリスト表示パターンを追加（list_TerminalUsageForm_3）","Webエントリ：2023年度3Q改修\n※提供開始は2024年2月末予定。"]
[null,45,"2023-12-14","石田香織","Ver.1.08A","変換","【光クロス対応】\nフレッツ 光クロス(IPoE ワイドプラン)用のパターン追加","「▼契約タイプ制御用」にフレッツ 光クロス(IPoE ワイドプラン)用の読み替えパターンを追加","Webエントリ：2023年度3Q改修\n※提供開始は2024年2月末予定。"]
[null,46,"2023-12-14","石田香織","Ver.1.08A","OCNメニュー","【光クロス対応】\nフレッツ 光クロス(IPoE ワイドプラン)用のパターン追加","「■OCN提供メニュー/OCN認証ドメイン」にフレッツ 光クロス(IPoE ワイドプラン)用の読み替えパターンを追加","Webエントリ：2023年度3Q改修\n※提供開始は2024年2月末予定。"]
[null,47,"2023-12-14","石田香織","Ver.1.08A","IPoE申込情報","【光クロス対応】\nリスト値の制御修正","「端末ご利用形態」のリストについて、\"フレッツ 光クロス(IPoE ワイドプラン)\"の場合にlist_TerminalUsageForm_3を表示するよう関数修正","Webエントリ：2023年度3Q改修\n※提供開始は2024年2月末予定。"]
[null,48,"2024-03-22","石田香織","Ver.1.08A","基本情報","工事キャンセル有償化に伴う留意事項追記","直前キャンセル有償化のため留意事項を追記\n◆「開通希望年月日」に追記した文言\n　※直前において変更や取下げをされた場合、工事キャンセル費を請求することがあります。\n\n◆「お支払いに関する情報」に追記した文言\n　※工事キャンセル費を請求する場合、別途請求書を送付します。　"]
[null,49,"2024-06-13","石田香織","Ver.1.09A","OCNメニュー","フレッツ 光クロス(IPoE ワイドプラン)用のパターンの文字列修正","「■OCN提供メニュー/OCN認証ドメイン」にフレッツ 光クロス(IPoE ワイドプラン)用の読替えパターンについて文言を修正\n※OCNメニューとしては「光クロス」の文言使用不可の為。","Webエントリ：2024年度1Q改修"]
[null,50,"2024-07-31","石田香織","Ver.1.10A","list","【ADSL新規販売停止対応】\nアクセスタイプのリスト値削除","ADSL新規販売停止に伴い、アクセスタイプのプルダウン値から以下を削除\n\"フレッツ・ADSL\"","Webエントリ：2024年7月維持対応\n※\"OCN ADSLサービス(F)\"も同時に非表示対応"]
[null,51,"2024-07-31","石田香織","Ver.1.10A","留意事項","【ADSL新規販売停止対応】\n留意事項修正","留意事項シート全体から\"フレッツ・ADSL\"に関する記述を削除\n※アクセスライン別対応表は○⇒×へ修正"]
[null,52,"2024-09-27","石田香織","Ver.1.10A","基本情報","事務担当者／技術担当者メールアドレスの留意事項修正","事務担当者／技術担当者メールアドレスの留意事項から以下文言を削除\n\n■削除した文言\n　※メールアドレスをお持でない方は「a@a」をご記入ください。","※バージョン：日付のみ変更\n 2024/7/31→2024/9/30"]
[null,53,"2024-11-18","石田香織","Ver.1.11A","基本情報","【適格請求書対応】\n請求書送付先名の桁数修正","「毎月の利用料の請求先　宛先　お名前」の桁巣を以下のとおり修正\n変更前）20桁以内　⇒　変更後）40桁以内","Webエントリ：2024年度3Q改修"]
[null,54,"2024-11-19","石田香織","Ver.1.12A","list","【光クロスstep2対応】\nリスト値／表示パターン追加","◆「アクセスタイプ」のリスト値に以下を追加（list_AL_1）\n\"フレッツ 光クロス(IPoE 標準プラン)\"","Webエントリ：2024年度3Q改修"]
[null,55,"2024-11-19","石田香織","Ver.1.12A","変換","【光クロスstep2対応】\nフレッツ 光クロス(IPoE 標準プラン)用のパターン追加","「▼契約タイプ制御用」にフレッツ 光クロス(IPoE 標準プラン)用の読み替えパターンを追加","Webエントリ：2024年度3Q改修"]
[null,56,"2024-11-19","石田香織","Ver.1.12A","OCNメニュー","【光クロスstep2対応】\nフレッツ 光クロス(IPoE ワ標準プラン)用のパターン追加","「■OCN提供メニュー/OCN認証ドメイン」にフレッツ 光クロス(IPoE 標準プラン)用の読み替えパターンを追加","Webエントリ：2024年度3Q改修"]
[null,57,"2024-11-19","石田香織","Ver.1.12A","IPoE申込情報","【光クロスstep2対応】\nリスト値の制御修正","「端末ご利用形態」のリストについて、\"フレッツ 光クロス(IPoE 標準プラン)\"の場合にlist_TerminalUsageForm_3を表示するよう関数修正\n※アクセスタイプの文字列に\"光クロス\"の文言が含まれる場合を条件とするよう修正","Webエントリ：2024年度3Q改修"]
[null,58,"2025-03-06","石田香織","Ver.1.13A","list","【光ライト サービス終了対応】\nアクセスタイプのリスト値削除","光ライトサービス終了に伴い、アクセスタイプのプルダウン値から以下を削除\n\"フレッツ 光ライト\"","Webエントリ：2024年度4Q改修"]
[null,59,"2025-03-06","石田香織","Ver.1.13A","基本情報","・弊社記入欄の表示修正","以下カテゴリの項目について、セル色を変更し【弊社記入欄】と追記\n　・共通顧客ID\n　・弊社記入欄\n　・お客様対応部門\n　・お申込受付部門"]
[null,60,"2025-03-06","石田香織","Ver.1.13A","基本情報","・開案送信先メアドの留意文修正","開通案内に関して以下の留意文を追記\n・ワンタイムパスワードを使用した開案確認方法を追記\n・開案送信先メールアドレスにメーリングリスト指定不可の旨を追記"]
[null,61,"2025-03-06","石田香織","Ver.1.14A","list","【光クロスstep3対応】\nリスト値／表示パターン追加","◆「アクセスタイプ」のリスト値に以下を追加\nフレッツ 光クロス(IPoE スーパーワイドプラン)","Webエントリ：2024年度4Q改修"]
[null,62,"2025-03-06","石田香織","Ver.1.14A","変換","【光クロスstep3対応】\nフレッツ 光クロス(IPoE スーパーワイドプラン)用のパターン追加","「▼契約タイプ制御用」にフレッツ 光クロス(IPoE スーパーワイドプラン)用の読み替えパターンを追加","Webエントリ：2024年度4Q改修"]
[null,63,"2025-03-06","石田香織","Ver.1.14A","OCNメニュー","【光クロスstep3対応】\nフレッツ 光クロス(IPoE スーパーワイドプラン)用のパターン追加","「■OCN提供メニュー/OCN認証ドメイン」にフレッツ 光クロス(IPoE スーパーワイドプラン)用の読み替えパターンを追加","Webエントリ：2024年度4Q改修"]
[null,64,"2025-03-17","石田香織","Ver.1.14A","IPoE申込情報","【光クロスstep3対応】\nIPoE専用オプション項目の制御修正","◆フレッツ 光クロス(IPoE スーパーワイドプラン)の場合、「企画型輻輳抑制機能」に\"利用する\"が設定されるよう関数修正\n\n◆フレッツ 光クロス(IPoE スーパーワイドプラン)の場合、「アプリコントロールA」が活性となるよう関数修正","Webエントリ：2024年度4Q改修"]
[null,65]
[null,66]
[null,67]
[null,68]
[null,69]
[null,70]